Workbook

Sheet Main
B10: 2020-02-05
B12: Sheet No. | C12: Template Name | D12: Summary
B13: 1 | C13: Future Intra | D13: For Intraday trading in F&O segment
B14: 2 | C14: Cash Intra | D14: For Intraday trading in cash market segment
B15: 3 | C15: Mid-cap Intra | D15: For Intraday trading in Mid-cap stocks
B16: 4 | C16: Bulk Deals | D16: Reveals Bulk Deals carried on NSE & BSE
B17: 5 | C17: Call Tracker
K27: `

Sheet Future Intra
M5: Back to Main Page
A6: FOR INTRA DAY TRADING | L6: =Main!B10 -> 2020-02-05
A9: Sr.no | B9: Sector | C9: Scrip | D9: CLOSE RATE | E9: Pivot Point | F9: Supports | I9: Resistances
B10: Sector | D10: Point | E10: Point | F10: S1 | G10: S2 | H10: S3 | I10: R1 | J10: R2 | K10: R3 | L10: HIGH | M10: LOW | N10: OI | O10: % Change in OI
A11: 1 | B11: Index | C11: BANKNIFTY | D11: 31050.35 | E11: 30932.72 | F11: 30748.83 | G11: 30447.32 | H11: 30263.43 | I11: 31234.23 | J11: 31418.12 | K11: 31719.63 | L11: 31116.6 | M11: 30631.2 | N11: 1111560 | O11: 4.05%
A12: 2 | B12: Index | C12: NIFTY | D12: 12086.30 | E12: 12044.10 | F12: 11984.20 | G12: 11882.10 | H12: 11822.20 | I12: 12146.20 | J12: 12206.10 | K12: 12308.20 | L12: 12104 | M12: 11942 | N12: 14730075 | O12: 0.56%
A13: 3 | B13: Index | C13: NIFTYIT | D13: 16391.00 | E13: 16348.67 | F13: 16292.33 | G13: 16193.67 | H13: 16137.33 | I13: 16447.33 | J13: 16503.67 | K13: 16602.33 | L13: 16405 | M13: 16250 | N13: 5800 | O13: 3.57%
A14: 4 | B14: Cement | C14: ACC | D14: 1476.00 | E14: 1480.33 | F14: 1464.67 | G14: 1453.33 | H14: 1437.67 | I14: 1491.67 | J14: 1507.33 | K14: 1518.67 | L14: 1496 | M14: 1469 | N14: 4280800 | O14: 9.94%
A15: 5 | B15: Others | C15: ADANIENT | D15: 236.50 | E15: 232.65 | F15: 226.50 | G15: 216.50 | H15: 210.35 | I15: 242.65 | J15: 248.80 | K15: 258.80 | L15: 238.8 | M15: 222.65 | N15: 31484000 | O15: 2.11%
A16: 6 | B16: Others | C16: ADANIPORTS | D16: 367.85 | E16: 366.85 | F16: 361.70 | G16: 355.55 | H16: 350.40 | I16: 373.00 | J16: 378.15 | K16: 384.30 | L16: 372 | M16: 360.7 | N16: 26370000 | O16: 0.80%
A17: 7 | B17: Power | C17: ADANIPOWER | D17: 62.00 | E17: 61.83 | F17: 60.87 | G17: 59.73 | H17: 58.77 | I17: 62.97 | J17: 63.93 | K17: 65.07 | L17: 62.8 | M17: 60.7 | N17: 71920000 | O17: -1.14%
A18: 8 | B18: Automobile | C18: AMARAJABAT | D18: 787.45 | E18: 788.08 | F18: 779.47 | G18: 771.48 | H18: 762.87 | I18: 796.07 | J18: 804.68 | K18: 812.67 | L18: 796.7 | M18: 780.1 | N18: 1603200 | O18: -1.81%
A19: 9 | B19: Cement | C19: AMBUJACEM | D19: 207.10 | E19: 206.92 | F19: 205.08 | G19: 203.07 | H19: 201.23 | I19: 208.93 | J19: 210.77 | K19: 212.78 | L19: 208.75 | M19: 204.9 | N19: 30850000 | O19: 66.13%
A20: 10 | B20: Others | C20: APOLLOHOSP | D20: 1662.85 | E20: 1668.17 | F20: 1648.68 | G20: 1634.52 | H20: 1615.03 | I20: 1682.33 | J20: 1701.82 | K20: 1715.98 | L20: 1687.65 | M20: 1654 | N20: 1622500 | O20: 3.77%
A21: 11 | B21: Automobile | C21: APOLLOTYRE | D21: 169.20 | E21: 167.02 | F21: 163.83 | G21: 158.47 | H21: 155.28 | I21: 172.38 | J21: 175.57 | K21: 180.93 | L21: 170.2 | M21: 161.65 | N21: 13512000 | O21: 20.14%
A22: 12 | B22: Automobile | C22: ASHOKLEY | D22: 80.75 | E22: 81.00 | F22: 79.25 | G22: 77.75 | H22: 76.00 | I22: 82.50 | J22: 84.25 | K22: 85.75 | L22: 82.75 | M22: 79.5 | N22: 61608000 | O22: -0.19%
A23: 13 | B23: FMCG | C23: ASIANPAINT | D23: 1880.40 | E23: 1881.20 | F23: 1870.45 | G23: 1860.50 | H23: 1849.75 | I23: 1891.15 | J23: 1901.90 | K23: 1911.85 | L23: 1891.95 | M23: 1871.25 | N23: 7869600 | O23: 0.21%
A24: 14 | B24: Pharma | C24: AUROPHARMA | D24: 508.75 | E24: 504.95 | F24: 498.50 | G24: 488.25 | H24: 481.80 | I24: 515.20 | J24: 521.65 | K24: 531.90 | L24: 511.4 | M24: 494.7 | N24: 14282000 | O24: -1.53%
A25: 15 | B25: Banking | C25: AXISBANK | D25: 725.10 | E25: 722.47 | F25: 718.23 | G25: 711.37 | H25: 707.13 | I25: 729.33 | J25: 733.57 | K25: 740.43 | L25: 726.7 | M25: 715.6 | N25: 50979600 | O25: 0.09%
A26: 16 | B26: Automobile | C26: BAJAJ-AUTO | D26: 3153.25 | E26: 3167.70 | F26: 3121.60 | G26: 3089.95 | H26: 3043.85 | I26: 3199.35 | J26: 3245.45 | K26: 3277.10 | L26: 3213.8 | M26: 3136.05 | N26: 1830250 | O26: 0.67%
A27: 17 | B27: Finance | C27: BAJAJFINSV | D27: 9620.75 | E27: 9600.78 | F27: 9516.57 | G27: 9412.38 | H27: 9328.17 | I27: 9704.97 | J27: 9789.18 | K27: 9893.37 | L27: 9685 | M27: 9496.6 | N27: 1121375 | O27: -0.45%
A28: 18 | B28: Finance | C28: BAJFINANCE | D28: 4529.95 | E28: 4506.98 | F28: 4473.97 | G28: 4417.98 | H28: 4384.97 | I28: 4562.97 | J28: 4595.98 | K28: 4651.97 | L28: 4540 | M28: 4451 | N28: 6131500 | O28: -2.00%
A29: 19 | B29: Automobile | C29: BALKRISIND | D29: 1104.20 | E29: 1111.75 | F29: 1085.50 | G29: 1066.80 | H29: 1040.55 | I29: 1130.45 | J29: 1156.70 | K29: 1175.40 | L29: 1138 | M29: 1093.05 | N29: 1395200 | O29: 0.81%
A30: 20 | B30: Banking | C30: BANKBARODA | D30: 88.60 | E30: 88.27 | F30: 87.53 | G30: 86.47 | H30: 85.73 | I30: 89.33 | J30: 90.07 | K30: 91.13 | L30: 89 | M30: 87.2 | N30: 73785600 | O30: 0.81%
A31: 21 | B31: FMCG | C31: BATAINDIA | D31: 1878.00 | E31: 1874.27 | F31: 1864.53 | G31: 1851.07 | H31: 1841.33 | I31: 1887.73 | J31: 1897.47 | K31: 1910.93 | L31: 1884 | M31: 1860.8 | N31: 2167550 | O31: -0.43%
A32: 22 | B32: Capital_Goods | C32: BEL | D32: 85.50 | E32: 85.10 | F32: 83.50 | G32: 81.50 | H32: 79.90 | I32: 87.10 | J32: 88.70 | K32: 90.70 | L32: 86.7 | M32: 83.1 | N32: 58092000 | O32: 2.62%
A33: 23 | B33: FMCG | C33: BERGEPAINT | D33: 588.00 | E33: 588.30 | F33: 581.75 | G33: 575.50 | H33: 568.95 | I33: 594.55 | J33: 601.10 | K33: 607.35 | L33: 594.85 | M33: 582.05 | N33: 8107000 | O33: -0.89%
A34: 24 | B34: Automobile | C34: BHARATFORG | D34: 509.95 | E34: 507.67 | F34: 499.03 | G34: 488.12 | H34: 479.48 | I34: 518.58 | J34: 527.22 | K34: 538.13 | L34: 516.3 | M34: 496.75 | N34: 7517900 | O34: -2.82%
A35: 25 | B35: Telecom | C35: BHARTIARTL | D35: 534.10 | E35: 529.42 | F35: 521.23 | G35: 508.37 | H35: 500.18 | I35: 542.28 | J35: 550.47 | K35: 563.33 | L35: 537.6 | M35: 516.55 | N35: 52466595 | O35: 1.78%
A36: 26 | B36: Capital_Goods | C36: BHEL | D36: 39.55 | E36: 39.62 | F36: 38.88 | G36: 38.22 | H36: 37.48 | I36: 40.28 | J36: 41.02 | K36: 41.68 | L36: 40.35 | M36: 38.95 | N36: 88337600 | O36: 6.12%
A37: 27 | B37: Pharma | C37: BIOCON | D37: 293.55 | E37: 291.77 | F37: 286.98 | G37: 280.42 | H37: 275.63 | I37: 298.33 | J37: 303.12 | K37: 309.68 | L37: 296.55 | M37: 285.2 | N37: 13993200 | O37: -1.78%
A38: 28 | B38: Automobile | C38: BOSCHLTD | D38: 13817.55 | E38: 13940.42 | F38: 13441.18 | G38: 13064.82 | H38: 12565.58 | I38: 14316.78 | J38: 14816.02 | K38: 15192.38 | L38: 14439.65 | M38: 13564.05 | N38: 150960 | O38: 8.73%
A39: 29 | B39: Oil_Gas | C39: BPCL | D39: 497.70 | E39: 490.88 | F39: 478.97 | G39: 460.23 | H39: 448.32 | I39: 509.62 | J39: 521.53 | K39: 540.27 | L39: 502.8 | M39: 472.15 | N39: 26605800 | O39: -4.16%
A40: 30 | B40: FMCG | C40: BRITANNIA | D40: 3267.50 | E40: 3282.08 | F40: 3240.17 | G40: 3212.83 | H40: 3170.92 | I40: 3309.42 | J40: 3351.33 | K40: 3378.67 | L40: 3324 | M40: 3254.75 | N40: 2374400 | O40: 3.03%
A41: 31 | B41: Pharma | C41: CADILAHC | D41: 273.00 | E41: 270.83 | F41: 266.32 | G41: 259.63 | H41: 255.12 | I41: 277.52 | J41: 282.03 | K41: 288.72 | L41: 275.35 | M41: 264.15 | N41: 7768200 | O41: 5.72%
A42: 32 | B42: Banking | C42: CANBK | D42: 184.90 | E42: 185.72 | F42: 182.83 | G42: 180.77 | H42: 177.88 | I42: 187.78 | J42: 190.67 | K42: 192.73 | L42: 188.6 | M42: 183.65 | N42: 19320600 | O42: 6.60%
A43: 33 | B43: Textile | C43: CENTURYTEX | D43: 608.80 | E43: 603.53 | F43: 583.72 | G43: 558.63 | H43: 538.82 | I43: 628.62 | J43: 648.43 | K43: 673.52 | L43: 623.35 | M43: 578.45 | N43: 4244400 | O43: -3.62%
A44: 34 | B44: Power | C44: CESC | D44: 719.90 | E44: 718.43 | F44: 713.47 | G44: 707.03 | H44: 702.07 | I44: 724.87 | J44: 729.83 | K44: 736.27 | L44: 723.4 | M44: 712 | N44: 1479200 | O44: -3.85%
A45: 35 | B45: Finance | C45: CHOLAFIN | D45: 344.30 | E45: 342.63 | F45: 335.97 | G45: 327.63 | H45: 320.97 | I45: 350.97 | J45: 357.63 | K45: 365.97 | L45: 349.3 | M45: 334.3 | N45: 6282500 | O45: 24.04%
A46: 36 | B46: Pharma | C46: CIPLA | D46: 447.80 | E46: 448.33 | F46: 437.67 | G46: 427.53 | H46: 416.87 | I46: 458.47 | J46: 469.13 | K46: 479.27 | L46: 459 | M46: 438.2 | N46: 14555550 | O46: 0.95%
A47: 37 | B47: Others | C47: COALINDIA | D47: 175.55 | E47: 175.50 | F47: 173.75 | G47: 171.95 | H47: 170.20 | I47: 177.30 | J47: 179.05 | K47: 180.85 | L47: 177.25 | M47: 173.7 | N47: 69722100 | O47: 2.68%
A48: 38 | B48: FMCG | C48: COLPAL | D48: 1372.10 | E48: 1372.35 | F48: 1364.70 | G48: 1357.30 | H48: 1349.65 | I48: 1379.75 | J48: 1387.40 | K48: 1394.80 | L48: 1380 | M48: 1364.95 | N48: 2978500 | O48: -1.69%
A49: 39 | B49: Others | C49: CONCOR | D49: 590.05 | E49: 578.82 | F49: 562.83 | G49: 535.62 | H49: 519.63 | I49: 606.03 | J49: 622.02 | K49: 649.23 | L49: 594.8 | M49: 551.6 | N49: 5289192 | O49: 1.96%
A50: 40 | B50: Capital_Goods | C50: CUMMINSIND | D50: 565.55 | E50: 566.97 | F50: 560.93 | G50: 556.32 | H50: 550.28 | I50: 571.58 | J50: 577.62 | K50: 582.23 | L50: 573 | M50: 562.35 | N50: 1620000 | O50: -0.99%
A51: 41 | B51: FMCG | C51: DABUR | D51: 511.95 | E51: 509.72 | F51: 505.78 | G51: 499.62 | H51: 495.68 | I51: 515.88 | J51: 519.82 | K51: 525.98 | L51: 513.65 | M51: 503.55 | N51: 13321250 | O51: 0.54%
A52: 42 | B52: Pharma | C52: DIVISLAB | D52: 1971.45 | E52: 1971.48 | F52: 1954.97 | G52: 1938.48 | H52: 1921.97 | I52: 1987.97 | J52: 2004.48 | K52: 2020.97 | L52: 1988 | M52: 1955 | N52: 1612800 | O52: 1.03%
A53: 43 | B53: Realty | C53: DLF | D53: 252.85 | E53: 250.27 | F53: 245.98 | G53: 239.12 | H53: 234.83 | I53: 257.13 | J53: 261.42 | K53: 268.28 | L53: 254.55 | M53: 243.4 | N53: 32402700 | O53: -2.71%
A54: 44 | B54: Pharma | C54: DRREDDY | D54: 3146.90 | E54: 3180.47 | F54: 3102.78 | G54: 3058.67 | H54: 2980.98 | I54: 3224.58 | J54: 3302.27 | K54: 3346.38 | L54: 3258.15 | M54: 3136.35 | N54: 2792250 | O54: 1.93%
A55: 45 | B55: Automobile | C55: EICHERMOT | D55: 19541.00 | E55: 19598.48 | F55: 19346.97 | G55: 19152.93 | H55: 18901.42 | I55: 19792.52 | J55: 20044.03 | K55: 20238.07 | L55: 19850 | M55: 19404.45 | N55: 234600 | O55: 0.62%
A56: 46 | B56: Finance | C56: EQUITAS | D56: 114.70 | E56: 113.18 | F56: 110.97 | G56: 107.23 | H56: 105.02 | I56: 116.92 | J56: 119.13 | K56: 122.87 | L56: 115.4 | M56: 109.45 | N56: 20344800 | O56: 4.32%
A57: 47 | B57: Automobile | C57: ESCORTS | D57: 857.40 | E57: 855.32 | F57: 844.08 | G57: 830.77 | H57: 819.53 | I57: 868.63 | J57: 879.87 | K57: 893.18 | L57: 866.55 | M57: 842 | N57: 4745400 | O57: -2.38%
A58: 48 | B58: Automobile | C58: EXIDEIND | D58: 185.25 | E58: 184.68 | F58: 178.87 | G58: 172.48 | H58: 166.67 | I58: 191.07 | J58: 196.88 | K58: 203.27 | L58: 190.5 | M58: 178.3 | N58: 11014200 | O58: -1.94%
A59: 49 | B59: Banking | C59: FEDERALBNK | D59: 91.25 | E59: 90.73 | F59: 90.07 | G59: 88.88 | H59: 88.22 | I59: 91.92 | J59: 92.58 | K59: 93.77 | L59: 91.4 | M59: 89.55 | N59: 56154000 | O59: 4.02%
A60: 50 | B60: Oil_Gas | C60: GAIL | D60: 117.90 | E60: 117.00 | F60: 115.75 | G60: 113.60 | H60: 112.35 | I60: 119.15 | J60: 120.40 | K60: 122.55 | L60: 118.25 | M60: 114.85 | N60: 46304454 | O60: -0.91%
A61: 51 | B61: Pharma | C61: GLENMARK | D61: 320.15 | E61: 317.33 | F61: 313.37 | G61: 306.58 | H61: 302.62 | I61: 324.12 | J61: 328.08 | K61: 334.87 | L61: 321.3 | M61: 310.55 | N61: 8257200 | O61: 0.92%
A62: 52 | B62: Infrastructure | C62: GMRINFRA | D62: 23.00 | E62: 22.77 | F62: 22.43 | G62: 21.87 | H62: 21.53 | I62: 23.33 | J62: 23.67 | K62: 24.23 | L62: 23.1 | M62: 22.2 | N62: 173475000 | O62: -1.76%
A63: 53 | B63: FMCG | C63: GODREJCP | D63: 663.65 | E63: 660.47 | F63: 653.93 | G63: 644.22 | H63: 637.68 | I63: 670.18 | J63: 676.72 | K63: 686.43 | L63: 667 | M63: 650.75 | N63: 5703200 | O63: 5.85%
A64: 54 | B64: Cement | C64: GRASIM | D64: 803.30 | E64: 799.60 | F64: 793.65 | G64: 784.00 | H64: 778.05 | I64: 809.25 | J64: 815.20 | K64: 824.85 | L64: 805.55 | M64: 789.95 | N64: 23589000 | O64: 1.14%
A65: 55 | B65: Others | C65: HAVELLS | D65: 619.80 | E65: 621.50 | F65: 610.65 | G65: 601.50 | H65: 590.65 | I65: 630.65 | J65: 641.50 | K65: 650.65 | L65: 632.35 | M65: 612.35 | N65: 7421000 | O65: 2.44%
A66: 56 | B66: Technology | C66: HCLTECH | D66: 596.75 | E66: 594.42 | F66: 589.73 | G66: 582.72 | H66: 578.03 | I66: 601.43 | J66: 606.12 | K66: 613.13 | L66: 599.1 | M66: 587.4 | N66: 22968400 | O66: -0.16%
A67: 57 | B67: Finance | C67: HDFC | D67: 2394.30 | E67: 2375.07 | F67: 2352.23 | G67: 2310.17 | H67: 2287.33 | I67: 2417.13 | J67: 2439.97 | K67: 2482.03 | L67: 2397.9 | M67: 2333 | N67: 32227500 | O67: 1.83%
A68: 58 | B68: Banking | C68: HDFCBANK | D68: 1246.60 | E68: 1240.75 | F68: 1232.95 | G68: 1219.30 | H68: 1211.50 | I68: 1254.40 | J68: 1262.20 | K68: 1275.85 | L68: 1248.55 | M68: 1227.1 | N68: 31802000 | O68: -4.83%
A69: 59 | B69: Automobile | C69: HEROMOTOCO | D69: 2328.85 | E69: 2352.55 | F69: 2275.30 | G69: 2221.75 | H69: 2144.50 | I69: 2406.10 | J69: 2483.35 | K69: 2536.90 | L69: 2429.8 | M69: 2299 | N69: 3084800 | O69: 31.75%
A70: 60 | B70: Metals | C70: HINDALCO | D70: 196.30 | E70: 194.10 | F70: 190.60 | G70: 184.90 | H70: 181.40 | I70: 199.80 | J70: 203.30 | K70: 209.00 | L70: 197.6 | M70: 188.4 | N70: 46991000 | O70: -0.01%
A71: 61 | B71: Oil_Gas | C71: HINDPETRO | D71: 235.60 | E71: 233.72 | F71: 230.93 | G71: 226.27 | H71: 223.48 | I71: 238.38 | J71: 241.17 | K71: 245.83 | L71: 236.5 | M71: 229.05 | N71: 18099900 | O71: -0.85%
A72: 62 | B72: FMCG | C72: HINDUNILVR | D72: 2166.75 | E72: 2170.80 | F72: 2153.90 | G72: 2141.05 | H72: 2124.15 | I72: 2183.65 | J72: 2200.55 | K72: 2213.40 | L72: 2187.7 | M72: 2157.95 | N72: 10299900 | O72: 0.42%
A73: 63 | B73: Finance | C73: IBULHSGFIN | D73: 267.70 | E73: 266.67 | F73: 259.33 | G73: 250.97 | H73: 243.63 | I73: 275.03 | J73: 282.37 | K73: 290.73 | L73: 274 | M73: 258.3 | N73: 24776400 | O73: -1.44%
A74: 64 | B74: Banking | C74: ICICIBANK | D74: 539.90 | E74: 536.45 | F74: 531.55 | G74: 523.20 | H74: 518.30 | I74: 544.80 | J74: 549.70 | K74: 558.05 | L74: 541.35 | M74: 528.1 | N74: 102577750 | O74: 1.02%
A75: 65 | B75: Finance | C75: ICICIPRULI | D75: 476.40 | E75: 475.68 | F75: 471.42 | G75: 466.43 | H75: 462.17 | I75: 480.67 | J75: 484.93 | K75: 489.92 | L75: 479.95 | M75: 470.7 | N75: 9160500 | O75: 0.00%
A76: 66 | B76: Telecom | C76: IDEA | D76: 5.30 | E76: 5.23 | F76: 5.07 | G76: 4.83 | H76: 4.67 | I76: 5.47 | J76: 5.63 | K76: 5.87 | L76: 5.4 | M76: 5 | N76: 436590000 | O76: -0.47%
A77: 67 | B77: Banking | C77: IDFCFIRSTB | D77: 41.20 | E77: 41.10 | F77: 40.60 | G77: 40.00 | H77: 39.50 | I77: 41.70 | J77: 42.20 | K77: 42.80 | L77: 41.6 | M77: 40.5 | N77: 228924000 | O77: -0.38%
A78: 68 | B78: Oil_Gas | C78: IGL | D78: 516.15 | E78: 515.80 | F78: 511.60 | G78: 507.05 | H78: 502.85 | I78: 520.35 | J78: 524.55 | K78: 529.10 | L78: 520 | M78: 511.25 | N78: 8324250 | O78: -6.23%
A79: 69 | B79: Others | C79: INDIGO | D79: 1451.65 | E79: 1440.75 | F79: 1419.95 | G79: 1388.25 | H79: 1367.45 | I79: 1472.45 | J79: 1493.25 | K79: 1524.95 | L79: 1461.55 | M79: 1409.05 | N79: 3431700 | O79: -1.60%
A80: 70 | B80: Banking | C80: INDUSINDBK | D80: 1278.45 | E80: 1278.12 | F80: 1266.43 | G80: 1254.42 | H80: 1242.73 | I80: 1290.13 | J80: 1301.82 | K80: 1313.83 | L80: 1289.8 | M80: 1266.1 | N80: 13430800 | O80: 2.70%
A81: 71 | B81: Telecom | C81: INFRATEL | D81: 245.85 | E81: 245.20 | F81: 239.70 | G81: 233.55 | H81: 228.05 | I81: 251.35 | J81: 256.85 | K81: 263.00 | L81: 250.7 | M81: 239.05 | N81: 11714000 | O81: 1.46%
A82: 72 | B82: Technology | C82: INFY | D82: 787.60 | E82: 784.57 | F82: 780.13 | G82: 772.67 | H82: 768.23 | I82: 792.03 | J82: 796.47 | K82: 803.93 | L82: 789 | M82: 777.1 | N82: 30644400 | O82: 2.44%
A83: 73 | B83: Oil_Gas | C83: IOC | D83: 114.10 | E83: 113.48 | F83: 112.47 | G83: 110.83 | H83: 109.82 | I83: 115.12 | J83: 116.13 | K83: 117.77 | L83: 114.5 | M83: 111.85 | N83: 64944000 | O83: -4.48%
A84: 74 | B84: FMCG | C84: ITC | D84: 217.00 | E84: 215.82 | F84: 213.38 | G84: 209.77 | H84: 207.33 | I84: 219.43 | J84: 221.87 | K84: 225.48 | L84: 218.25 | M84: 212.2 | N84: 138496800 | O84: 0.51%
A85: 75 | B85: Metals | C85: JINDALSTEL | D85: 191.05 | E85: 189.13 | F85: 184.47 | G85: 177.88 | H85: 173.22 | I85: 195.72 | J85: 200.38 | K85: 206.97 | L85: 193.8 | M85: 182.55 | N85: 33330000 | O85: 1.02%
A86: 76 | B86: Metals | C86: JSWSTEEL | D86: 270.30 | E86: 266.75 | F86: 260.50 | G86: 250.70 | H86: 244.45 | I86: 276.55 | J86: 282.80 | K86: 292.60 | L86: 273 | M86: 256.95 | N86: 62622100 | O86: 3.00%
A87: 77 | B87: Others | C87: JUBLFOOD | D87: 1950.80 | E87: 1948.85 | F87: 1933.80 | G87: 1916.80 | H87: 1901.75 | I87: 1965.85 | J87: 1980.90 | K87: 1997.90 | L87: 1963.9 | M87: 1931.85 | N87: 2504000 | O87: -0.54%
A88: 78 | B88: Others | C88: JUSTDIAL | D88: 526.80 | E88: 526.92 | F88: 517.98 | G88: 509.17 | H88: 500.23 | I88: 535.73 | J88: 544.67 | K88: 553.48 | L88: 535.85 | M88: 518.1 | N88: 2499000 | O88: 5.56%
A89: 79 | B89: Banking | C89: KOTAKBANK | D89: 1696.40 | E89: 1693.78 | F89: 1679.62 | G89: 1662.83 | H89: 1648.67 | I89: 1710.57 | J89: 1724.73 | K89: 1741.52 | L89: 1707.95 | M89: 1677 | N89: 8164800 | O89: 1.09%
A90: 80 | B90: Finance | C90: L&TFH | D90: 118.25 | E90: 116.87 | F90: 114.63 | G90: 111.02 | H90: 108.78 | I90: 120.48 | J90: 122.72 | K90: 126.33 | L90: 119.1 | M90: 113.25 | N90: 31998400 | O90: -0.88%
A91: 81 | B91: Finance | C91: LICHSGFIN | D91: 406.50 | E91: 401.47 | F91: 393.03 | G91: 379.57 | H91: 371.13 | I91: 414.93 | J91: 423.37 | K91: 436.83 | L91: 409.9 | M91: 388 | N91: 13280800 | O91: 12.46%
A92: 82 | B92: Capital_Goods | C92: LT | D92: 1313.85 | E92: 1312.78 | F92: 1298.22 | G92: 1282.58 | H92: 1268.02 | I92: 1328.42 | J92: 1342.98 | K92: 1358.62 | L92: 1327.35 | M92: 1297.15 | N92: 20101500 | O92: -1.74%
A93: 83 | B93: Pharma | C93: LUPIN | D93: 723.15 | E93: 722.18 | F93: 717.37 | G93: 711.58 | H93: 706.77 | I93: 727.97 | J93: 732.78 | K93: 738.57 | L93: 727 | M93: 716.4 | N93: 8623300 | O93: 1.39%
A94: 84 | B94: Automobile | C94: M&M | D94: 585.65 | E94: 584.60 | F94: 577.90 | G94: 570.15 | H94: 563.45 | I94: 592.35 | J94: 599.05 | K94: 606.80 | L94: 591.3 | M94: 576.85 | N94: 22469000 | O94: 1.67%
A95: 85 | B95: Finance | C95: M&MFIN | D95: 388.30 | E95: 383.42 | F95: 373.28 | G95: 358.27 | H95: 348.13 | I95: 398.43 | J95: 408.57 | K95: 423.58 | L95: 393.55 | M95: 368.4 | N95: 15292800 | O95: 1.15%
A96: 86 | B96: Finance | C96: MANAPPURAM | D96: 168.55 | E96: 170.25 | F96: 164.90 | G96: 161.25 | H96: 155.90 | I96: 173.90 | J96: 179.25 | K96: 182.90 | L96: 175.6 | M96: 166.6 | N96: 35082000 | O96: 15.81%
A97: 87 | B97: FMCG | C97: MARICO | D97: 309.70 | E97: 306.42 | F97: 300.48 | G97: 291.27 | H97: 285.33 | I97: 315.63 | J97: 321.57 | K97: 330.78 | L97: 312.35 | M97: 297.2 | N97: 15059200 | O97: 11.20%
A98: 88 | B98: Automobile | C98: MARUTI | D98: 7073.05 | E98: 7124.00 | F98: 7001.00 | G98: 6928.95 | H98: 6805.95 | I98: 7196.05 | J98: 7319.05 | K98: 7391.10 | L98: 7247 | M98: 7051.95 | N98: 3033400 | O98: 4.18%
A99: 89 | B99: FMCG | C99: MCDOWELL-N | D99: 653.15 | E99: 651.33 | F99: 645.67 | G99: 638.18 | H99: 632.52 | I99: 658.82 | J99: 664.48 | K99: 671.97 | L99: 657 | M99: 643.85 | N99: 13181250 | O99: -2.74%
A100: 90 | B100: Finance | C100: MFSL | D100: 482.55 | E100: 481.60 | F100: 473.20 | G100: 463.85 | H100: 455.45 | I100: 490.95 | J100: 499.35 | K100: 508.70 | L100: 490 | M100: 472.25 | N100: 5531500 | O100: -5.47%
A101: 91 | B101: Oil_Gas | C101: MGL | D101: 1188.70 | E101: 1195.38 | F101: 1175.82 | G101: 1162.93 | H101: 1143.37 | I101: 1208.27 | J101: 1227.83 | K101: 1240.72 | L101: 1214.95 | M101: 1182.5 | N101: 2294400 | O101: -0.62%
A102: 92 | B102: Technology | C102: MINDTREE | D102: 911.45 | E102: 911.62 | F102: 902.33 | G102: 893.22 | H102: 883.93 | I102: 920.73 | J102: 930.02 | K102: 939.13 | L102: 920.9 | M102: 902.5 | N102: 895200 | O102: 4.00%
A103: 93 | B103: Automobile | C103: MOTHERSUMI | D103: 135.75 | E103: 134.63 | F103: 132.47 | G103: 129.18 | H103: 127.02 | I103: 137.92 | J103: 140.08 | K103: 143.37 | L103: 136.8 | M103: 131.35 | N103: 19300000 | O103: -5.14%
A104: 94 | B104: Automobile | C104: MRF | D104: 72693.70 | E104: 72779.72 | F104: 71715.03 | G104: 70736.37 | H104: 69671.68 | I104: 73758.38 | J104: 74823.07 | K104: 75801.73 | L104: 73844.4 | M104: 71801.05 | N104: 19520 | O104: 5.63%
A105: 95 | B105: Finance | C105: MUTHOOTFIN | D105: 761.15 | E105: 767.52 | F105: 751.13 | G105: 741.12 | H105: 724.73 | I105: 777.53 | J105: 793.92 | K105: 803.93 | L105: 783.9 | M105: 757.5 | N105: 5083500 | O105: -1.85%
A106: 96 | B106: Metals | C106: NATIONALUM | D106: 43.60 | E106: 43.27 | F106: 42.63 | G106: 41.67 | H106: 41.03 | I106: 44.23 | J106: 44.87 | K106: 45.83 | L106: 43.9 | M106: 42.3 | N106: 40879800 | O106: 1.98%
A107: 97 | B107: Infrastructure | C107: NCC | D107: 52.40 | E107: 52.28 | F107: 51.12 | G107: 49.83 | H107: 48.67 | I107: 53.57 | J107: 54.73 | K107: 56.02 | L107: 53.45 | M107: 51 | N107: 46755000 | O107: 2.00%
A108: 98 | B108: FMCG | C108: NESTLEIND | D108: 16437.55 | E108: 16404.48 | F108: 16309.97 | G108: 16182.38 | H108: 16087.87 | I108: 16532.07 | J108: 16626.58 | K108: 16754.17 | L108: 16499 | M108: 16276.9 | N108: 496550 | O108: -0.16%
A109: 99 | B109: Technology | C109: NIITTECH | D109: 1931.30 | E109: 1932.02 | F109: 1905.03 | G109: 1878.77 | H109: 1851.78 | I109: 1958.28 | J109: 1985.27 | K109: 2011.53 | L109: 1959 | M109: 1905.75 | N109: 790125 | O109: 3.79%
A110: 100 | B110: Metals | C110: NMDC | D110: 109.05 | E110: 107.10 | F110: 104.60 | G110: 100.15 | H110: 97.65 | I110: 111.55 | J110: 114.05 | K110: 118.50 | L110: 109.6 | M110: 102.65 | N110: 41070000 | O110: -3.69%
A111: 101 | B111: Power | C111: NTPC | D111: 108.35 | E111: 108.38 | F111: 107.42 | G111: 106.48 | H111: 105.52 | I111: 109.32 | J111: 110.28 | K111: 111.22 | L111: 109.35 | M111: 107.45 | N111: 160641600 | O111: 2.17%
A112: 102 | B112: Oil_Gas | C112: OIL | D112: 124.15 | E112: 124.15 | F112: 123.00 | G112: 121.85 | H112: 120.70 | I112: 125.30 | J112: 126.45 | K112: 127.60 | L112: 125.3 | M112: 123 | N112: 14296194 | O112: 1.42%
A113: 103 | B113: Oil_Gas | C113: ONGC | D113: 102.45 | E113: 102.00 | F113: 101.00 | G113: 99.55 | H113: 98.55 | I113: 103.45 | J113: 104.45 | K113: 105.90 | L113: 103 | M113: 100.55 | N113: 113143600 | O113: 3.41%
A114: 104 | B114: Textile | C114: PAGEIND | D114: 24658.70 | E114: 24668.87 | F114: 24416.73 | G114: 24174.77 | H114: 23922.63 | I114: 24910.83 | J114: 25162.97 | K114: 25404.93 | L114: 24921 | M114: 24426.9 | N114: 134900 | O114: 1.91%
A115: 105 | B115: Pharma | C115: PEL | D115: 1463.05 | E115: 1455.57 | F115: 1424.98 | G115: 1386.92 | H115: 1356.33 | I115: 1493.63 | J115: 1524.22 | K115: 1562.28 | L115: 1486.15 | M115: 1417.5 | N115: 4187877 | O115: -0.65%
A116: 106 | B116: Oil_Gas | C116: PETRONET | D116: 269.30 | E116: 269.22 | F116: 265.43 | G116: 261.57 | H116: 257.78 | I116: 273.08 | J116: 276.87 | K116: 280.73 | L116: 273 | M116: 265.35 | N116: 19035000 | O116: 2.16%
A117: 107 | B117: Finance | C117: PFC | D117: 122.20 | E117: 121.00 | F117: 117.80 | G117: 113.40 | H117: 110.20 | I117: 125.40 | J117: 128.60 | K117: 133.00 | L117: 124.2 | M117: 116.6 | N117: 33294000 | O117: 6.55%
A118: 108 | B118: FMCG | C118: PIDILITIND | D118: 1556.40 | E118: 1556.27 | F118: 1547.28 | G118: 1538.17 | H118: 1529.18 | I118: 1565.38 | J118: 1574.37 | K118: 1583.48 | L118: 1565.25 | M118: 1547.15 | N118: 2222500 | O118: 1.09%
A119: 109 | B119: Banking | C119: PNB | D119: 57.05 | E119: 56.90 | F119: 56.35 | G119: 55.65 | H119: 55.10 | I119: 57.60 | J119: 58.15 | K119: 58.85 | L119: 57.45 | M119: 56.2 | N119: 125230400 | O119: 0.45%
A120: 110 | B120: Power | C120: POWERGRID | D120: 184.65 | E120: 185.42 | F120: 183.03 | G120: 181.42 | H120: 179.03 | I120: 187.03 | J120: 189.42 | K120: 191.03 | L120: 187.8 | M120: 183.8 | N120: 81148000 | O120: 2.42%
A121: 111 | B121: Media | C121: PVR | D121: 2062.35 | E121: 2040.55 | F121: 2013.80 | G121: 1965.25 | H121: 1938.50 | I121: 2089.10 | J121: 2115.85 | K121: 2164.40 | L121: 2067.3 | M121: 1992 | N121: 1184400 | O121: 12.16%
A122: 112 | B122: Cement | C122: RAMCOCEM | D122: 798.40 | E122: 803.27 | F122: 790.88 | G122: 783.37 | H122: 770.98 | I122: 810.78 | J122: 823.17 | K122: 830.68 | L122: 815.65 | M122: 795.75 | N122: 1769600 | O122: 0.09%
A123: 113 | B123: Banking | C123: RBLBANK | D123: 318.30 | E123: 318.83 | F123: 314.07 | G123: 309.83 | H123: 305.07 | I123: 323.07 | J123: 327.83 | K123: 332.07 | L123: 323.6 | M123: 314.6 | N123: 16192500 | O123: 0.62%
A124: 114 | B124: Power | C124: RECLTD | D124: 151.50 | E124: 148.47 | F124: 143.03 | G124: 134.57 | H124: 129.13 | I124: 156.93 | J124: 162.37 | K124: 170.83 | L124: 153.9 | M124: 140 | N124: 24660000 | O124: 18.41%
A125: 115 | B125: Oil_Gas | C125: RELIANCE | D125: 1446.25 | E125: 1441.92 | F125: 1432.23 | G125: 1418.22 | H125: 1408.53 | I125: 1455.93 | J125: 1465.62 | K125: 1479.63 | L125: 1451.6 | M125: 1427.9 | N125: 41275500 | O125: -0.64%
A126: 116 | B126: Metals | C126: SAIL | D126: 48.80 | E126: 48.10 | F126: 47.10 | G126: 45.40 | H126: 44.40 | I126: 49.80 | J126: 50.80 | K126: 52.50 | L126: 49.1 | M126: 46.4 | N126: 82330800 | O126: -1.45%
A127: 117 | B127: Banking | C127: SBIN | D127: 312.35 | E127: 310.60 | F127: 307.25 | G127: 302.15 | H127: 298.80 | I127: 315.70 | J127: 319.05 | K127: 324.15 | L127: 313.95 | M127: 305.5 | N127: 121827000 | O127: 0.83%
A128: 118 | B128: Cement | C128: SHREECEM | D128: 24962.65 | E128: 24859.32 | F128: 24466.63 | G128: 23970.62 | H128: 23577.93 | I128: 25355.33 | J128: 25748.02 | K128: 26244.03 | L128: 25252 | M128: 24363.3 | N128: 158700 | O128: 5.62%
A129: 119 | B129: Capital_Goods | C129: SIEMENS | D129: 1503.95 | E129: 1498.57 | F129: 1486.13 | G129: 1468.32 | H129: 1455.88 | I129: 1516.38 | J129: 1528.82 | K129: 1546.63 | L129: 1511 | M129: 1480.75 | N129: 1894200 | O129: -0.06%
A130: 120 | B130: Textile | C130: SRF | D130: 3997.65 | E130: 3928.57 | F130: 3849.18 | G130: 3700.72 | H130: 3621.33 | I130: 4077.03 | J130: 4156.42 | K130: 4304.88 | L130: 4007.95 | M130: 3780.1 | N130: 919500 | O130: 22.03%
A131: 121 | B131: Finance | C131: SRTRANSFIN | D131: 1127.10 | E131: 1107.20 | F131: 1078.40 | G131: 1029.70 | H131: 1000.90 | I131: 1155.90 | J131: 1184.70 | K131: 1233.40 | L131: 1136 | M131: 1058.5 | N131: 4929600 | O131: -5.50%
A132: 122 | B132: Pharma | C132: SUNPHARMA | D132: 426.20 | E132: 426.00 | F132: 421.50 | G132: 416.80 | H132: 412.30 | I132: 430.70 | J132: 435.20 | K132: 439.90 | L132: 430.5 | M132: 421.3 | N132: 65946250 | O132: 2.49%
A133: 123 | B133: Media | C133: SUNTV | D133: 480.35 | E133: 479.40 | F133: 471.85 | G133: 463.35 | H133: 455.80 | I133: 487.90 | J133: 495.45 | K133: 503.95 | L133: 486.95 | M133: 470.9 | N133: 6684000 | O133: 1.48%
A134: 124 | B134: Fertilisers | C134: TATACHEM | D134: 754.00 | E134: 751.00 | F134: 736.10 | G134: 718.20 | H134: 703.30 | I134: 768.90 | J134: 783.80 | K134: 801.70 | L134: 765.9 | M134: 733.1 | N134: 3764700 | O134: 21.21%
A135: 125 | B135: FMCG | C135: TATAGLOBAL | D135: 396.50 | E135: 395.90 | F135: 382.10 | G135: 367.70 | H135: 353.90 | I135: 410.30 | J135: 424.10 | K135: 438.50 | L135: 409.7 | M135: 381.5 | N135: 14949900 | O135: 10.81%
A136: 126 | B136: Automobile | C136: TATAMOTORS | D136: 184.05 | E136: 178.80 | F136: 172.35 | G136: 160.65 | H136: 154.20 | I136: 190.50 | J136: 196.95 | K136: 208.65 | L136: 185.25 | M136: 167.1 | N136: 68391500 | O136: -6.09%
A137: 127 | B137: Power | C137: TATAPOWER | D137: 57.40 | E137: 57.07 | F137: 56.58 | G137: 55.77 | H137: 55.28 | I137: 57.88 | J137: 58.37 | K137: 59.18 | L137: 57.55 | M137: 56.25 | N137: 71685000 | O137: -0.54%
A138: 128 | B138: Metals | C138: TATASTEEL | D138: 474.45 | E138: 467.22 | F138: 456.63 | G138: 438.82 | H138: 428.23 | I138: 485.03 | J138: 495.62 | K138: 513.43 | L138: 477.8 | M138: 449.4 | N138: 22920000 | O138: -0.79%
A139: 129 | B139: Technology | C139: TCS | D139: 2143.70 | E139: 2135.88 | F139: 2117.82 | G139: 2091.93 | H139: 2073.87 | I139: 2161.77 | J139: 2179.83 | K139: 2205.72 | L139: 2153.95 | M139: 2110 | N139: 13889000 | O139: -1.38%
A140: 130 | B140: Technology | C140: TECHM | D140: 817.20 | E140: 815.07 | F140: 810.63 | G140: 804.07 | H140: 799.63 | I140: 821.63 | J140: 826.07 | K140: 832.63 | L140: 819.5 | M140: 808.5 | N140: 15223200 | O140: -0.78%
A141: 131 | B141: FMCG | C141: TITAN | D141: 1277.70 | E141: 1275.67 | F141: 1254.83 | G141: 1231.97 | H141: 1211.13 | I141: 1298.53 | J141: 1319.37 | K141: 1342.23 | L141: 1296.5 | M141: 1252.8 | N141: 9168000 | O141: -8.66%
A142: 132 | B142: Pharma | C142: TORNTPHARM | D142: 1995.75 | E142: 1988.98 | F142: 1955.97 | G142: 1916.18 | H142: 1883.17 | I142: 2028.77 | J142: 2061.78 | K142: 2101.57 | L142: 2022 | M142: 1949.2 | N142: 347000 | O142: -10.68%
A143: 133 | B143: Power | C143: TORNTPOWER | D143: 315.20 | E143: 310.27 | F143: 301.53 | G143: 287.87 | H143: 279.13 | I143: 323.93 | J143: 332.67 | K143: 346.33 | L143: 319 | M143: 296.6 | N143: 3951000 | O143: -0.98%
A144: 134 | B144: Automobile | C144: TVSMOTOR | D144: 459.10 | E144: 462.63 | F144: 447.77 | G144: 436.43 | H144: 421.57 | I144: 473.97 | J144: 488.83 | K144: 500.17 | L144: 477.5 | M144: 451.3 | N144: 4521150 | O144: -10.36%
A145: 135 | B145: FMCG | C145: UBL | D145: 1315.55 | E145: 1309.92 | F145: 1298.63 | G145: 1281.72 | H145: 1270.43 | I145: 1326.83 | J145: 1338.12 | K145: 1355.03 | L145: 1321.2 | M145: 1293 | N145: 1954400 | O145: 0.14%
A146: 136 | B146: Finance | C146: UJJIVAN | D146: 404.90 | E146: 400.60 | F146: 384.40 | G146: 363.90 | H146: 347.70 | I146: 421.10 | J146: 437.30 | K146: 457.80 | L146: 416.8 | M146: 380.1 | N146: 6922400 | O146: -0.68%
A147: 137 | B147: Cement | C147: ULTRACEMCO | D147: 4490.70 | E147: 4481.25 | F147: 4426.55 | G147: 4362.40 | H147: 4307.70 | I147: 4545.40 | J147: 4600.10 | K147: 4664.25 | L147: 4535.95 | M147: 4417.1 | N147: 2681200 | O147: 2.28%
A148: 138 | B148: Fertilisers | C148: UPL | D148: 538.65 | E148: 535.03 | F148: 526.27 | G148: 513.88 | H148: 505.12 | I148: 547.42 | J148: 556.18 | K148: 568.57 | L148: 543.8 | M148: 522.65 | N148: 15840000 | O148: -0.71%
A149: 139 | B149: Metals | C149: VEDL | D149: 143.85 | E149: 142.08 | F149: 139.67 | G149: 135.48 | H149: 133.07 | I149: 146.27 | J149: 148.68 | K149: 152.87 | L149: 144.5 | M149: 137.9 | N149: 87874500 | O149: 3.32%
A150: 140 | B150: Capital_Goods | C150: VOLTAS | D150: 695.80 | E150: 700.83 | F150: 683.27 | G150: 670.73 | H150: 653.17 | I150: 713.37 | J150: 730.93 | K150: 743.47 | L150: 718.4 | M150: 688.3 | N150: 4397000 | O150: 6.96%
A151: 141 | B151: Technology | C151: WIPRO | D151: 241.25 | E151: 240.08 | F151: 238.42 | G151: 235.58 | H151: 233.92 | I151: 242.92 | J151: 244.58 | K151: 247.42 | L151: 241.75 | M151: 237.25 | N151: 23059200 | O151: -0.88%
A152: 142 | B152: Banking | C152: YESBANK | D152: 32.75 | E152: 32.83 | F152: 29.57 | G152: 26.38 | H152: 23.12 | I152: 36.02 | J152: 39.28 | K152: 42.47 | L152: 36.1 | M152: 29.65 | N152: 307252000 | O152: 6.91%
A153: 143 | B153: Media | C153: ZEEL | D153: 228.05 | E153: 233.18 | F153: 215.57 | G153: 203.08 | H153: 185.47 | I153: 245.67 | J153: 263.28 | K153: 275.77 | L153: 250.8 | M153: 220.7 | N153: 29194100 | O153: 17.40%
A154: 144
A155: 145
A156: 146
A157: 147
A175: Pivot Point: This is trigger point for intra day buy/sell based on the price range of the previous day
A176: As per the tool,the trader should take BUY position just above Pivot and keep the stop loss of pivot point and the first target would be Resistance 1(R1)
A177: If R1 is crossed then R2 becomes the next target with stop loss of at R1
A178: Similarly if price goes below pivot point then the trader should sell and keep a stop loss of pivot point and the first target would be S1
A179: If S1 is crossed then S2 becomes the next target with stop loss of at S1
A181: Disclaimer:
A182: This document has been prepared by the Retail Research Desk of Asit C Mehta
A183: Investment Intermediates Ltd. and is meant for use of the recipient only
A184: and is not for circulation. This document is not to be reported or
A185: copied or made available to others. It should not be considered to be
A186: taken as an offer to sell or a solicitation to buy any security. The
A187: information contained herein is from sources believed reliable. We do
A188: not represent that it is accurate or complete and it should not be
A189: relied upon as such. We may from time to time have positions in and buy
A190: and sell securities referred to herein

Sheet Cash Intra
M5: Back to Main Page
A6: FOR INTRA DAY TRADING | K6: =Main!B10 -> 2020-02-05
A8: Sr.no | B8: Scrip | C8: CLOSE RATE | D8: Pivot Point | E8: Supports | H8: Resistances
C9: Point | E9: S1 | F9: S2 | G9: S3 | H9: R1 | I9: R2 | J9: R3 | K9: HIGH | L9: LOW | M9: Total Trade Quanity in Lakhs
A10: 1 | B10: Nifty 50 | C10: 12089.15 | D10: 12046.88 | E10: 11995.62 | F10: 11902.08 | G10: 11850.82 | H10: 12140.42 | I10: 12191.68 | J10: 12285.22 | K10: 12098.15 | L10: 11953.35
A11: 2 | B11: Nifty Bank | C11: 31001.95 | D11: 30899.55 | E11: 30733.25 | F11: 30464.55 | G11: 30298.25 | H11: 31168.25 | I11: 31334.55 | J11: 31603.25 | K11: 31065.85 | L11: 30630.85
A12: 3 | B12: Nifty CPSE | C12: 1686.9 | D12: 1691.20 | E12: 1676.50 | F12: 1666.10 | G12: 1651.40 | H12: 1701.60 | I12: 1716.30 | J12: 1726.70 | K12: 1705.9 | L12: 1680.8
A13: 4 | B13: Nifty Infra | C13: 3291.15 | D13: 3281.63 | E13: 3265.47 | F13: 3239.78 | G13: 3223.62 | H13: 3307.32 | I13: 3323.48 | J13: 3349.17 | K13: 3297.8 | L13: 3255.95
A14: 5 | B14: Nifty IT | C14: 16448.55 | D14: 16398.47 | E14: 16333.33 | F14: 16218.12 | G14: 16152.98 | H14: 16513.68 | I14: 16578.82 | J14: 16694.03 | K14: 16463.6 | L14: 16283.25
A15: 6 | B15: Nifty PSE | C15: 3047.85 | D15: 3040.90 | E15: 3019.60 | F15: 2991.35 | G15: 2970.05 | H15: 3069.15 | I15: 3090.45 | J15: 3118.70 | K15: 3062.2 | L15: 3012.65
A16: 7 | B16: Nifty Midcap 50 | C16: 4967.45 | D16: 4959.60 | E16: 4931.90 | F16: 4896.35 | G16: 4868.65 | H16: 4995.15 | I16: 5022.85 | J16: 5058.40 | K16: 4987.3 | L16: 4924.05
A17: 8 | B17: ACC | C17: 1469.8 | D17: 1476.53 | E17: 1456.57 | F17: 1443.33 | G17: 1423.37 | H17: 1489.77 | I17: 1509.73 | J17: 1522.97 | K17: 1496.5 | L17: 1463.3 | M17: 5.14199
A18: 9 | B18: AUBANK | C18: 1095.65 | D18: 1096.42 | E18: 1050.08 | F18: 1004.52 | G18: 958.18 | H18: 1141.98 | I18: 1188.32 | J18: 1233.88 | K18: 1142.75 | L18: 1050.85 | M18: 4.21839
A19: 10 | B19: ADANIPORTS | C19: 366.6 | D19: 366.73 | E19: 360.97 | F19: 355.33 | G19: 349.57 | H19: 372.37 | I19: 378.13 | J19: 383.77 | K19: 372.5 | L19: 361.1 | M19: 29.12256
A20: 11 | B20: ADANIPOWER | C20: 62 | D20: 61.72 | E20: 60.78 | F20: 59.57 | G20: 58.63 | H20: 62.93 | I20: 63.87 | J20: 65.08 | K20: 62.65 | L20: 60.5 | M20: 57.54033
A21: 12 | B21: ABCAPITAL | C21: 95.8 | D21: 96.13 | E21: 94.82 | F21: 93.83 | G21: 92.52 | H21: 97.12 | I21: 98.43 | J21: 99.42 | K21: 97.45 | L21: 95.15 | M21: 21.59998
A22: 13 | B22: ABFRL | C22: 238.65 | D22: 238.08 | E22: 228.37 | F22: 218.08 | G22: 208.37 | H22: 248.37 | I22: 258.08 | J22: 268.37 | K22: 247.8 | L22: 227.8 | M22: 2.71489
A23: 14 | B23: AJANTPHARM | C23: 1197.1 | D23: 1200.70 | E23: 1174.40 | F23: 1151.70 | G23: 1125.40 | H23: 1223.40 | I23: 1249.70 | J23: 1272.40 | K23: 1227 | L23: 1178 | M23: 0.73403
A24: 15 | B24: ALKEM | C24: 2387.25 | D24: 2388.08 | E24: 2366.17 | F24: 2345.08 | G24: 2323.17 | H24: 2409.17 | I24: 2431.08 | J24: 2452.17 | K24: 2410 | L24: 2367 | M24: 1.31984
A25: 16 | B25: AMARAJABAT | C25: 784.75 | D25: 785.75 | E25: 775.55 | F25: 766.35 | G25: 756.15 | H25: 794.95 | I25: 805.15 | J25: 814.35 | K25: 795.95 | L25: 776.55 | M25: 5.92956
A26: 17 | B26: AMBUJACEM | C26: 206.4 | D26: 206.78 | E26: 204.82 | F26: 203.23 | G26: 201.27 | H26: 208.37 | I26: 210.33 | J26: 211.92 | K26: 208.75 | L26: 205.2 | M26: 29.06515
A27: 18 | B27: APOLLOHOSP | C27: 1657.45 | D27: 1662.82 | E27: 1644.63 | F27: 1631.82 | G27: 1613.63 | H27: 1675.63 | I27: 1693.82 | J27: 1706.63 | K27: 1681 | L27: 1650 | M27: 3.77299
A28: 19 | B28: APOLLOTYRE | C28: 168.4 | D28: 166.50 | E28: 163.40 | F28: 158.40 | G28: 155.30 | H28: 171.50 | I28: 174.60 | J28: 179.60 | K28: 169.6 | L28: 161.5 | M28: 20.59074
A29: 20 | B29: ASHOKLEY | C29: 80.35 | D29: 80.58 | E29: 78.87 | F29: 77.38 | G29: 75.67 | H29: 82.07 | I29: 83.78 | J29: 85.27 | K29: 82.3 | L29: 79.1 | M29: 119.77376
A30: 21 | B30: ASIANPAINT | C30: 1873.5 | D30: 1876.55 | E30: 1863.10 | F30: 1852.70 | G30: 1839.25 | H30: 1886.95 | I30: 1900.40 | J30: 1910.80 | K30: 1890 | L30: 1866.15 | M30: 11.69614
A31: 22 | B31: AUROPHARMA | C31: 508 | D31: 504.67 | E31: 498.43 | F31: 488.87 | G31: 482.63 | H31: 514.23 | I31: 520.47 | J31: 530.03 | K31: 510.9 | L31: 495.1 | M31: 31.79653
A32: 23 | B32: DMART | C32: 2248.9 | D32: 2227.63 | E32: 2181.27 | F32: 2113.63 | G32: 2067.27 | H32: 2295.27 | I32: 2341.63 | J32: 2409.27 | K32: 2274 | L32: 2160 | M32: 15.72997
A33: 24 | B33: AXISBANK | C33: 724.05 | D33: 721.63 | E33: 717.62 | F33: 711.18 | G33: 707.17 | H33: 728.07 | I33: 732.08 | J33: 738.52 | K33: 725.65 | L33: 715.2 | M33: 83.45819
A34: 25 | B34: BAJAJ-AUTO | C34: 3161.5 | D34: 3177.47 | E34: 3134.03 | F34: 3106.57 | G34: 3063.13 | H34: 3204.93 | I34: 3248.37 | J34: 3275.83 | K34: 3220.9 | L34: 3150 | M34: 11.41144
A35: 26 | B35: BAJFINANCE | C35: 4528.2 | D35: 4515.27 | E35: 4490.58 | F35: 4452.97 | G35: 4428.28 | H35: 4552.88 | I35: 4577.57 | J35: 4615.18 | K35: 4539.95 | L35: 4477.65 | M35: 17.36927
A36: 27 | B36: BAJAJFINSV | C36: 9591.4 | D36: 9577.70 | E36: 9471.40 | F36: 9351.40 | G36: 9245.10 | H36: 9697.70 | I36: 9804.00 | J36: 9924.00 | K36: 9684 | L36: 9457.7 | M36: 3.29541
A37: 28 | B37: BAJAJHLDNG | C37: 3865.5 | D37: 3848.57 | E37: 3747.13 | F37: 3628.77 | G37: 3527.33 | H37: 3966.93 | I37: 4068.37 | J37: 4186.73 | K37: 3950 | L37: 3730.2 | M37: 0.80743
A38: 29 | B38: BALKRISIND | C38: 1100.45 | D38: 1111.20 | E38: 1081.45 | F38: 1062.45 | G38: 1032.70 | H38: 1130.20 | I38: 1159.95 | J38: 1178.95 | K38: 1140.95 | L38: 1092.2 | M38: 2.71802
A39: 30 | B39: BANDHANBNK | C39: 429.2 | D39: 432.20 | E39: 424.50 | F39: 419.80 | G39: 412.10 | H39: 436.90 | I39: 444.60 | J39: 449.30 | K39: 439.9 | L39: 427.5 | M39: 27.62309
A40: 31 | B40: BANKBARODA | C40: 88.15 | D40: 87.95 | E40: 87.20 | F40: 86.25 | G40: 85.50 | H40: 88.90 | I40: 89.65 | J40: 90.60 | K40: 88.7 | L40: 87 | M40: 224.98038
A41: 32 | B41: BANKINDIA | C41: 65.05 | D41: 65.32 | E41: 64.33 | F41: 63.62 | G41: 62.63 | H41: 66.03 | I41: 67.02 | J41: 67.73 | K41: 66.3 | L41: 64.6 | M41: 67.267
A42: 33 | B42: BATAINDIA | C42: 1872.8 | D42: 1869.90 | E42: 1859.90 | F42: 1847.00 | G42: 1837.00 | H42: 1882.80 | I42: 1892.80 | J42: 1905.70 | K42: 1879.9 | L42: 1857 | M42: 2.78726
A43: 34 | B43: BERGEPAINT | C43: 588.65 | D43: 589.27 | E43: 581.53 | F43: 574.42 | G43: 566.68 | H43: 596.38 | I43: 604.12 | J43: 611.23 | K43: 597 | L43: 582.15 | M43: 12.10461
A44: 35 | B44: BEL | C44: 86.9 | D44: 86.53 | E44: 84.92 | F44: 82.93 | G44: 81.32 | H44: 88.52 | I44: 90.13 | J44: 92.12 | K44: 88.15 | L44: 84.55 | M44: 565.82665
A45: 36 | B45: BHARATFORG | C45: 508.95 | D45: 508.12 | E45: 497.83 | F45: 486.72 | G45: 476.43 | H45: 519.23 | I45: 529.52 | J45: 540.63 | K45: 518.4 | L45: 497 | M45: 7.00915
A46: 37 | B46: BHEL | C46: 39.6 | D46: 39.78 | E46: 39.07 | F46: 38.53 | G46: 37.82 | H46: 40.32 | I46: 41.03 | J46: 41.57 | K46: 40.5 | L46: 39.25 | M46: 140.87306
A47: 38 | B47: BPCL | C47: 501.7 | D47: 495.88 | E47: 483.82 | F47: 465.93 | G47: 453.87 | H47: 513.77 | I47: 525.83 | J47: 543.72 | K47: 507.95 | L47: 478 | M47: 69.46475
A48: 39 | B48: BHARTIARTL | C48: 533.35 | D48: 528.88 | E48: 520.27 | F48: 507.18 | G48: 498.57 | H48: 541.97 | I48: 550.58 | J48: 563.67 | K48: 537.5 | L48: 515.8 | M48: 180.17965
A49: 40 | B49: INFRATEL | C49: 246.05 | D49: 245.68 | E49: 240.37 | F49: 234.68 | G49: 229.37 | H49: 251.37 | I49: 256.68 | J49: 262.37 | K49: 251 | L49: 240 | M49: 58.11965
A50: 41 | B50: BIOCON | C50: 295.25 | D50: 293.90 | E50: 289.45 | F50: 283.65 | G50: 279.20 | H50: 299.70 | I50: 304.15 | J50: 309.95 | K50: 298.35 | L50: 288.1 | M50: 19.49668
A51: 42 | B51: BBTC | C51: 1147.9 | D51: 1156.42 | E51: 1131.48 | F51: 1115.07 | G51: 1090.13 | H51: 1172.83 | I51: 1197.77 | J51: 1214.18 | K51: 1181.35 | L51: 1140 | M51: 0.58867
A52: 43 | B52: BOSCHLTD | C52: 13793.7 | D52: 13929.57 | E52: 13419.13 | F52: 13044.57 | G52: 12534.13 | H52: 14304.13 | I52: 14814.57 | J52: 15189.13 | K52: 14440 | L52: 13555 | M52: 0.24677
A53: 44 | B53: BRITANNIA | C53: 3255.95 | D53: 3272.55 | E53: 3227.10 | F53: 3198.25 | G53: 3152.80 | H53: 3301.40 | I53: 3346.85 | J53: 3375.70 | K53: 3318 | L53: 3243.7 | M53: 4.6885
A54: 45 | B54: CESC | C54: 723.65 | D54: 721.53 | E54: 714.92 | F54: 706.18 | G54: 699.57 | H54: 730.27 | I54: 736.88 | J54: 745.62 | K54: 728.15 | L54: 712.8 | M54: 3.39974
A55: 46 | B55: CADILAHC | C55: 271.65 | D55: 270.38 | E55: 266.27 | F55: 260.88 | G55: 256.77 | H55: 275.77 | I55: 279.88 | J55: 285.27 | K55: 274.5 | L55: 265 | M55: 11.03855
A56: 47 | B56: CANBK | C56: 184 | D56: 184.97 | E56: 181.93 | F56: 179.87 | G56: 176.83 | H56: 187.03 | I56: 190.07 | J56: 192.13 | K56: 188 | L56: 182.9 | M56: 70.14346
A57: 48 | B57: CASTROLIND | C57: 147.55 | D57: 149.08 | E57: 144.27 | F57: 140.98 | G57: 136.17 | H57: 152.37 | I57: 157.18 | J57: 160.47 | K57: 153.9 | L57: 145.8 | M57: 34.61075
A58: 49 | B58: CHOLAFIN | C58: 342.65 | D58: 341.12 | E58: 334.63 | F58: 326.62 | G58: 320.13 | H58: 349.13 | I58: 355.62 | J58: 363.63 | K58: 347.6 | L58: 333.1 | M58: 16.87153
A59: 50 | B59: CIPLA | C59: 447.55 | D59: 448.07 | E59: 436.98 | F59: 426.42 | G59: 415.33 | H59: 458.63 | I59: 469.72 | J59: 480.28 | K59: 459.15 | L59: 437.5 | M59: 21.84609
A60: 51 | B60: CUB | C60: 229.85 | D60: 229.92 | E60: 228.63 | F60: 227.42 | G60: 226.13 | H60: 231.13 | I60: 232.42 | J60: 233.63 | K60: 231.2 | L60: 228.7 | M60: 10.62871
A61: 52 | B61: COALINDIA | C61: 179.25 | D61: 180.58 | E61: 177.17 | F61: 175.08 | G61: 171.67 | H61: 182.67 | I61: 186.08 | J61: 188.17 | K61: 184 | L61: 178.5 | M61: 352.81395
A62: 53 | B62: COLPAL | C62: 1372.5 | D62: 1371.63 | E62: 1363.47 | F62: 1354.43 | G62: 1346.27 | H62: 1380.67 | I62: 1388.83 | J62: 1397.87 | K62: 1379.8 | L62: 1362.6 | M62: 24.53672
A63: 54 | B63: CONCOR | C63: 594.5 | D63: 582.17 | E63: 564.33 | F63: 534.17 | G63: 516.33 | H63: 612.33 | I63: 630.17 | J63: 660.33 | K63: 600 | L63: 552 | M63: 6.92547
A64: 55 | B64: COROMANDEL | C64: 619.75 | D64: 620.58 | E64: 611.17 | F64: 602.58 | G64: 593.17 | H64: 629.17 | I64: 638.58 | J64: 647.17 | K64: 630 | L64: 612 | M64: 7.17405
A65: 56 | B65: CROMPTON | C65: 288.7 | D65: 287.93 | E65: 283.87 | F65: 279.03 | G65: 274.97 | H65: 292.77 | I65: 296.83 | J65: 301.67 | K65: 292 | L65: 283.1 | M65: 30.8845
A66: 57 | B66: CUMMINSIND | C66: 570.4 | D66: 572.32 | E66: 564.13 | F66: 557.87 | G66: 549.68 | H66: 578.58 | I66: 586.77 | J66: 593.03 | K66: 580.5 | L66: 566.05 | M66: 9.9194
A67: 58 | B67: DLF | C67: 253.45 | D67: 251.63 | E67: 247.47 | F67: 241.48 | G67: 237.32 | H67: 257.62 | I67: 261.78 | J67: 267.77 | K67: 255.8 | L67: 245.65 | M67: 108.10838
A68: 59 | B68: DABUR | C68: 511.15 | D68: 509.22 | E68: 505.43 | F68: 499.72 | G68: 495.93 | H68: 514.93 | I68: 518.72 | J68: 524.43 | K68: 513 | L68: 503.5 | M68: 74.62427
A69: 60 | B69: DALBHARAT | C69: 885.25 | D69: 888.37 | E69: 871.98 | F69: 858.72 | G69: 842.33 | H69: 901.63 | I69: 918.02 | J69: 931.28 | K69: 904.75 | L69: 875.1 | M69: 1.62129
A70: 61 | B70: DIVISLAB | C70: 1962.65 | D70: 1966.28 | E70: 1942.57 | F70: 1922.48 | G70: 1898.77 | H70: 1986.37 | I70: 2010.08 | J70: 2030.17 | K70: 1990 | L70: 1946.2 | M70: 3.22232
A71: 62 | B71: DRREDDY | C71: 3133.35 | D71: 3168.35 | E71: 3086.70 | F71: 3040.05 | G71: 2958.40 | H71: 3215.00 | I71: 3296.65 | J71: 3343.30 | K71: 3250 | L71: 3121.7 | M71: 6.68235
A72: 63 | B72: EDELWEISS | C72: 88.6 | D72: 88.88 | E72: 87.27 | F72: 85.93 | G72: 84.32 | H72: 90.22 | I72: 91.83 | J72: 93.17 | K72: 90.5 | L72: 87.55 | M72: 7.90032
A73: 64 | B73: EICHERMOT | C73: 19487.05 | D73: 19547.72 | E73: 19295.43 | F73: 19103.82 | G73: 18851.53 | H73: 19739.33 | I73: 19991.62 | J73: 20183.23 | K73: 19800 | L73: 19356.1 | M73: 1.02123
A74: 65 | B74: EMAMILTD | C74: 307.1 | D74: 306.57 | E74: 301.78 | F74: 296.47 | G74: 291.68 | H74: 311.88 | I74: 316.67 | J74: 321.98 | K74: 311.35 | L74: 301.25 | M74: 25.57313
A75: 66 | B75: ENDURANCE | C75: 1109 | D75: 1103.00 | E75: 1077.10 | F75: 1045.20 | G75: 1019.30 | H75: 1134.90 | I75: 1160.80 | J75: 1192.70 | K75: 1128.9 | L75: 1071.1 | M75: 0.47896
A76: 67 | B76: ENGINERSIN | C76: 94.55 | D76: 94.47 | E76: 92.68 | F76: 90.82 | G76: 89.03 | H76: 96.33 | I76: 98.12 | J76: 99.98 | K76: 96.25 | L76: 92.6 | M76: 17.04006
A77: 68 | B77: ESCORTS | C77: 855.3 | D77: 853.22 | E77: 840.63 | F77: 825.97 | G77: 813.38 | H77: 867.88 | I77: 880.47 | J77: 895.13 | K77: 865.8 | L77: 838.55 | M77: 70.11082
A78: 69 | B78: EXIDEIND | C78: 185.65 | D78: 185.07 | E78: 179.13 | F78: 172.62 | G78: 166.68 | H78: 191.58 | I78: 197.52 | J78: 204.03 | K78: 191 | L78: 178.55 | M78: 14.66191
A79: 70 | B79: FEDERALBNK | C79: 90.85 | D79: 90.35 | E79: 89.70 | F79: 88.55 | G79: 87.90 | H79: 91.50 | I79: 92.15 | J79: 93.30 | K79: 91 | L79: 89.2 | M79: 102.70614
A80: 71 | B80: FORTIS | C80: 156.8 | D80: 156.13 | E80: 154.67 | F80: 152.53 | G80: 151.07 | H80: 158.27 | I80: 159.73 | J80: 161.87 | K80: 157.6 | L80: 154 | M80: 19.33119
A81: 72 | B81: FCONSUMER | C81: 22.55 | D81: 22.48 | E81: 21.92 | F81: 21.28 | G81: 20.72 | H81: 23.12 | I81: 23.68 | J81: 24.32 | K81: 23.05 | L81: 21.85 | M81: 15.70645
A82: 73 | B82: FRETAIL | C82: 328.45 | D82: 328.02 | E82: 324.53 | F82: 320.62 | G82: 317.13 | H82: 331.93 | I82: 335.42 | J82: 339.33 | K82: 331.5 | L82: 324.1 | M82: 10.27307
A83: 74 | B83: GAIL | C83: 120.95 | D83: 120.15 | E83: 118.80 | F83: 116.65 | G83: 115.30 | H83: 122.30 | I83: 123.65 | J83: 125.80 | K83: 121.5 | L83: 118 | M83: 153.91445
A84: 75 | B84: GMRINFRA | C84: 22.9 | D84: 22.67 | E84: 22.33 | F84: 21.77 | G84: 21.43 | H84: 23.23 | I84: 23.57 | J84: 24.13 | K84: 23 | L84: 22.1 | M84: 105.71558
A85: 76 | B85: GICRE | C85: 255.1 | D85: 252.88 | E85: 247.32 | F85: 239.53 | G85: 233.97 | H85: 260.67 | I85: 266.23 | J85: 274.02 | K85: 258.45 | L85: 245.1 | M85: 2.09376
A86: 77 | B86: GLENMARK | C86: 319 | D86: 316.33 | E86: 312.57 | F86: 306.13 | G86: 302.37 | H86: 322.77 | I86: 326.53 | J86: 332.97 | K86: 320.1 | L86: 309.9 | M86: 26.37001
A87: 78 | B87: GODREJAGRO | C87: 577.8 | D87: 579.23 | E87: 568.57 | F87: 559.33 | G87: 548.67 | H87: 588.47 | I87: 599.13 | J87: 608.37 | K87: 589.9 | L87: 570 | M87: 0.4871
A88: 79 | B88: GODREJCP | C88: 661.35 | D88: 658.25 | E88: 652.65 | F88: 643.95 | G88: 638.35 | H88: 666.95 | I88: 672.55 | J88: 681.25 | K88: 663.85 | L88: 649.55 | M88: 18.59249
A89: 80 | B89: GODREJIND | C89: 415.1 | D89: 414.63 | E89: 406.12 | F89: 397.13 | G89: 388.62 | H89: 423.62 | I89: 432.13 | J89: 441.12 | K89: 423.15 | L89: 405.65 | M89: 0.88259
A90: 81 | B90: GODREJPROP | C90: 1151.4 | D90: 1144.32 | E90: 1099.38 | F90: 1047.37 | G90: 1002.43 | H90: 1196.33 | I90: 1241.27 | J90: 1293.28 | K90: 1189.25 | L90: 1092.3 | M90: 1.78002
A91: 82 | B91: GRAPHITE | C91: 303.1 | D91: 302.37 | E91: 299.88 | F91: 296.67 | G91: 294.18 | H91: 305.58 | I91: 308.07 | J91: 311.28 | K91: 304.85 | L91: 299.15 | M91: 8.51755
A92: 83 | B92: GRASIM | C92: 799.9 | D92: 796.68 | E92: 791.27 | F92: 782.63 | G92: 777.22 | H92: 805.32 | I92: 810.73 | J92: 819.37 | K92: 802.1 | L92: 788.05 | M92: 12.99292
A93: 84 | B93: GSPL | C93: 241.25 | D93: 241.45 | E93: 236.40 | F93: 231.55 | G93: 226.50 | H93: 246.30 | I93: 251.35 | J93: 256.20 | K93: 246.5 | L93: 236.6 | M93: 4.26398
A94: 85 | B94: HEG | C94: 1086.85 | D94: 1077.68 | E94: 1055.37 | F94: 1023.88 | G94: 1001.57 | H94: 1109.17 | I94: 1131.48 | J94: 1162.97 | K94: 1100 | L94: 1046.2 | M94: 1.68582
A95: 86 | B95: HCLTECH | C95: 595.6 | D95: 593.37 | E95: 588.23 | F95: 580.87 | G95: 575.73 | H95: 600.73 | I95: 605.87 | J95: 613.23 | K95: 598.5 | L95: 586 | M95: 35.90768
A96: 87 | B96: HDFCAMC | C96: 3189.8 | D96: 3198.27 | E96: 3166.53 | F96: 3143.27 | G96: 3111.53 | H96: 3221.53 | I96: 3253.27 | J96: 3276.53 | K96: 3230 | L96: 3175 | M96: 1.96125
A97: 88 | B97: HDFCBANK | C97: 1244.65 | D97: 1239.98 | E97: 1231.97 | F97: 1219.28 | G97: 1211.27 | H97: 1252.67 | I97: 1260.68 | J97: 1273.37 | K97: 1248 | L97: 1227.3 | M97: 55.89134
A98: 89 | B98: HDFCLIFE | C98: 583.45 | D98: 578.27 | E98: 570.18 | F98: 556.92 | G98: 548.83 | H98: 591.53 | I98: 599.62 | J98: 612.88 | K98: 586.35 | L98: 565 | M98: 12.60667
A99: 90 | B99: HAVELLS | C99: 621.1 | D99: 620.60 | E99: 611.20 | F99: 601.30 | G99: 591.90 | H99: 630.50 | I99: 639.90 | J99: 649.80 | K99: 630 | L99: 610.7 | M99: 11.71667
A100: 91 | B100: HEROMOTOCO | C100: 2373.25 | D100: 2399.23 | E100: 2319.57 | F100: 2265.88 | G100: 2186.22 | H100: 2452.92 | I100: 2532.58 | J100: 2586.27 | K100: 2478.9 | L100: 2345.55 | M100: 5.74957
A101: 92 | B101: HEXAWARE | C101: 371.25 | D101: 372.10 | E101: 366.15 | F101: 361.05 | G101: 355.10 | H101: 377.20 | I101: 383.15 | J101: 388.25 | K101: 378.05 | L101: 367 | M101: 3.23817
A102: 93 | B102: HINDALCO | C102: 196.3 | D102: 194.05 | E102: 190.55 | F102: 184.80 | G102: 181.30 | H102: 199.80 | I102: 203.30 | J102: 209.05 | K102: 197.55 | L102: 188.3 | M102: 60.08376
A103: 94 | B103: HINDPETRO | C103: 236.95 | D103: 236.20 | E103: 233.25 | F103: 229.55 | G103: 226.60 | H103: 239.90 | I103: 242.85 | J103: 246.55 | K103: 239.15 | L103: 232.5 | M103: 45.95587
A104: 95 | B104: HINDUNILVR | C104: 2160.3 | D104: 2166.07 | E104: 2148.13 | F104: 2135.97 | G104: 2118.03 | H104: 2178.23 | I104: 2196.17 | J104: 2208.33 | K104: 2184 | L104: 2153.9 | M104: 19.30834
A105: 96 | B105: HINDZINC | C105: 190.75 | D105: 191.73 | E105: 188.52 | F105: 186.28 | G105: 183.07 | H105: 193.97 | I105: 197.18 | J105: 199.42 | K105: 194.95 | L105: 189.5 | M105: 7.24986
A106: 97 | B106: HUDCO | C106: 37.85 | D106: 38.05 | E106: 37.50 | F106: 37.15 | G106: 36.60 | H106: 38.40 | I106: 38.95 | J106: 39.30 | K106: 38.6 | L106: 37.7 | M106: 10.06963
A107: 98 | B107: HDFC | C107: 2391.65 | D107: 2371.12 | E107: 2346.73 | F107: 2301.82 | G107: 2277.43 | H107: 2416.03 | I107: 2440.42 | J107: 2485.33 | K107: 2395.5 | L107: 2326.2 | M107: 28.28509
A108: 99 | B108: ICICIBANK | C108: 539.1 | D108: 535.07 | E108: 529.73 | F108: 520.37 | G108: 515.03 | H108: 544.43 | I108: 549.77 | J108: 559.13 | K108: 540.4 | L108: 525.7 | M108: 162.92578
A109: 100 | B109: ICICIGI | C109: 1336.3 | D109: 1331.83 | E109: 1315.47 | F109: 1294.63 | G109: 1278.27 | H109: 1352.67 | I109: 1369.03 | J109: 1389.87 | K109: 1348.2 | L109: 1311 | M109: 2.01621
A110: 101 | B110: ICICIPRULI | C110: 477.3 | D110: 476.07 | E110: 470.13 | F110: 462.97 | G110: 457.03 | H110: 483.23 | I110: 489.17 | J110: 496.33 | K110: 482 | L110: 468.9 | M110: 10.53162
A111: 102 | B111: IDBI | C111: 34.25 | D111: 34.40 | E111: 33.95 | F111: 33.65 | G111: 33.20 | H111: 34.70 | I111: 35.15 | J111: 35.45 | K111: 34.85 | L111: 34.1 | M111: 6.52812
A112: 103 | B112: IDFCFIRSTB | C112: 41.05 | D112: 41.03 | E112: 40.47 | F112: 39.88 | G112: 39.32 | H112: 41.62 | I112: 42.18 | J112: 42.77 | K112: 41.6 | L112: 40.45 | M112: 209.67183
A113: 104 | B113: ITC | C113: 216.45 | D113: 215.15 | E113: 212.80 | F113: 209.15 | G113: 206.80 | H113: 218.80 | I113: 221.15 | J113: 224.80 | K113: 217.5 | L113: 211.5 | M113: 184.5588
A114: 105 | B114: IBULHSGFIN | C114: 276.7 | D114: 277.45 | E114: 270.75 | F114: 264.80 | G114: 258.10 | H114: 283.40 | I114: 290.10 | J114: 296.05 | K114: 284.15 | L114: 271.5 | M114: 169.75776
A115: 106 | B115: IBVENTURES | C115: 158.95 | D115: 161.23 | E115: 155.47 | F115: 151.98 | G115: 146.22 | H115: 164.72 | I115: 170.48 | J115: 173.97 | K115: 167 | L115: 157.75 | M115: 38.76523
A116: 107 | B116: INDIANB | C116: 95.4 | D116: 95.83 | E116: 94.27 | F116: 93.13 | G116: 91.57 | H116: 96.97 | I116: 98.53 | J116: 99.67 | K116: 97.4 | L116: 94.7 | M116: 14.06266
A117: 108 | B117: INDHOTEL | C117: 140.15 | D117: 140.28 | E117: 139.07 | F117: 137.98 | G117: 136.77 | H117: 141.37 | I117: 142.58 | J117: 143.67 | K117: 141.5 | L117: 139.2 | M117: 7.1894
A118: 109 | B118: IOC | C118: 114.7 | D118: 114.82 | E118: 113.78 | F118: 112.87 | G118: 111.83 | H118: 115.73 | I118: 116.77 | J118: 117.68 | K118: 115.85 | L118: 113.9 | M118: 367.42641
A119: 110 | B119: IGL | C119: 514.55 | D119: 514.53 | E119: 509.32 | F119: 504.08 | G119: 498.87 | H119: 519.77 | I119: 524.98 | J119: 530.22 | K119: 519.75 | L119: 509.3 | M119: 21.83118
A120: 111 | B120: INDUSINDBK | C120: 1272.8 | D120: 1275.55 | E120: 1262.45 | F120: 1252.10 | G120: 1239.00 | H120: 1285.90 | I120: 1299.00 | J120: 1309.35 | K120: 1288.65 | L120: 1265.2 | M120: 83.91172
A121: 112 | B121: NAUKRI | C121: 2987.3 | D121: 2982.10 | E121: 2940.20 | F121: 2893.10 | G121: 2851.20 | H121: 3029.20 | I121: 3071.10 | J121: 3118.20 | K121: 3024 | L121: 2935 | M121: 2.45742
A122: 113 | B122: INFY | C122: 784.55 | D122: 781.65 | E122: 777.30 | F122: 770.05 | G122: 765.70 | H122: 788.90 | I122: 793.25 | J122: 800.50 | K122: 786 | L122: 774.4 | M122: 60.92028
A123: 114 | B123: INDIGO | C123: 1450.35 | D123: 1437.47 | E123: 1419.93 | F123: 1389.52 | G123: 1371.98 | H123: 1467.88 | I123: 1485.42 | J123: 1515.83 | K123: 1455 | L123: 1407.05 | M123: 18.09304
A124: 115 | B124: IPCALAB | C124: 1217.75 | D124: 1207.32 | E124: 1189.73 | F124: 1161.72 | G124: 1144.13 | H124: 1235.33 | I124: 1252.92 | J124: 1280.93 | K124: 1224.9 | L124: 1179.3 | M124: 0.82039
A125: 116 | B125: JSWENERGY | C125: 61.9 | D125: 62.80 | E125: 60.60 | F125: 59.30 | G125: 57.10 | H125: 64.10 | I125: 66.30 | J125: 67.60 | K125: 65 | L125: 61.5 | M125: 3.42262
A126: 117 | B126: JSWSTEEL | C126: 269.25 | D126: 265.75 | E126: 259.85 | F126: 250.45 | G126: 244.55 | H126: 275.15 | I126: 281.05 | J126: 290.45 | K126: 271.65 | L126: 256.35 | M126: 63.29214
A127: 118 | B127: JINDALSTEL | C127: 190.1 | D127: 188.32 | E127: 183.68 | F127: 177.27 | G127: 172.63 | H127: 194.73 | I127: 199.37 | J127: 205.78 | K127: 192.95 | L127: 181.9 | M127: 152.07085
A128: 119 | B128: JUBLFOOD | C128: 1942.65 | D128: 1943.93 | E128: 1924.92 | F128: 1907.18 | G128: 1888.17 | H128: 1961.67 | I128: 1980.68 | J128: 1998.42 | K128: 1962.95 | L128: 1926.2 | M128: 22.23606
A129: 120 | B129: JUBILANT | C129: 576.8 | D129: 576.52 | E129: 565.03 | F129: 553.27 | G129: 541.78 | H129: 588.28 | I129: 599.77 | J129: 611.53 | K129: 588 | L129: 564.75 | M129: 4.33124
A130: 121 | B130: KOTAKBANK | C130: 1689.75 | D130: 1691.43 | E130: 1675.42 | F130: 1661.08 | G130: 1645.07 | H130: 1705.77 | I130: 1721.78 | J130: 1736.12 | K130: 1707.45 | L130: 1677.1 | M130: 94.95046
A131: 122 | B131: L&TFH | C131: 118.45 | D131: 117.32 | E131: 115.33 | F131: 112.22 | G131: 110.23 | H131: 120.43 | I131: 122.42 | J131: 125.53 | K131: 119.3 | L131: 114.2 | M131: 77.86477
A132: 123 | B132: LTTS | C132: 1695 | D132: 1696.65 | E132: 1678.35 | F132: 1661.70 | G132: 1643.40 | H132: 1713.30 | I132: 1731.60 | J132: 1748.25 | K132: 1714.95 | L132: 1680 | M132: 0.39962
A133: 124 | B133: LICHSGFIN | C133: 404.75 | D133: 399.63 | E133: 391.47 | F133: 378.18 | G133: 370.02 | H133: 412.92 | I133: 421.08 | J133: 434.37 | K133: 407.8 | L133: 386.35 | M133: 75.80796
A134: 125 | B134: LTI | C134: 1924.7 | D134: 1934.80 | E134: 1909.10 | F134: 1893.50 | G134: 1867.80 | H134: 1950.40 | I134: 1976.10 | J134: 1991.70 | K134: 1960.5 | L134: 1919.2 | M134: 0.36496
A135: 126 | B135: LT | C135: 1310.05 | D135: 1310.02 | E135: 1295.03 | F135: 1280.02 | G135: 1265.03 | H135: 1325.03 | I135: 1340.02 | J135: 1355.03 | K135: 1325 | L135: 1295 | M135: 39.39306
A136: 127 | B136: LUPIN | C136: 722.5 | D136: 721.95 | E136: 717.05 | F136: 711.60 | G136: 706.70 | H136: 727.40 | I136: 732.30 | J136: 737.75 | K136: 726.85 | L136: 716.5 | M136: 11.17946
A137: 128 | B137: MRF | C137: 72390.8 | D137: 72545.55 | E137: 71525.40 | F137: 70660.00 | G137: 69639.85 | H137: 73410.95 | I137: 74431.10 | J137: 75296.50 | K137: 73565.7 | L137: 71680.15 | M137: 0.04805
A138: 129 | B138: MGL | C138: 1191.65 | D138: 1197.35 | E138: 1180.45 | F138: 1169.25 | G138: 1152.35 | H138: 1208.55 | I138: 1225.45 | J138: 1236.65 | K138: 1214.25 | L138: 1186.15 | M138: 13.51299
A139: 130 | B139: M&MFIN | C139: 387.85 | D139: 382.92 | E139: 372.93 | F139: 358.02 | G139: 348.03 | H139: 397.83 | I139: 407.82 | J139: 422.73 | K139: 392.9 | L139: 368 | M139: 23.06322
A140: 131 | B140: M&M | C140: 584.35 | D140: 583.87 | E140: 577.88 | F140: 571.42 | G140: 565.43 | H140: 590.33 | I140: 596.32 | J140: 602.78 | K140: 589.85 | L140: 577.4 | M140: 23.52196
A141: 132 | B141: MANAPPURAM | C141: 168.75 | D141: 170.47 | E141: 164.98 | F141: 161.22 | G141: 155.73 | H141: 174.23 | I141: 179.72 | J141: 183.48 | K141: 175.95 | L141: 166.7 | M141: 28.02932
A142: 133 | B142: MRPL | C142: 42.7 | D142: 42.65 | E142: 42.30 | F142: 41.90 | G142: 41.55 | H142: 43.05 | I142: 43.40 | J142: 43.80 | K142: 43 | L142: 42.25 | M142: 8.09305
A143: 134 | B143: MARICO | C143: 311.6 | D143: 308.55 | E143: 302.25 | F143: 292.90 | G143: 286.60 | H143: 317.90 | I143: 324.20 | J143: 333.55 | K143: 314.85 | L143: 299.2 | M143: 69.41813
A144: 135 | B144: MARUTI | C144: 7040.9 | D144: 7099.37 | E144: 6967.13 | F144: 6893.37 | G144: 6761.13 | H144: 7173.13 | I144: 7305.37 | J144: 7379.13 | K144: 7231.6 | L144: 7025.6 | M144: 8.68935
A145: 136 | B145: MFSL | C145: 483.7 | D145: 483.68 | E145: 475.37 | F145: 467.03 | G145: 458.72 | H145: 492.02 | I145: 500.33 | J145: 508.67 | K145: 492 | L145: 475.35 | M145: 16.72907
A146: 137 | B146: MINDTREE | C146: 909.75 | D146: 910.68 | E146: 901.52 | F146: 893.28 | G146: 884.12 | H146: 918.92 | I146: 928.08 | J146: 936.32 | K146: 919.85 | L146: 902.45 | M146: 4.76824
A147: 138 | B147: MOTHERSUMI | C147: 135.35 | D147: 134.33 | E147: 131.92 | F147: 128.48 | G147: 126.07 | H147: 137.77 | I147: 140.18 | J147: 143.62 | K147: 136.75 | L147: 130.9 | M147: 275.35769
A148: 139 | B148: MPHASIS | C148: 920.95 | D148: 919.40 | E148: 914.90 | F148: 908.85 | G148: 904.35 | H148: 925.45 | I148: 929.95 | J148: 936.00 | K148: 923.9 | L148: 913.35 | M148: 0.51751
A149: 140 | B149: MUTHOOTFIN | C149: 759.65 | D149: 765.67 | E149: 750.08 | F149: 740.52 | G149: 724.93 | H149: 775.23 | I149: 790.82 | J149: 800.38 | K149: 781.25 | L149: 756.1 | M149: 5.3477
A150: 141 | B150: NATCOPHARM | C150: 645.15 | D150: 640.40 | E150: 630.80 | F150: 616.45 | G150: 606.85 | H150: 654.75 | I150: 664.35 | J150: 678.70 | K150: 650 | L150: 626.05 | M150: 0.70644
A151: 142 | B151: NBCC | C151: 33.05 | D151: 33.02 | E151: 32.78 | F151: 32.52 | G151: 32.28 | H151: 33.28 | I151: 33.52 | J151: 33.78 | K151: 33.25 | L151: 32.75 | M151: 131.59247
A152: 143 | B152: NHPC | C152: 24.55 | D152: 24.62 | E152: 24.33 | F152: 24.12 | G152: 23.83 | H152: 24.83 | I152: 25.12 | J152: 25.33 | K152: 24.9 | L152: 24.4 | M152: 169.98025
A153: 144 | B153: NMDC | C153: 113.9 | D153: 111.88 | E153: 109.42 | F153: 104.93 | G153: 102.47 | H153: 116.37 | I153: 118.83 | J153: 123.32 | K153: 114.35 | L153: 107.4 | M153: 115.54574
A154: 145 | B154: NTPC | C154: 111.2 | D154: 111.43 | E154: 110.27 | F154: 109.33 | G154: 108.17 | H154: 112.37 | I154: 113.53 | J154: 114.47 | K154: 112.6 | L154: 110.5 | M154: 645.18347
A155: 146 | B155: NATIONALUM | C155: 43.4 | D155: 43.10 | E155: 42.50 | F155: 41.60 | G155: 41.00 | H155: 44.00 | I155: 44.60 | J155: 45.50 | K155: 43.7 | L155: 42.2 | M155: 182.52296
A156: 147 | B156: NESTLEIND | C156: 16384.85 | D156: 16374.27 | E156: 16266.63 | F156: 16148.42 | G156: 16040.78 | H156: 16492.48 | I156: 16600.12 | J156: 16718.33 | K156: 16481.9 | L156: 16256.05 | M156: 0.59649
A157: 148 | B157: OBEROIRLTY | C157: 537.75 | D157: 543.18 | E157: 527.37 | F157: 516.98 | G157: 501.17 | H157: 553.57 | I157: 569.38 | J157: 579.77 | K157: 559 | L157: 532.8 | M157: 1.68229
A158: 149 | B158: ONGC | C158: 106.8 | D158: 106.43 | E158: 105.47 | F158: 104.13 | G158: 103.17 | H158: 107.77 | I158: 108.73 | J158: 110.07 | K158: 107.4 | L158: 105.1 | M158: 833.60147
A159: 150 | B159: OIL | C159: 129.25 | D159: 129.47 | E159: 128.03 | F159: 126.82 | G159: 125.38 | H159: 130.68 | I159: 132.12 | J159: 133.33 | K159: 130.9 | L159: 128.25 | M159: 95.97439
A160: 151 | B160: OFSS | C160: 2981.6 | D160: 3003.87 | E160: 2938.73 | F160: 2895.87 | G160: 2830.73 | H160: 3046.73 | I160: 3111.87 | J160: 3154.73 | K160: 3069 | L160: 2961 | M160: 0.2199
A161: 152 | B161: PIIND | C161: 1532.65 | D161: 1533.53 | E161: 1514.12 | F161: 1495.58 | G161: 1476.17 | H161: 1552.07 | I161: 1571.48 | J161: 1590.02 | K161: 1552.95 | L161: 1515 | M161: 3.09452
A162: 153 | B162: PNBHOUSING | C162: 423.85 | D162: 422.83 | E162: 411.02 | F162: 398.18 | G162: 386.37 | H162: 435.67 | I162: 447.48 | J162: 460.32 | K162: 434.65 | L162: 410 | M162: 7.15716
A163: 154 | B163: PAGEIND | C163: 24716.75 | D163: 24755.90 | E163: 24460.85 | F163: 24204.95 | G163: 23909.90 | H163: 25011.80 | I163: 25306.85 | J163: 25562.75 | K163: 25050.95 | L163: 24500 | M163: 0.22781
A164: 155 | B164: PETRONET | C164: 268.4 | D164: 267.85 | E164: 264.80 | F164: 261.20 | G164: 258.15 | H164: 271.45 | I164: 274.50 | J164: 278.10 | K164: 270.9 | L164: 264.25 | M164: 23.08304
A165: 156 | B165: PFIZER | C165: 4095.25 | D165: 4115.38 | E165: 4061.87 | F165: 4028.48 | G165: 3974.97 | H165: 4148.77 | I165: 4202.28 | J165: 4235.67 | K165: 4168.9 | L165: 4082 | M165: 0.12497
A166: 157 | B166: PIDILITIND | C166: 1550.95 | D166: 1551.68 | E166: 1541.37 | F166: 1531.78 | G166: 1521.47 | H166: 1561.27 | I166: 1571.58 | J166: 1581.17 | K166: 1562 | L166: 1542.1 | M166: 7.69665
A167: 158 | B167: PEL | C167: 1459 | D167: 1453.70 | E167: 1425.40 | F167: 1391.80 | G167: 1363.50 | H167: 1487.30 | I167: 1515.60 | J167: 1549.20 | K167: 1482 | L167: 1420.1 | M167: 29.79765
A168: 159 | B168: PFC | C168: 122.9 | D168: 121.58 | E168: 118.62 | F168: 114.33 | G168: 111.37 | H168: 125.87 | I168: 128.83 | J168: 133.12 | K168: 124.55 | L168: 117.3 | M168: 94.55973
A169: 160 | B169: POWERGRID | C169: 189.35 | D169: 191.02 | E169: 186.33 | F169: 183.32 | G169: 178.63 | H169: 194.03 | I169: 198.72 | J169: 201.73 | K169: 195.7 | L169: 188 | M169: 359.92338
A170: 161 | B170: PRESTIGE | C170: 375.5 | D170: 370.83 | E170: 358.67 | F170: 341.83 | G170: 329.67 | H170: 387.67 | I170: 399.83 | J170: 416.67 | K170: 383 | L170: 354 | M170: 3.99518
A171: 162 | B171: PGHH | C171: 11527.8 | D171: 11556.33 | E171: 11372.67 | F171: 11217.53 | G171: 11033.87 | H171: 11711.47 | I171: 11895.13 | J171: 12050.27 | K171: 11740 | L171: 11401.2 | M171: 0.02985
A172: 163 | B172: PNB | C172: 56.9 | D172: 56.77 | E172: 56.23 | F172: 55.57 | G172: 55.03 | H172: 57.43 | I172: 57.97 | J172: 58.63 | K172: 57.3 | L172: 56.1 | M172: 154.49355
A173: 164 | B173: QUESS | C173: 611.25 | D173: 617.60 | E173: 600.70 | F173: 590.15 | G173: 573.25 | H173: 628.15 | I173: 645.05 | J173: 655.60 | K173: 634.5 | L173: 607.05 | M173: 5.40845
A174: 165 | B174: RBLBANK | C174: 317.75 | D174: 318.92 | E174: 314.03 | F174: 310.32 | G174: 305.43 | H174: 322.63 | I174: 327.52 | J174: 331.23 | K174: 323.8 | L174: 315.2 | M174: 58.43485
A175: 166 | B175: RECLTD | C175: 150.95 | D175: 149.22 | E175: 144.93 | F175: 138.92 | G175: 134.63 | H175: 155.23 | I175: 159.52 | J175: 165.53 | K175: 153.5 | L175: 143.2 | M175: 70.38131
A176: 167 | B176: RAJESHEXPO | C176: 720.1 | D176: 718.80 | E176: 712.10 | F176: 704.10 | G176: 697.40 | H176: 726.80 | I176: 733.50 | J176: 741.50 | K176: 725.5 | L176: 710.8 | M176: 1.23317
A177: 168 | B177: RELIANCE | C177: 1448.5 | D177: 1443.87 | E177: 1434.93 | F177: 1421.37 | G177: 1412.43 | H177: 1457.43 | I177: 1466.37 | J177: 1479.93 | K177: 1452.8 | L177: 1430.3 | M177: 158.86673
A178: 169 | B178: SBILIFE | C178: 910.55 | D178: 908.28 | E178: 900.77 | F178: 890.98 | G178: 883.47 | H178: 918.07 | I178: 925.58 | J178: 935.37 | K178: 915.8 | L178: 898.5 | M178: 4.4517
A179: 170 | B179: SRF | C179: 3987.05 | D179: 3919.93 | E179: 3842.12 | F179: 3697.18 | G179: 3619.37 | H179: 4064.87 | I179: 4142.68 | J179: 4287.62 | K179: 3997.75 | L179: 3775 | M179: 3.14532
A180: 171 | B180: SHREECEM | C180: 24893.45 | D180: 24865.17 | E180: 24440.33 | F180: 23987.22 | G180: 23562.38 | H180: 25318.28 | I180: 25743.12 | J180: 26196.23 | K180: 25290 | L180: 24412.05 | M180: 0.26041
A181: 172 | B181: SRTRANSFIN | C181: 1132.95 | D181: 1109.32 | E181: 1078.63 | F181: 1024.32 | G181: 993.63 | H181: 1163.63 | I181: 1194.32 | J181: 1248.63 | K181: 1140 | L181: 1055 | M181: 19.83266
A182: 173 | B182: SIEMENS | C182: 1497.65 | D182: 1495.43 | E182: 1482.22 | F182: 1466.78 | G182: 1453.57 | H182: 1510.87 | I182: 1524.08 | J182: 1539.52 | K182: 1508.65 | L182: 1480 | M182: 3.34263
A183: 174 | B183: SBIN | C183: 311 | D183: 309.75 | E183: 305.85 | F183: 300.70 | G183: 296.80 | H183: 314.90 | I183: 318.80 | J183: 323.95 | K183: 313.65 | L183: 304.6 | M183: 926.56638
A184: 175 | B184: SAIL | C184: 48.75 | D184: 48.08 | E184: 46.97 | F184: 45.18 | G184: 44.07 | H184: 49.87 | I184: 50.98 | J184: 52.77 | K184: 49.2 | L184: 46.3 | M184: 179.54383
A185: 176 | B185: STRTECH | C185: 123.25 | D185: 122.87 | E185: 121.18 | F185: 119.12 | G185: 117.43 | H185: 124.93 | I185: 126.62 | J185: 128.68 | K185: 124.55 | L185: 120.8 | M185: 8.07575
A186: 177 | B186: SUNPHARMA | C186: 426.25 | D186: 426.52 | E186: 421.63 | F186: 417.02 | G186: 412.13 | H186: 431.13 | I186: 436.02 | J186: 440.63 | K186: 431.4 | L186: 421.9 | M186: 37.57229
A187: 178 | B187: SUNTV | C187: 481.25 | D187: 480.50 | E187: 472.00 | F187: 462.75 | G187: 454.25 | H187: 489.75 | I187: 498.25 | J187: 507.50 | K187: 489 | L187: 471.25 | M187: 15.5546
A188: 179 | B188: SYNGENE | C188: 312.75 | D188: 312.45 | E188: 311.00 | F188: 309.25 | G188: 307.80 | H188: 314.20 | I188: 315.65 | J188: 317.40 | K188: 313.9 | L188: 310.7 | M188: 0.78761
A189: 180 | B189: TVSMOTOR | C189: 463.05 | D189: 467.40 | E189: 451.80 | F189: 440.55 | G189: 424.95 | H189: 478.65 | I189: 494.25 | J189: 505.50 | K189: 483 | L189: 456.15 | M189: 8.43524
A190: 181 | B190: TCS | C190: 2146.55 | D190: 2135.85 | E190: 2115.00 | F190: 2083.45 | G190: 2062.60 | H190: 2167.40 | I190: 2188.25 | J190: 2219.80 | K190: 2156.7 | L190: 2104.3 | M190: 32.87223
A191: 182 | B191: TATAGLOBAL | C191: 394.6 | D191: 394.53 | E191: 381.07 | F191: 367.53 | G191: 354.07 | H191: 408.07 | I191: 421.53 | J191: 435.07 | K191: 408 | L191: 381 | M191: 26.8123
A192: 183 | B192: TATAMTRDVR | C192: 75.4 | D192: 73.50 | E192: 71.20 | F192: 67.00 | G192: 64.70 | H192: 77.70 | I192: 80.00 | J192: 84.20 | K192: 75.8 | L192: 69.3 | M192: 38.13549
A193: 184 | B193: TATAMOTORS | C193: 183.75 | D193: 178.43 | E193: 171.92 | F193: 160.08 | G193: 153.57 | H193: 190.27 | I193: 196.78 | J193: 208.62 | K193: 184.95 | L193: 166.6 | M193: 756.21897
A194: 185 | B194: TATAPOWER | C194: 57.2 | D194: 56.90 | E194: 56.45 | F194: 55.70 | G194: 55.25 | H194: 57.65 | I194: 58.10 | J194: 58.85 | K194: 57.35 | L194: 56.15 | M194: 79.77888
A195: 186 | B195: TATASTEEL | C195: 475.05 | D195: 467.58 | E195: 455.47 | F195: 435.88 | G195: 423.77 | H195: 487.17 | I195: 499.28 | J195: 518.87 | K195: 479.7 | L195: 448 | M195: 107.38727
A196: 187 | B196: TECHM | C196: 814.05 | D196: 812.35 | E196: 808.70 | F196: 803.35 | G196: 799.70 | H196: 817.70 | I196: 821.35 | J196: 826.70 | K196: 816 | L196: 807 | M196: 30.81521
A197: 188 | B197: NIACL | C197: 142.65 | D197: 142.52 | E197: 140.33 | F197: 138.02 | G197: 135.83 | H197: 144.83 | I197: 147.02 | J197: 149.33 | K197: 144.7 | L197: 140.2 | M197: 1.68669
A198: 189 | B198: RAMCOCEM | C198: 795.9 | D198: 801.35 | E198: 785.80 | F198: 775.70 | G198: 760.15 | H198: 811.45 | I198: 827.00 | J198: 837.10 | K198: 816.9 | L198: 791.25 | M198: 5.867
A199: 190 | B199: TITAN | C199: 1279.85 | D199: 1277.52 | E199: 1257.33 | F199: 1234.82 | G199: 1214.63 | H199: 1300.03 | I199: 1320.22 | J199: 1342.73 | K199: 1297.7 | L199: 1255 | M199: 18.09101
A200: 191 | B200: TORNTPHARM | C200: 2001.25 | D200: 1985.65 | E200: 1944.40 | F200: 1887.55 | G200: 1846.30 | H200: 2042.50 | I200: 2083.75 | J200: 2140.60 | K200: 2026.9 | L200: 1928.8 | M200: 1.67763
A201: 192 | B201: TORNTPOWER | C201: 318.15 | D201: 308.67 | E201: 295.33 | F201: 272.52 | G201: 259.18 | H201: 331.48 | I201: 344.82 | J201: 367.63 | K201: 322 | L201: 285.85 | M201: 11.09871
A202: 193 | B202: UPL | C202: 537.45 | D202: 533.77 | E202: 525.23 | F202: 513.02 | G202: 504.48 | H202: 545.98 | I202: 554.52 | J202: 566.73 | K202: 542.3 | L202: 521.55 | M202: 43.40034
A203: 194 | B203: ULTRACEMCO | C203: 4471.8 | D203: 4466.00 | E203: 4403.40 | F203: 4335.00 | G203: 4272.40 | H203: 4534.40 | I203: 4597.00 | J203: 4665.40 | K203: 4528.6 | L203: 4397.6 | M203: 4.5163
A204: 195 | B204: UNIONBANK | C204: 48.5 | D204: 48.40 | E204: 48.10 | F204: 47.70 | G204: 47.40 | H204: 48.80 | I204: 49.10 | J204: 49.50 | K204: 48.7 | L204: 48 | M204: 21.60583
A205: 196 | B205: UBL | C205: 1313.05 | D205: 1305.92 | E205: 1294.63 | F205: 1276.22 | G205: 1264.93 | H205: 1324.33 | I205: 1335.62 | J205: 1354.03 | K205: 1317.2 | L205: 1287.5 | M205: 3.17811
... 30 more rows

Sheet MidCap Intra
L5: Back To Main Page
A6: FOR INTRA DAY TRADING | K6: =Main!B10 -> 2020-02-05
A9: Sr.no | B9: Scrip | C9: CLOSE RATE | D9: Pivot Point | E9: Supports | H9: Resistances
C10: Point | E10: S1 | F10: S2 | G10: S3 | H10: R1 | I10: R2 | J10: R3 | K10: HIGH | L10: LOW | M10: Total Trade Quanity in Lakhs
A11: 1 | B11: 3MINDIA | C11: 23082.7 | D11: 23361.12 | E11: 22622.23 | F11: 22161.77 | G11: 21422.88 | H11: 23821.58 | I11: 24560.47 | J11: 25020.93 | K11: 24100 | L11: 22900.65 | M11: 0.13062
A12: 2 | B12: ACC | C12: 1469.8 | D12: 1476.53 | E12: 1456.57 | F12: 1443.33 | G12: 1423.37 | H12: 1489.77 | I12: 1509.73 | J12: 1522.97 | K12: 1496.5 | L12: 1463.3 | M12: 10.05046
A13: 3 | B13: AIAENG | C13: 1775.45 | D13: 1777.97 | E13: 1752.48 | F13: 1729.52 | G13: 1704.03 | H13: 1800.93 | I13: 1826.42 | J13: 1849.38 | K13: 1803.45 | L13: 1755 | M13: 0.24961
A14: 4 | B14: APLAPOLLO | C14: 1987.85 | D14: 1990.95 | E14: 1966.90 | F14: 1945.95 | G14: 1921.90 | H14: 2011.90 | I14: 2035.95 | J14: 2056.90 | K14: 2015 | L14: 1970 | M14: 0.36242
A15: 5 | B15: AUBANK | C15: 1095.65 | D15: 1096.42 | E15: 1050.08 | F15: 1004.52 | G15: 958.18 | H15: 1141.98 | I15: 1188.32 | J15: 1233.88 | K15: 1142.75 | L15: 1050.85 | M15: 12.71682
A16: 6 | B16: AARTIIND | C16: 986.05 | D16: 982.30 | E16: 970.60 | F16: 955.15 | G16: 943.45 | H16: 997.75 | I16: 1009.45 | J16: 1024.90 | K16: 994 | L16: 966.85 | M16: 1.76088
A17: 7 | B17: AAVAS | C17: 1950.85 | D17: 1953.50 | E17: 1932.35 | F17: 1913.85 | G17: 1892.70 | H17: 1972.00 | I17: 1993.15 | J17: 2011.65 | K17: 1974.65 | L17: 1935 | M17: 0.13167
A18: 8 | B18: ABBOTINDIA | C18: 13076.8 | D18: 13096.32 | E18: 12967.13 | F18: 12857.47 | G18: 12728.28 | H18: 13205.98 | I18: 13335.17 | J18: 13444.83 | K18: 13225.5 | L18: 12986.65 | M18: 0.13338
A19: 9 | B19: ADANIGAS | C19: 172.7 | D19: 172.27 | E19: 167.93 | F19: 163.17 | G19: 158.83 | H19: 177.03 | I19: 181.37 | J19: 186.13 | K19: 176.6 | L19: 167.5 | M19: 26.21494
A20: 10 | B20: ADANIGREEN | C20: 193.25 | D20: 195.95 | E20: 188.10 | F20: 182.95 | G20: 175.10 | H20: 201.10 | I20: 208.95 | J20: 214.10 | K20: 203.8 | L20: 190.8 | M20: 13.20812
A21: 11 | B21: ADANIPORTS | C21: 366.6 | D21: 366.73 | E21: 360.97 | F21: 355.33 | G21: 349.57 | H21: 372.37 | I21: 378.13 | J21: 383.77 | K21: 372.5 | L21: 361.1 | M21: 34.41871
A22: 12 | B22: ADANIPOWER | C22: 62 | D22: 61.72 | E22: 60.78 | F22: 59.57 | G22: 58.63 | H22: 62.93 | I22: 63.87 | J22: 65.08 | K22: 62.65 | L22: 60.5 | M22: 49.45952
A23: 13 | B23: ADANITRANS | C23: 338.75 | D23: 337.60 | E23: 335.20 | F23: 331.65 | G23: 329.25 | H23: 341.15 | I23: 343.55 | J23: 347.10 | K23: 340 | L23: 334.05 | M23: 1.38145
A24: 14 | B24: ABCAPITAL | C24: 95.8 | D24: 96.13 | E24: 94.82 | F24: 93.83 | G24: 92.52 | H24: 97.12 | I24: 98.43 | J24: 99.42 | K24: 97.45 | L24: 95.15 | M24: 26.42858
A25: 15 | B25: ABFRL | C25: 238.65 | D25: 238.08 | E25: 228.37 | F25: 218.08 | G25: 208.37 | H25: 248.37 | I25: 258.08 | J25: 268.37 | K25: 247.8 | L25: 227.8 | M25: 21.47274
A26: 16 | B26: ADVENZYMES | C26: 172.2 | D26: 170.98 | E26: 168.47 | F26: 164.73 | G26: 162.22 | H26: 174.72 | I26: 177.23 | J26: 180.97 | K26: 173.5 | L26: 167.25 | M26: 0.50142
A27: 17 | B27: AEGISCHEM | C27: 233.4 | D27: 235.10 | E27: 225.30 | F27: 217.20 | G27: 207.40 | H27: 243.20 | I27: 253.00 | J27: 261.10 | K27: 244.9 | L27: 227 | M27: 5.62116
A28: 18 | B28: AFFLE | C28: 1769.3 | D28: 1777.08 | E28: 1746.22 | F28: 1723.13 | G28: 1692.27 | H28: 1800.17 | I28: 1831.03 | J28: 1854.12 | K28: 1807.95 | L28: 1754 | M28: 1.92899
A29: 19 | B29: AJANTPHARM | C29: 1197.1 | D29: 1200.70 | E29: 1174.40 | F29: 1151.70 | G29: 1125.40 | H29: 1223.40 | I29: 1249.70 | J29: 1272.40 | K29: 1227 | L29: 1178 | M29: 1.0615
A30: 20 | B30: AKZOINDIA | C30: 2066.7 | D30: 2069.62 | E30: 2032.08 | F30: 1997.47 | G30: 1959.93 | H30: 2104.23 | I30: 2141.77 | J30: 2176.38 | K30: 2107.15 | L30: 2035 | M30: 0.08966
A31: 21 | B31: APLLTD | C31: 625.1 | D31: 624.68 | E31: 613.42 | F31: 601.73 | G31: 590.47 | H31: 636.37 | I31: 647.63 | J31: 659.32 | K31: 635.95 | L31: 613 | M31: 3.64585
A32: 22 | B32: ALKEM | C32: 2387.25 | D32: 2388.08 | E32: 2366.17 | F32: 2345.08 | G32: 2323.17 | H32: 2409.17 | I32: 2431.08 | J32: 2452.17 | K32: 2410 | L32: 2367 | M32: 0.33615
A33: 23 | B33: ALLCARGO | C33: 112.85 | D33: 112.48 | E33: 109.97 | F33: 107.08 | G33: 104.57 | H33: 115.37 | I33: 117.88 | J33: 120.77 | K33: 115 | L33: 109.6 | M33: 3.13905
A34: 24 | B34: AMARAJABAT | C34: 784.75 | D34: 785.75 | E34: 775.55 | F34: 766.35 | G34: 756.15 | H34: 794.95 | I34: 805.15 | J34: 814.35 | K34: 795.95 | L34: 776.55 | M34: 5.69838
A35: 25 | B35: AMBER | C35: 1578.5 | D35: 1592.35 | E35: 1544.75 | F35: 1511.00 | G35: 1463.40 | H35: 1626.10 | I35: 1673.70 | J35: 1707.45 | K35: 1639.95 | L35: 1558.6 | M35: 0.80577
A36: 26 | B36: AMBUJACEM | C36: 206.4 | D36: 206.78 | E36: 204.82 | F36: 203.23 | G36: 201.27 | H36: 208.37 | I36: 210.33 | J36: 211.92 | K36: 208.75 | L36: 205.2 | M36: 40.00586
A37: 27 | B37: APOLLOHOSP | C37: 1657.45 | D37: 1662.82 | E37: 1644.63 | F37: 1631.82 | G37: 1613.63 | H37: 1675.63 | I37: 1693.82 | J37: 1706.63 | K37: 1681 | L37: 1650 | M37: 4.38855
A38: 28 | B38: APOLLOTYRE | C38: 168.4 | D38: 166.50 | E38: 163.40 | F38: 158.40 | G38: 155.30 | H38: 171.50 | I38: 174.60 | J38: 179.60 | K38: 169.6 | L38: 161.5 | M38: 129.3725
A39: 29 | B39: ARVINDFASN | C39: 350 | D39: 357.98 | E39: 340.02 | F39: 330.03 | G39: 312.07 | H39: 367.97 | I39: 385.93 | J39: 395.92 | K39: 375.95 | L39: 348 | M39: 2.90162
A40: 30 | B40: ASAHIINDIA | C40: 263.1 | D40: 263.70 | E40: 255.40 | F40: 247.70 | G40: 239.40 | H40: 271.40 | I40: 279.70 | J40: 287.40 | K40: 272 | L40: 256 | M40: 0.42948
A41: 31 | B41: ASHOKLEY | C41: 80.35 | D41: 80.58 | E41: 78.87 | F41: 77.38 | G41: 75.67 | H41: 82.07 | I41: 83.78 | J41: 85.27 | K41: 82.3 | L41: 79.1 | M41: 233.95561
A42: 32 | B42: ASHOKA | C42: 113.1 | D42: 111.12 | E42: 108.03 | F42: 102.97 | G42: 99.88 | H42: 116.18 | I42: 119.27 | J42: 124.33 | K42: 114.2 | L42: 106.05 | M42: 14.60413
A43: 33 | B43: ASIANPAINT | C43: 1873.5 | D43: 1876.55 | E43: 1863.10 | F43: 1852.70 | G43: 1839.25 | H43: 1886.95 | I43: 1900.40 | J43: 1910.80 | K43: 1890 | L43: 1866.15 | M43: 13.44016
A44: 34 | B44: ASTERDM | C44: 166.55 | D44: 166.72 | E44: 165.93 | F44: 165.32 | G44: 164.53 | H44: 167.33 | I44: 168.12 | J44: 168.73 | K44: 167.5 | L44: 166.1 | M44: 0.43877
A45: 35 | B45: ASTRAZEN | C45: 2487.6 | D45: 2515.20 | E45: 2450.35 | F45: 2413.10 | G45: 2348.25 | H45: 2552.45 | I45: 2617.30 | J45: 2654.55 | K45: 2580.05 | L45: 2477.95 | M45: 0.20867
A46: 36 | B46: ASTRAL | C46: 1194.55 | D46: 1192.95 | E46: 1176.60 | F46: 1158.65 | G46: 1142.30 | H46: 1210.90 | I46: 1227.25 | J46: 1245.20 | K46: 1209.3 | L46: 1175 | M46: 0.43998
A47: 37 | B47: ATUL | C47: 4967.55 | D47: 4918.17 | E47: 4818.33 | F47: 4669.12 | G47: 4569.28 | H47: 5067.38 | I47: 5167.22 | J47: 5316.43 | K47: 5018 | L47: 4768.95 | M47: 0.47346
A48: 38 | B48: AUROPHARMA | C48: 508 | D48: 504.67 | E48: 498.43 | F48: 488.87 | G48: 482.63 | H48: 514.23 | I48: 520.47 | J48: 530.03 | K48: 510.9 | L48: 495.1 | M48: 30.94847
A49: 39 | B49: AVANTIFEED | C49: 599.55 | D49: 591.25 | E49: 572.50 | F49: 545.45 | G49: 526.70 | H49: 618.30 | I49: 637.05 | J49: 664.10 | K49: 610 | L49: 564.2 | M49: 39.60795
A50: 40 | B50: DMART | C50: 2248.9 | D50: 2227.63 | E50: 2181.27 | F50: 2113.63 | G50: 2067.27 | H50: 2295.27 | I50: 2341.63 | J50: 2409.27 | K50: 2274 | L50: 2160 | M50: 11.00397
A51: 41 | B51: AXISBANK | C51: 724.05 | D51: 721.63 | E51: 717.62 | F51: 711.18 | G51: 707.17 | H51: 728.07 | I51: 732.08 | J51: 738.52 | K51: 725.65 | L51: 715.2 | M51: 79.75101
A52: 42 | B52: BASF | C52: 969.25 | D52: 973.78 | E52: 960.57 | F52: 951.88 | G52: 938.67 | H52: 982.47 | I52: 995.68 | J52: 1004.37 | K52: 987 | L52: 965.1 | M52: 0.26083
A53: 43 | B53: BEML | C53: 986.9 | D53: 985.52 | E53: 963.03 | F53: 939.17 | G53: 916.68 | H53: 1009.38 | I53: 1031.87 | J53: 1055.73 | K53: 1008 | L53: 961.65 | M53: 5.84134
A54: 44 | B54: BSE | C54: 530 | D54: 531.00 | E54: 527.00 | F54: 524.00 | G54: 520.00 | H54: 534.00 | I54: 538.00 | J54: 541.00 | K54: 535 | L54: 528 | M54: 0.37257
A55: 45 | B55: BAJAJ-AUTO | C55: 3161.5 | D55: 3177.47 | E55: 3134.03 | F55: 3106.57 | G55: 3063.13 | H55: 3204.93 | I55: 3248.37 | J55: 3275.83 | K55: 3220.9 | L55: 3150 | M55: 6.46723
A56: 46 | B56: BAJAJCON | C56: 216.9 | D56: 216.33 | E56: 213.77 | F56: 210.63 | G56: 208.07 | H56: 219.47 | I56: 222.03 | J56: 225.17 | K56: 218.9 | L56: 213.2 | M56: 1.89326
A57: 47 | B57: BAJAJELEC | C57: 411.6 | D57: 407.98 | E57: 397.17 | F57: 382.73 | G57: 371.92 | H57: 422.42 | I57: 433.23 | J57: 447.67 | K57: 418.8 | L57: 393.55 | M57: 4.61122
A58: 48 | B58: BAJFINANCE | C58: 4528.2 | D58: 4515.27 | E58: 4490.58 | F58: 4452.97 | G58: 4428.28 | H58: 4552.88 | I58: 4577.57 | J58: 4615.18 | K58: 4539.95 | L58: 4477.65 | M58: 12.85631
A59: 49 | B59: BAJAJFINSV | C59: 9591.4 | D59: 9577.70 | E59: 9471.40 | F59: 9351.40 | G59: 9245.10 | H59: 9697.70 | I59: 9804.00 | J59: 9924.00 | K59: 9684 | L59: 9457.7 | M59: 3.2454
A60: 50 | B60: BAJAJHLDNG | C60: 3865.5 | D60: 3848.57 | E60: 3747.13 | F60: 3628.77 | G60: 3527.33 | H60: 3966.93 | I60: 4068.37 | J60: 4186.73 | K60: 3950 | L60: 3730.2 | M60: 2.52064
A61: 51 | B61: BALKRISIND | C61: 1100.45 | D61: 1111.20 | E61: 1081.45 | F61: 1062.45 | G61: 1032.70 | H61: 1130.20 | I61: 1159.95 | J61: 1178.95 | K61: 1140.95 | L61: 1092.2 | M61: 9.61174
A62: 52 | B62: BALMLAWRIE | C62: 119.05 | D62: 120.35 | E62: 117.20 | F62: 115.35 | G62: 112.20 | H62: 122.20 | I62: 125.35 | J62: 127.20 | K62: 123.5 | L62: 118.5 | M62: 1.73644
A63: 53 | B63: BALRAMCHIN | C63: 156.8 | D63: 156.75 | E63: 153.60 | F63: 150.40 | G63: 147.25 | H63: 159.95 | I63: 163.10 | J63: 166.30 | K63: 159.9 | L63: 153.55 | M63: 5.79485
A64: 54 | B64: BANDHANBNK | C64: 429.2 | D64: 432.20 | E64: 424.50 | F64: 419.80 | G64: 412.10 | H64: 436.90 | I64: 444.60 | J64: 449.30 | K64: 439.9 | L64: 427.5 | M64: 24.89013
A65: 55 | B65: BANKBARODA | C65: 88.15 | D65: 87.95 | E65: 87.20 | F65: 86.25 | G65: 85.50 | H65: 88.90 | I65: 89.65 | J65: 90.60 | K65: 88.7 | L65: 87 | M65: 182.82043
A66: 56 | B66: BANKINDIA | C66: 65.05 | D66: 65.32 | E66: 64.33 | F66: 63.62 | G66: 62.63 | H66: 66.03 | I66: 67.02 | J66: 67.73 | K66: 66.3 | L66: 64.6 | M66: 9.49755
A67: 57 | B67: MAHABANK | C67: 12.35 | D67: 12.38 | E67: 12.27 | F67: 12.18 | G67: 12.07 | H67: 12.47 | I67: 12.58 | J67: 12.67 | K67: 12.5 | L67: 12.3 | M67: 1.49333
A68: 58 | B68: BATAINDIA | C68: 1872.8 | D68: 1869.90 | E68: 1859.90 | F68: 1847.00 | G68: 1837.00 | H68: 1882.80 | I68: 1892.80 | J68: 1905.70 | K68: 1879.9 | L68: 1857 | M68: 2.91241
A69: 59 | B69: BAYERCROP | C69: 4445.35 | D69: 4505.40 | E69: 4344.80 | F69: 4244.25 | G69: 4083.65 | H69: 4605.95 | I69: 4766.55 | J69: 4867.10 | K69: 4666 | L69: 4404.85 | M69: 0.28637
A70: 60 | B70: BERGEPAINT | C70: 588.65 | D70: 589.27 | E70: 581.53 | F70: 574.42 | G70: 566.68 | H70: 596.38 | I70: 604.12 | J70: 611.23 | K70: 597 | L70: 582.15 | M70: 29.00249
A71: 61 | B71: BDL | C71: 285.95 | D71: 286.32 | E71: 281.63 | F71: 277.32 | G71: 272.63 | H71: 290.63 | I71: 295.32 | J71: 299.63 | K71: 291 | L71: 282 | M71: 0.86851
A72: 62 | B72: BEL | C72: 86.9 | D72: 86.53 | E72: 84.92 | F72: 82.93 | G72: 81.32 | H72: 88.52 | I72: 90.13 | J72: 92.12 | K72: 88.15 | L72: 84.55 | M72: 152.7657
A73: 63 | B73: BHARATFORG | C73: 508.95 | D73: 508.12 | E73: 497.83 | F73: 486.72 | G73: 476.43 | H73: 519.23 | I73: 529.52 | J73: 540.63 | K73: 518.4 | L73: 497 | M73: 11.67931
A74: 64 | B74: BHEL | C74: 39.6 | D74: 39.78 | E74: 39.07 | F74: 38.53 | G74: 37.82 | H74: 40.32 | I74: 41.03 | J74: 41.57 | K74: 40.5 | L74: 39.25 | M74: 239.54561
A75: 65 | B75: BPCL | C75: 501.7 | D75: 495.88 | E75: 483.82 | F75: 465.93 | G75: 453.87 | H75: 513.77 | I75: 525.83 | J75: 543.72 | K75: 507.95 | L75: 478 | M75: 151.17047
A76: 66 | B76: BHARTIARTL | C76: 533.35 | D76: 528.88 | E76: 520.27 | F76: 507.18 | G76: 498.57 | H76: 541.97 | I76: 550.58 | J76: 563.67 | K76: 537.5 | L76: 515.8 | M76: 300.829
A77: 67 | B77: INFRATEL | C77: 246.05 | D77: 245.68 | E77: 240.37 | F77: 234.68 | G77: 229.37 | H77: 251.37 | I77: 256.68 | J77: 262.37 | K77: 251 | L77: 240 | M77: 54.24629
A78: 68 | B78: BIOCON | C78: 295.25 | D78: 293.90 | E78: 289.45 | F78: 283.65 | G78: 279.20 | H78: 299.70 | I78: 304.15 | J78: 309.95 | K78: 298.35 | L78: 288.1 | M78: 52.84304
A79: 69 | B79: BIRLACORPN | C79: 767.1 | D79: 771.67 | E79: 756.93 | F79: 746.77 | G79: 732.03 | H79: 781.83 | I79: 796.57 | J79: 806.73 | K79: 786.4 | L79: 761.5 | M79: 1.0075
A80: 70 | B80: BSOFT | C80: 89.4 | D80: 89.87 | E80: 87.83 | F80: 86.27 | G80: 84.23 | H80: 91.43 | I80: 93.47 | J80: 95.03 | K80: 91.9 | L80: 88.3 | M80: 27.58829
A81: 71 | B81: BLISSGVS | C81: 142.45 | D81: 141.88 | E81: 140.42 | F81: 138.38 | G81: 136.92 | H81: 143.92 | I81: 145.38 | J81: 147.42 | K81: 143.35 | L81: 139.85 | M81: 2.23668
A82: 72 | B82: BLUEDART | C82: 2839.55 | D82: 2826.20 | E82: 2677.35 | F82: 2515.15 | G82: 2366.30 | H82: 2988.40 | I82: 3137.25 | J82: 3299.45 | K82: 2975.05 | L82: 2664 | M82: 0.28267
A83: 73 | B83: BLUESTARCO | C83: 816.4 | D83: 813.52 | E83: 804.03 | F83: 791.67 | G83: 782.18 | H83: 825.88 | I83: 835.37 | J83: 847.73 | K83: 823 | L83: 801.15 | M83: 0.41979
A84: 74 | B84: BBTC | C84: 1147.9 | D84: 1156.42 | E84: 1131.48 | F84: 1115.07 | G84: 1090.13 | H84: 1172.83 | I84: 1197.77 | J84: 1214.18 | K84: 1181.35 | L84: 1140 | M84: 0.95462
A85: 75 | B85: BOMDYEING | C85: 88.4 | D85: 88.50 | E85: 86.90 | F85: 85.40 | G85: 83.80 | H85: 90.00 | I85: 91.60 | J85: 93.10 | K85: 90.1 | L85: 87 | M85: 29.63098
A86: 76 | B86: BOSCHLTD | C86: 13793.7 | D86: 13929.57 | E86: 13419.13 | F86: 13044.57 | G86: 12534.13 | H86: 14304.13 | I86: 14814.57 | J86: 15189.13 | K86: 14440 | L86: 13555 | M86: 0.73277
A87: 77 | B87: BRIGADE | C87: 232.1 | D87: 233.38 | E87: 226.87 | F87: 221.63 | G87: 215.12 | H87: 238.62 | I87: 245.13 | J87: 250.37 | K87: 239.9 | L87: 228.15 | M87: 1.76283
A88: 78 | B88: BRITANNIA | C88: 3255.95 | D88: 3272.55 | E88: 3227.10 | F88: 3198.25 | G88: 3152.80 | H88: 3301.40 | I88: 3346.85 | J88: 3375.70 | K88: 3318 | L88: 3243.7 | M88: 4.23733
A89: 79 | B89: CARERATING | C89: 689 | D89: 689.75 | E89: 659.50 | F89: 630.00 | G89: 599.75 | H89: 719.25 | I89: 749.50 | J89: 779.00 | K89: 720 | L89: 660.25 | M89: 10.78938
A90: 80 | B90: CCL | C90: 246.6 | D90: 245.52 | E90: 237.13 | F90: 227.67 | G90: 219.28 | H90: 254.98 | I90: 263.37 | J90: 272.83 | K90: 253.9 | L90: 236.05 | M90: 17.87294
A91: 81 | B91: CESC | C91: 723.65 | D91: 721.53 | E91: 714.92 | F91: 706.18 | G91: 699.57 | H91: 730.27 | I91: 736.88 | J91: 745.62 | K91: 728.15 | L91: 712.8 | M91: 2.32435
A92: 82 | B92: CRISIL | C92: 1695.35 | D92: 1705.80 | E92: 1677.65 | F92: 1659.95 | G92: 1631.80 | H92: 1723.50 | I92: 1751.65 | J92: 1769.35 | K92: 1733.95 | L92: 1688.1 | M92: 0.5104
A93: 83 | B93: CADILAHC | C93: 271.65 | D93: 270.38 | E93: 266.27 | F93: 260.88 | G93: 256.77 | H93: 275.77 | I93: 279.88 | J93: 285.27 | K93: 274.5 | L93: 265 | M93: 24.04528
A94: 84 | B94: CANFINHOME | C94: 479.15 | D94: 480.83 | E94: 473.57 | F94: 467.98 | G94: 460.72 | H94: 486.42 | I94: 493.68 | J94: 499.27 | K94: 488.1 | L94: 475.25 | M94: 2.29103
A95: 85 | B95: CANBK | C95: 184 | D95: 184.97 | E95: 181.93 | F95: 179.87 | G95: 176.83 | H95: 187.03 | I95: 190.07 | J95: 192.13 | K95: 188 | L95: 182.9 | M95: 101.54236
A96: 86 | B96: CAPLIPOINT | C96: 324.65 | D96: 303.43 | E96: 282.22 | F96: 239.78 | G96: 218.57 | H96: 345.87 | I96: 367.08 | J96: 409.52 | K96: 324.65 | L96: 261 | M96: 12.66012
A97: 87 | B97: CGCL | C97: 208.25 | D97: 207.25 | E97: 204.00 | F97: 199.75 | G97: 196.50 | H97: 211.50 | I97: 214.75 | J97: 219.00 | K97: 210.5 | L97: 203 | M97: 3.67242
A98: 88 | B98: CARBORUNIV | C98: 331.4 | D98: 332.95 | E98: 327.90 | F98: 324.40 | G98: 319.35 | H98: 336.45 | I98: 341.50 | J98: 345.00 | K98: 338 | L98: 329.45 | M98: 0.24765
A99: 89 | B99: CASTROLIND | C99: 147.55 | D99: 149.08 | E99: 144.27 | F99: 140.98 | G99: 136.17 | H99: 152.37 | I99: 157.18 | J99: 160.47 | K99: 153.9 | L99: 145.8 | M99: 20.45172
A100: 90 | B100: CEATLTD | C100: 984.65 | D100: 981.25 | E100: 967.70 | F100: 950.75 | G100: 937.20 | H100: 998.20 | I100: 1011.75 | J100: 1028.70 | K100: 994.8 | L100: 964.3 | M100: 0.82763
A101: 91 | B101: CENTRALBK | C101: 17.85 | D101: 17.85 | E101: 17.60 | F101: 17.35 | G101: 17.10 | H101: 18.10 | I101: 18.35 | J101: 18.60 | K101: 18.1 | L101: 17.6 | M101: 5.70216
A102: 92 | B102: CDSL | C102: 277.25 | D102: 273.58 | E102: 267.17 | F102: 257.08 | G102: 250.67 | H102: 283.67 | I102: 290.08 | J102: 300.17 | K102: 280 | L102: 263.5 | M102: 8.49886
A103: 93 | B103: CENTURYPLY | C103: 170.55 | D103: 170.12 | E103: 167.68 | F103: 164.82 | G103: 162.38 | H103: 172.98 | I103: 175.42 | J103: 178.28 | K103: 172.55 | L103: 167.25 | M103: 1.31892
A104: 94 | B104: CERA | C104: 2626.4 | D104: 2633.80 | E104: 2567.60 | F104: 2508.80 | G104: 2442.60 | H104: 2692.60 | I104: 2758.80 | J104: 2817.60 | K104: 2700 | L104: 2575 | M104: 0.14023
A105: 95 | B105: CHALET | C105: 326.5 | D105: 327.80 | E105: 321.70 | F105: 316.90 | G105: 310.80 | H105: 332.60 | I105: 338.70 | J105: 343.50 | K105: 333.9 | L105: 323 | M105: 0.01892
A106: 96 | B106: CHAMBLFERT | C106: 169.9 | D106: 170.98 | E106: 166.97 | F106: 164.03 | G106: 160.02 | H106: 173.92 | I106: 177.93 | J106: 180.87 | K106: 175 | L106: 168.05 | M106: 6.54464
A107: 97 | B107: CHENNPETRO | C107: 118.65 | D107: 118.88 | E107: 117.37 | F107: 116.08 | G107: 114.57 | H107: 120.17 | I107: 121.68 | J107: 122.97 | K107: 120.4 | L107: 117.6 | M107: 2.15522
A108: 98 | B108: CHOLAHLDNG | C108: 548.6 | D108: 546.85 | E108: 538.80 | F108: 529.00 | G108: 520.95 | H108: 556.65 | I108: 564.70 | J108: 574.50 | K108: 554.9 | L108: 537.05 | M108: 5.96594
A109: 99 | B109: CHOLAFIN | C109: 342.65 | D109: 341.12 | E109: 334.63 | F109: 326.62 | G109: 320.13 | H109: 349.13 | I109: 355.62 | J109: 363.63 | K109: 347.6 | L109: 333.1 | M109: 79.14829
A110: 100 | B110: CIPLA | C110: 447.55 | D110: 448.07 | E110: 436.98 | F110: 426.42 | G110: 415.33 | H110: 458.63 | I110: 469.72 | J110: 480.28 | K110: 459.15 | L110: 437.5 | M110: 36.37403
A111: 101 | B111: CUB | C111: 229.85 | D111: 229.92 | E111: 228.63 | F111: 227.42 | G111: 226.13 | H111: 231.13 | I111: 232.42 | J111: 233.63 | K111: 231.2 | L111: 228.7 | M111: 11.58159
A112: 102 | B112: COALINDIA | C112: 179.25 | D112: 180.58 | E112: 177.17 | F112: 175.08 | G112: 171.67 | H112: 182.67 | I112: 186.08 | J112: 188.17 | K112: 184 | L112: 178.5 | M112: 94.68632
A113: 103 | B113: COCHINSHIP | C113: 345.4 | D113: 354.02 | E113: 330.03 | F113: 314.67 | G113: 290.68 | H113: 369.38 | I113: 393.37 | J113: 408.73 | K113: 378 | L113: 338.65 | M113: 9.16794
A114: 104 | B114: COLPAL | C114: 1372.5 | D114: 1371.63 | E114: 1363.47 | F114: 1354.43 | G114: 1346.27 | H114: 1380.67 | I114: 1388.83 | J114: 1397.87 | K114: 1379.8 | L114: 1362.6 | M114: 3.65263
A115: 105 | B115: CONCOR | C115: 594.5 | D115: 582.17 | E115: 564.33 | F115: 534.17 | G115: 516.33 | H115: 612.33 | I115: 630.17 | J115: 660.33 | K115: 600 | L115: 552 | M115: 29.91672
A116: 106 | B116: COROMANDEL | C116: 619.75 | D116: 620.58 | E116: 611.17 | F116: 602.58 | G116: 593.17 | H116: 629.17 | I116: 638.58 | J116: 647.17 | K116: 630 | L116: 612 | M116: 1.35142
A117: 107 | B117: CREDITACC | C117: 811.55 | D117: 802.83 | E117: 776.67 | F117: 741.78 | G117: 715.62 | H117: 837.72 | I117: 863.88 | J117: 898.77 | K117: 829 | L117: 767.95 | M117: 2.26955
A118: 108 | B118: CROMPTON | C118: 288.7 | D118: 287.93 | E118: 283.87 | F118: 279.03 | G118: 274.97 | H118: 292.77 | I118: 296.83 | J118: 301.67 | K118: 292 | L118: 283.1 | M118: 9.03786
A119: 109 | B119: CUMMINSIND | C119: 570.4 | D119: 572.32 | E119: 564.13 | F119: 557.87 | G119: 549.68 | H119: 578.58 | I119: 586.77 | J119: 593.03 | K119: 580.5 | L119: 566.05 | M119: 4.89017
A120: 110 | B120: CYIENT | C120: 485.65 | D120: 486.70 | E120: 481.50 | F120: 477.35 | G120: 472.15 | H120: 490.85 | I120: 496.05 | J120: 500.20 | K120: 491.9 | L120: 482.55 | M120: 2.05674
A121: 111 | B121: DBCORP | C121: 132.15 | D121: 133.00 | E121: 131.10 | F121: 130.05 | G121: 128.15 | H121: 134.05 | I121: 135.95 | J121: 137.00 | K121: 134.9 | L121: 131.95 | M121: 0.44181
A122: 112 | B122: DCBBANK | C122: 176.25 | D122: 176.55 | E122: 173.95 | F122: 171.65 | G122: 169.05 | H122: 178.85 | I122: 181.45 | J122: 183.75 | K122: 179.15 | L122: 174.25 | M122: 4.89286
A123: 113 | B123: DCMSHRIRAM | C123: 366.3 | D123: 366.50 | E123: 362.10 | F123: 357.90 | G123: 353.50 | H123: 370.70 | I123: 375.10 | J123: 379.30 | K123: 370.9 | L123: 362.3 | M123: 0.41962
A124: 114 | B124: DLF | C124: 253.45 | D124: 251.63 | E124: 247.47 | F124: 241.48 | G124: 237.32 | H124: 257.62 | I124: 261.78 | J124: 267.77 | K124: 255.8 | L124: 245.65 | M124: 123.5288
A125: 115 | B125: DABUR | C125: 511.15 | D125: 509.22 | E125: 505.43 | F125: 499.72 | G125: 495.93 | H125: 514.93 | I125: 518.72 | J125: 524.43 | K125: 513 | L125: 503.5 | M125: 17.28547
A126: 116 | B126: DALBHARAT | C126: 885.25 | D126: 888.37 | E126: 871.98 | F126: 858.72 | G126: 842.33 | H126: 901.63 | I126: 918.02 | J126: 931.28 | K126: 904.75 | L126: 875.1 | M126: 2.11842
A127: 117 | B127: DEEPAKNTR | C127: 408.3 | D127: 408.27 | E127: 402.53 | F127: 396.77 | G127: 391.03 | H127: 414.03 | I127: 419.77 | J127: 425.53 | K127: 414 | L127: 402.5 | M127: 3.90177
A128: 118 | B128: DELTACORP | C128: 173.35 | D128: 174.42 | E128: 171.33 | F128: 169.32 | G128: 166.23 | H128: 176.43 | I128: 179.52 | J128: 181.53 | K128: 177.5 | L128: 172.4 | M128: 5.21563
A129: 119 | B129: DHFL | C129: 10.65 | D129: 10.65 | E129: 10.65 | F129: 10.65 | G129: 10.65 | H129: 10.65 | I129: 10.65 | J129: 10.65 | K129: 10.65 | L129: 10.65 | M129: 4.37481
A130: 120 | B130: DBL | C130: 383.55 | D130: 384.12 | E130: 380.43 | F130: 377.32 | G130: 373.63 | H130: 387.23 | I130: 390.92 | J130: 394.03 | K130: 387.8 | L130: 381 | M130: 1.54389
A131: 121 | B131: DISHTV | C131: 12.2 | D131: 12.28 | E131: 12.07 | F131: 11.93 | G131: 11.72 | H131: 12.42 | I131: 12.63 | J131: 12.77 | K131: 12.5 | L131: 12.15 | M131: 77.87203
A132: 122 | B132: DCAL | C132: 82.85 | D132: 82.85 | E132: 82.85 | F132: 82.85 | G132: 82.85 | H132: 82.85 | I132: 82.85 | J132: 82.85 | K132: 82.85 | L132: 82.85 | M132: 0.88631
A133: 123 | B133: DIVISLAB | C133: 1962.65 | D133: 1966.28 | E133: 1942.57 | F133: 1922.48 | G133: 1898.77 | H133: 1986.37 | I133: 2010.08 | J133: 2030.17 | K133: 1990 | L133: 1946.2 | M133: 5.19051
A134: 124 | B134: DIXON | C134: 4655.95 | D134: 4698.72 | E134: 4589.43 | F134: 4522.92 | G134: 4413.63 | H134: 4765.23 | I134: 4874.52 | J134: 4941.03 | K134: 4808 | L134: 4632.2 | M134: 0.5882
A135: 125 | B135: LALPATHLAB | C135: 1692.45 | D135: 1702.23 | E135: 1666.67 | F135: 1640.88 | G135: 1605.32 | H135: 1728.02 | I135: 1763.58 | J135: 1789.37 | K135: 1737.8 | L135: 1676.45 | M135: 0.73232
A136: 126 | B136: DRREDDY | C136: 3133.35 | D136: 3168.35 | E136: 3086.70 | F136: 3040.05 | G136: 2958.40 | H136: 3215.00 | I136: 3296.65 | J136: 3343.30 | K136: 3250 | L136: 3121.7 | M136: 9.56229
A137: 127 | B137: EIDPARRY | C137: 228.9 | D137: 230.10 | E137: 226.80 | F137: 224.70 | G137: 221.40 | H137: 232.20 | I137: 235.50 | J137: 237.60 | K137: 233.4 | L137: 228 | M137: 0.93964
A138: 128 | B138: EIHOTEL | C138: 136.2 | D138: 135.38 | E138: 133.27 | F138: 130.33 | G138: 128.22 | H138: 138.32 | I138: 140.43 | J138: 143.37 | K138: 137.5 | L138: 132.45 | M138: 0.386
A139: 129 | B139: EDELWEISS | C139: 88.6 | D139: 88.88 | E139: 87.27 | F139: 85.93 | G139: 84.32 | H139: 90.22 | I139: 91.83 | J139: 93.17 | K139: 90.5 | L139: 87.55 | M139: 7.33367
A140: 130 | B140: EICHERMOT | C140: 19487.05 | D140: 19547.72 | E140: 19295.43 | F140: 19103.82 | G140: 18851.53 | H140: 19739.33 | I140: 19991.62 | J140: 20183.23 | K140: 19800 | L140: 19356.1 | M140: 1.28333
A141: 131 | B141: ELGIEQUIP | C141: 251.6 | D141: 251.60 | E141: 248.20 | F141: 244.80 | G141: 241.40 | H141: 255.00 | I141: 258.40 | J141: 261.80 | K141: 255 | L141: 248.2 | M141: 0.22284
A142: 132 | B142: EMAMILTD | C142: 307.1 | D142: 306.57 | E142: 301.78 | F142: 296.47 | G142: 291.68 | H142: 311.88 | I142: 316.67 | J142: 321.98 | K142: 311.35 | L142: 301.25 | M142: 6.22761
A143: 133 | B143: ENDURANCE | C143: 1109 | D143: 1103.00 | E143: 1077.10 | F143: 1045.20 | G143: 1019.30 | H143: 1134.90 | I143: 1160.80 | J143: 1192.70 | K143: 1128.9 | L143: 1071.1 | M143: 0.11471
A144: 134 | B144: ENGINERSIN | C144: 94.55 | D144: 94.47 | E144: 92.68 | F144: 90.82 | G144: 89.03 | H144: 96.33 | I144: 98.12 | J144: 99.98 | K144: 96.25 | L144: 92.6 | M144: 7.39849
A145: 135 | B145: EQUITAS | C145: 114.3 | D145: 112.78 | E145: 110.72 | F145: 107.13 | G145: 105.07 | H145: 116.37 | I145: 118.43 | J145: 122.02 | K145: 114.85 | L145: 109.2 | M145: 100.50007
A146: 136 | B146: ERIS | C146: 523.95 | D146: 523.88 | E146: 516.37 | F146: 508.78 | G146: 501.27 | H146: 531.47 | I146: 538.98 | J146: 546.57 | K146: 531.4 | L146: 516.3 | M146: 0.36095
A147: 137 | B147: ESCORTS | C147: 855.3 | D147: 853.22 | E147: 840.63 | F147: 825.97 | G147: 813.38 | H147: 867.88 | I147: 880.47 | J147: 895.13 | K147: 865.8 | L147: 838.55 | M147: 31.23728
A148: 138 | B148: ESSELPACK | C148: 184 | D148: 183.95 | E148: 179.15 | F148: 174.30 | G148: 169.50 | H148: 188.80 | I148: 193.60 | J148: 198.45 | K148: 188.75 | L148: 179.1 | M148: 1.11614
A149: 139 | B149: EXIDEIND | C149: 185.65 | D149: 185.07 | E149: 179.13 | F149: 172.62 | G149: 166.68 | H149: 191.58 | I149: 197.52 | J149: 204.03 | K149: 191 | L149: 178.55 | M149: 147.05145
A150: 140 | B150: FDC | C150: 229.9 | D150: 229.65 | E150: 227.30 | F150: 224.70 | G150: 222.35 | H150: 232.25 | I150: 234.60 | J150: 237.20 | K150: 232 | L150: 227.05 | M150: 0.56065
A151: 141 | B151: FEDERALBNK | C151: 90.85 | D151: 90.35 | E151: 89.70 | F151: 88.55 | G151: 87.90 | H151: 91.50 | I151: 92.15 | J151: 93.30 | K151: 91 | L151: 89.2 | M151: 73.82599
A152: 142 | B152: FMGOETZE | C152: 569.95 | D152: 571.35 | E152: 564.10 | F152: 558.25 | G152: 551.00 | H152: 577.20 | I152: 584.45 | J152: 590.30 | K152: 578.6 | L152: 565.5 | M152: 0.01771
A153: 143 | B153: FINEORG | C153: 2348.65 | D153: 2363.20 | E153: 2330.45 | F153: 2312.25 | G153: 2279.50 | H153: 2381.40 | I153: 2414.15 | J153: 2432.35 | K153: 2395.95 | L153: 2345 | M153: 0.1374
A154: 144 | B154: FINCABLES | C154: 382.5 | D154: 380.62 | E154: 376.98 | F154: 371.47 | G154: 367.83 | H154: 386.13 | I154: 389.77 | J154: 395.28 | K154: 384.25 | L154: 375.1 | M154: 0.27961
A155: 145 | B155: FINPIPE | C155: 556.1 | D155: 555.63 | E155: 551.27 | F155: 546.43 | G155: 542.07 | H155: 560.47 | I155: 564.83 | J155: 569.67 | K155: 560 | L155: 550.8 | M155: 0.20388
A156: 146 | B156: FSL | C156: 42.7 | D156: 42.85 | E156: 42.10 | F156: 41.50 | G156: 40.75 | H156: 43.45 | I156: 44.20 | J156: 44.80 | K156: 43.6 | L156: 42.25 | M156: 14.76344
A157: 147 | B157: FORTIS | C157: 156.8 | D157: 156.13 | E157: 154.67 | F157: 152.53 | G157: 151.07 | H157: 158.27 | I157: 159.73 | J157: 161.87 | K157: 157.6 | L157: 154 | M157: 8.74925
A158: 148 | B158: FCONSUMER | C158: 22.55 | D158: 22.48 | E158: 21.92 | F158: 21.28 | G158: 20.72 | H158: 23.12 | I158: 23.68 | J158: 24.32 | K158: 23.05 | L158: 21.85 | M158: 16.07071
A159: 149 | B159: FLFL | C159: 399 | D159: 401.12 | E159: 394.18 | F159: 389.37 | G159: 382.43 | H159: 405.93 | I159: 412.87 | J159: 417.68 | K159: 408.05 | L159: 396.3 | M159: 0.41035
A160: 150 | B160: FRETAIL | C160: 328.45 | D160: 328.02 | E160: 324.53 | F160: 320.62 | G160: 317.13 | H160: 331.93 | I160: 335.42 | J160: 339.33 | K160: 331.5 | L160: 324.1 | M160: 13.78008
A161: 151 | B161: GAIL | C161: 120.95 | D161: 120.15 | E161: 118.80 | F161: 116.65 | G161: 115.30 | H161: 122.30 | I161: 123.65 | J161: 125.80 | K161: 121.5 | L161: 118 | M161: 118.11317
A162: 152 | B162: GEPIL | C162: 677.2 | D162: 677.43 | E162: 668.87 | F162: 660.53 | G162: 651.97 | H162: 685.77 | I162: 694.33 | J162: 702.67 | K162: 686 | L162: 669.1 | M162: 0.08561
A163: 153 | B163: GET&D | C163: 159.1 | D163: 160.07 | E163: 157.23 | F163: 155.37 | G163: 152.53 | H163: 161.93 | I163: 164.77 | J163: 166.63 | K163: 162.9 | L163: 158.2 | M163: 0.29712
A164: 154 | B164: GHCL | C164: 183.25 | D164: 184.33 | E164: 181.17 | F164: 179.08 | G164: 175.92 | H164: 186.42 | I164: 189.58 | J164: 191.67 | K164: 187.5 | L164: 182.25 | M164: 1.29414
A165: 155 | B165: GMRINFRA | C165: 22.9 | D165: 22.67 | E165: 22.33 | F165: 21.77 | G165: 21.43 | H165: 23.23 | I165: 23.57 | J165: 24.13 | K165: 23 | L165: 22.1 | M165: 88.74082
A166: 156 | B166: GALAXYSURF | C166: 1596.3 | D166: 1602.80 | E166: 1573.50 | F166: 1550.70 | G166: 1521.40 | H166: 1625.60 | I166: 1654.90 | J166: 1677.70 | K166: 1632.1 | L166: 1580 | M166: 0.14375
A167: 157 | B167: GARFIBRES | C167: 1567.75 | D167: 1559.28 | E167: 1544.57 | F167: 1521.38 | G167: 1506.67 | H167: 1582.47 | I167: 1597.18 | J167: 1620.37 | K167: 1574 | L167: 1536.1 | M167: 0.07153
A168: 158 | B168: GAYAPROJ | C168: 44.25 | D168: 44.25 | E168: 44.25 | F168: 44.25 | G168: 44.25 | H168: 44.25 | I168: 44.25 | J168: 44.25 | K168: 44.25 | L168: 44.25 | M168: 0.21759
A169: 159 | B169: GICRE | C169: 255.1 | D169: 252.88 | E169: 247.32 | F169: 239.53 | G169: 233.97 | H169: 260.67 | I169: 266.23 | J169: 274.02 | K169: 258.45 | L169: 245.1 | M169: 2.60366
A170: 160 | B170: GILLETTE | C170: 6498.8 | D170: 6494.92 | E170: 6463.88 | F170: 6428.97 | G170: 6397.93 | H170: 6529.83 | I170: 6560.87 | J170: 6595.78 | K170: 6525.95 | L170: 6460 | M170: 0.12146
A171: 161 | B171: GLAXO | C171: 1376.5 | D171: 1426.77 | E171: 1314.73 | F171: 1252.97 | G171: 1140.93 | H171: 1488.53 | I171: 1600.57 | J171: 1662.33 | K171: 1538.8 | L171: 1365 | M171: 6.14869
A172: 162 | B172: GLENMARK | C172: 319 | D172: 316.33 | E172: 312.57 | F172: 306.13 | G172: 302.37 | H172: 322.77 | I172: 326.53 | J172: 332.97 | K172: 320.1 | L172: 309.9 | M172: 16.25853
A173: 163 | B173: GODFRYPHLP | C173: 1254.7 | D173: 1253.63 | E173: 1216.27 | F173: 1177.83 | G173: 1140.47 | H173: 1292.07 | I173: 1329.43 | J173: 1367.87 | K173: 1291 | L173: 1215.2 | M173: 1.76985
A174: 164 | B174: GODREJAGRO | C174: 577.8 | D174: 579.23 | E174: 568.57 | F174: 559.33 | G174: 548.67 | H174: 588.47 | I174: 599.13 | J174: 608.37 | K174: 589.9 | L174: 570 | M174: 0.87106
A175: 165 | B175: GODREJCP | C175: 661.35 | D175: 658.25 | E175: 652.65 | F175: 643.95 | G175: 638.35 | H175: 666.95 | I175: 672.55 | J175: 681.25 | K175: 663.85 | L175: 649.55 | M175: 14.10185
A176: 166 | B176: GODREJIND | C176: 415.1 | D176: 414.63 | E176: 406.12 | F176: 397.13 | G176: 388.62 | H176: 423.62 | I176: 432.13 | J176: 441.12 | K176: 423.15 | L176: 405.65 | M176: 1.66964
A177: 167 | B177: GODREJPROP | C177: 1151.4 | D177: 1144.32 | E177: 1099.38 | F177: 1047.37 | G177: 1002.43 | H177: 1196.33 | I177: 1241.27 | J177: 1293.28 | K177: 1189.25 | L177: 1092.3 | M177: 10.71661
A178: 168 | B178: GRANULES | C178: 153.65 | D178: 151.72 | E178: 148.83 | F178: 144.02 | G178: 141.13 | H178: 156.53 | I178: 159.42 | J178: 164.23 | K178: 154.6 | L178: 146.9 | M178: 18.81971
A179: 169 | B179: GRAPHITE | C179: 303.1 | D179: 302.37 | E179: 299.88 | F179: 296.67 | G179: 294.18 | H179: 305.58 | I179: 308.07 | J179: 311.28 | K179: 304.85 | L179: 299.15 | M179: 10.12749
A180: 170 | B180: GRASIM | C180: 799.9 | D180: 796.68 | E180: 791.27 | F180: 782.63 | G180: 777.22 | H180: 805.32 | I180: 810.73 | J180: 819.37 | K180: 802.1 | L180: 788.05 | M180: 10.58399
A181: 171 | B181: GESHIP | C181: 307.7 | D181: 306.53 | E181: 302.57 | F181: 297.43 | G181: 293.47 | H181: 311.67 | I181: 315.63 | J181: 320.77 | K181: 310.5 | L181: 301.4 | M181: 0.45758
A182: 172 | B182: GREAVESCOT | C182: 138.7 | D182: 137.15 | E182: 133.30 | F182: 127.90 | G182: 124.05 | H182: 142.55 | I182: 146.40 | J182: 151.80 | K182: 141 | L182: 131.75 | M182: 2.12897
A183: 173 | B183: GRINDWELL | C183: 666.2 | D183: 662.28 | E183: 626.57 | F183: 586.93 | G183: 551.22 | H183: 701.92 | I183: 737.63 | J183: 777.27 | K183: 698 | L183: 622.65 | M183: 2.03464
A184: 174 | B184: GUJALKALI | C184: 381.75 | D184: 385.23 | E184: 375.52 | F184: 369.28 | G184: 359.57 | H184: 391.47 | I184: 401.18 | J184: 407.42 | K184: 394.95 | L184: 379 | M184: 1.05754
A185: 175 | B185: GUJGASLTD | C185: 296.25 | D185: 296.93 | E185: 291.87 | F185: 287.48 | G185: 282.42 | H185: 301.32 | I185: 306.38 | J185: 310.77 | K185: 302 | L185: 292.55 | M185: 12.9128
A186: 176 | B186: GMDCLTD | C186: 61 | D186: 61.37 | E186: 60.13 | F186: 59.27 | G186: 58.03 | H186: 62.23 | I186: 63.47 | J186: 64.33 | K186: 62.6 | L186: 60.5 | M186: 1.33378
A187: 177 | B187: GNFC | C187: 173.55 | D187: 174.18 | E187: 172.37 | F187: 171.18 | G187: 169.37 | H187: 175.37 | I187: 177.18 | J187: 178.37 | K187: 176 | L187: 173 | M187: 2.92385
A188: 178 | B188: GPPL | C188: 84.75 | D188: 85.08 | E188: 83.72 | F188: 82.68 | G188: 81.32 | H188: 86.12 | I188: 87.48 | J188: 88.52 | K188: 86.45 | L188: 84.05 | M188: 1.48283
A189: 179 | B189: GSFC | C189: 76.8 | D189: 77.45 | E189: 75.80 | F189: 74.80 | G189: 73.15 | H189: 78.45 | I189: 80.10 | J189: 81.10 | K189: 79.1 | L189: 76.45 | M189: 3.11932
A190: 180 | B190: GSPL | C190: 241.25 | D190: 241.45 | E190: 236.40 | F190: 231.55 | G190: 226.50 | H190: 246.30 | I190: 251.35 | J190: 256.20 | K190: 246.5 | L190: 236.6 | M190: 7.035
A191: 181 | B191: GULFOILLUB | C191: 802.4 | D191: 804.90 | E191: 796.05 | F191: 789.70 | G191: 780.85 | H191: 811.25 | I191: 820.10 | J191: 826.45 | K191: 813.75 | L191: 798.55 | M191: 0.06659
A192: 182 | B192: HEG | C192: 1086.85 | D192: 1077.68 | E192: 1055.37 | F192: 1023.88 | G192: 1001.57 | H192: 1109.17 | I192: 1131.48 | J192: 1162.97 | K192: 1100 | L192: 1046.2 | M192: 2.34487
A193: 183 | B193: HCLTECH | C193: 595.6 | D193: 593.37 | E193: 588.23 | F193: 580.87 | G193: 575.73 | H193: 600.73 | I193: 605.87 | J193: 613.23 | K193: 598.5 | L193: 586 | M193: 30.06324
A194: 184 | B194: HDFCAMC | C194: 3189.8 | D194: 3198.27 | E194: 3166.53 | F194: 3143.27 | G194: 3111.53 | H194: 3221.53 | I194: 3253.27 | J194: 3276.53 | K194: 3230 | L194: 3175 | M194: 3.6212
A195: 185 | B195: HDFCBANK | C195: 1244.65 | D195: 1239.98 | E195: 1231.97 | F195: 1219.28 | G195: 1211.27 | H195: 1252.67 | I195: 1260.68 | J195: 1273.37 | K195: 1248 | L195: 1227.3 | M195: 90.10341
A196: 186 | B196: HDFCLIFE | C196: 583.45 | D196: 578.27 | E196: 570.18 | F196: 556.92 | G196: 548.83 | H196: 591.53 | I196: 599.62 | J196: 612.88 | K196: 586.35 | L196: 565 | M196: 27.39852
A197: 187 | B197: HFCL | C197: 16.9 | D197: 16.85 | E197: 16.55 | F197: 16.20 | G197: 15.90 | H197: 17.20 | I197: 17.50 | J197: 17.85 | K197: 17.15 | L197: 16.5 | M197: 13.91746
A198: 188 | B198: HATSUN | C198: 655.35 | D198: 646.88 | E198: 634.82 | F198: 614.28 | G198: 602.22 | H198: 667.42 | I198: 679.48 | J198: 700.02 | K198: 658.95 | L198: 626.35 | M198: 0.14971
A199: 189 | B199: HAVELLS | C199: 621.1 | D199: 620.60 | E199: 611.20 | F199: 601.30 | G199: 591.90 | H199: 630.50 | I199: 639.90 | J199: 649.80 | K199: 630 | L199: 610.7 | M199: 21.74566
A200: 190 | B200: HEIDELBERG | C200: 199.7 | D200: 199.93 | E200: 197.37 | F200: 195.03 | G200: 192.47 | H200: 202.27 | I200: 204.83 | J200: 207.17 | K200: 202.5 | L200: 197.6 | M200: 1.33091
A201: 191 | B201: HERITGFOOD | C201: 348.15 | D201: 348.02 | E201: 337.13 | F201: 326.12 | G201: 315.23 | H201: 359.03 | I201: 369.92 | J201: 380.93 | K201: 358.9 | L201: 337 | M201: 0.32353
A202: 192 | B202: HEROMOTOCO | C202: 2373.25 | D202: 2399.23 | E202: 2319.57 | F202: 2265.88 | G202: 2186.22 | H202: 2452.92 | I202: 2532.58 | J202: 2586.27 | K202: 2478.9 | L202: 2345.55 | M202: 21.7698
A203: 193 | B203: HEXAWARE | C203: 371.25 | D203: 372.10 | E203: 366.15 | F203: 361.05 | G203: 355.10 | H203: 377.20 | I203: 383.15 | J203: 388.25 | K203: 378.05 | L203: 367 | M203: 2.95467
A204: 194 | B204: HSCL | C204: 64.45 | D204: 64.77 | E204: 63.68 | F204: 62.92 | G204: 61.83 | H204: 65.53 | I204: 66.62 | J204: 67.38 | K204: 65.85 | L204: 64 | M204: 4.8807
A205: 195 | B205: HIMATSEIDE | C205: 126.95 | D205: 125.75 | E205: 123.80 | F205: 120.65 | G205: 118.70 | H205: 128.90 | I205: 130.85 | J205: 134.00 | K205: 127.7 | L205: 122.6 | M205: 1.20286
A206: 196 | B206: HINDALCO | C206: 196.3 | D206: 194.05 | E206: 190.55 | F206: 184.80 | G206: 181.30 | H206: 199.80 | I206: 203.30 | J206: 209.05 | K206: 197.55 | L206: 188.3 | M206: 74.11014
... 320 more rows

Sheet Bulk Deals
E6: Back To Main Page
A7: Subject : | B7: BULK DEAL | D7: =Main!B10 -> 2020-02-05
A9: Date | B9: Scrip code | C9: Scrip Name | D9: Client Name | E9: Buy / Sell | F9: Quantity Traded | G9: Trade Price / Wt.Avg.trade price | H9: Exchange
A10: 2020-02-04 | B10: 511463 | C10: ALEXANDER | D10: KAHAR NIKLESH KANAIYABHAI | E10: BUY | F10: 62,142 | G10: 13.47 | H10: BSE
A11: 2020-02-04 | B11: 511463 | C11: ALEXANDER | D11: KAHAR NIKLESH KANAIYABHAI | E11: SELL | F11: 47,104 | G11: 13.33 | H11: BSE
A12: 2020-02-04 | B12: 539097 | C12: HKG | D12: SANJAY NATWARLAL DESAI | E12: SELL | F12: 20,000 | G12: 68.43 | H12: BSE
A13: 2020-02-04 | B13: 511628 | C13: IMCAP | D13: CAPITAL FINANCE & INVESTMENTS LLP | E13: SELL | F13: 23,250 | G13: 24.3 | H13: BSE
A14: 2020-02-04 | B14: 511628 | C14: IMCAP | D14: SUSHMA SINGH | E14: BUY | F14: 30,000 | G14: 24.3 | H14: BSE
A15: 2020-02-04 | B15: 507912 | C15: LKPFIN | D15: AUTHUM INVESTMENT & INFRASTRUCTURE LIMITED | E15: SELL | F15: 279,959 | G15: 89.95 | H15: BSE
A16: 2020-02-04 | B16: 507912 | C16: LKPFIN | D16: TEAM INDIA MANAGERS LTD | E16: BUY | F16: 284,000 | G16: 89.95 | H16: BSE
A17: 2020-02-04 | B17: 531213 | C17: MANAPPURAM | D17: KEY SQUARE MASTER FUND II LP | E17: BUY | F17: 8,000,000 | G17: 174 | H17: BSE
A18: 2020-02-04 | B18: 531213 | C18: MANAPPURAM | D18: COPTHALL MAURITIUS INVESTMENT LIMITED | E18: BUY | F18: 8,650,000 | G18: 174 | H18: BSE
A19: 2020-02-04 | B19: 531213 | C19: MANAPPURAM | D19: BARING INDIA PRIVATE EQUITY FUND II LIMITED | E19: SELL | F19: 10,365,034 | G19: 174.01 | H19: BSE
A20: 2020-02-04 | B20: 531213 | C20: MANAPPURAM | D20: BARING INDIA PRIVATE EQUITY FUND III LISTED INVESTMENTS LIMITED | E20: SELL | F20: 31,095,102 | G20: 174 | H20: BSE
A21: 2020-02-04 | B21: 531213 | C21: MANAPPURAM | D21: SOCIETE GENERALE | E21: BUY | F21: 6,000,000 | G21: 174 | H21: BSE
A22: 2020-02-04 | B22: 540243 | C22: NEWLIGHT | D22: MANISH NITIN THAKUR | E22: BUY | F22: 23,664 | G22: 29.19 | H22: BSE
A23: 2020-02-04 | B23: 539760 | C23: RELICAB | D23: SHAH BABULAL VADILAL HUF | E23: BUY | F23: 48,000 | G23: 47 | H23: BSE
A24: 2020-02-04 | B24: 539760 | C24: RELICAB | D24: HIRAL AMARKUMAR SHAH | E24: BUY | F24: 81,000 | G24: 46.48 | H24: BSE
A25: 2020-02-04 | B25: 539760 | C25: RELICAB | D25: KARAN SURESHBHAI MAJITHIA HUF | E25: SELL | F25: 126,000 | G25: 46.71 | H25: BSE
A26: 2020-02-04 | B26: 540259 | C26: SHANGAR | D26: RUPAL BHAVIN SHAH | E26: BUY | F26: 25,000 | G26: 29.9 | H26: BSE
A27: 2020-02-04 | B27: 540259 | C27: SHANGAR | D27: VAISHALIBEN RAJESHBHAI MODI | E27: BUY | F27: 11,444 | G27: 29.88 | H27: BSE
A28: 2020-02-04 | B28: 540259 | C28: SHANGAR | D28: RAJESH JAYANTILAL MODI | E28: BUY | F28: 13,427 | G28: 29.89 | H28: BSE
A29: 2020-02-04 | B29: 540259 | C29: SHANGAR | D29: VAISHALIBEN RAJESHBHAI MODI | E29: SELL | F29: 18,384 | G29: 29.89 | H29: BSE
A30: 2020-02-04 | B30: 540259 | C30: SHANGAR | D30: RAJESH JAYANTILAL MODI | E30: SELL | F30: 20,334 | G30: 29.89 | H30: BSE
A31: 2020-02-04 | B31: 539026 | C31: SSPNFIN | D31: ASHOK KUMAR SINGH | E31: BUY | F31: 20,000 | G31: 58.76 | H31: BSE
A32: 2020-02-04 | B32: 539026 | C32: SSPNFIN | D32: ASHOK KUMAR SINGH | E32: SELL | F32: 8,000 | G32: 58 | H32: BSE
A33: 2020-02-04 | B33: 539222 | C33: VMV | D33: RAMESH R VYAS | E33: BUY | F33: 20,000 | G33: 24.9 | H33: BSE
A34: 2020-02-04 | B34: 539222 | C34: VMV | D34: ASHOK KUMAR SINGH | E34: BUY | F34: 40,000 | G34: 25.45 | H34: BSE
A35: 2020-02-04 | B35: 539222 | C35: VMV | D35: RAMESH R VYAS | E35: SELL | F35: 30,000 | G35: 25.4 | H35: BSE
A36: 2020-02-04 | B36: 539222 | C36: VMV | D36: ASHOK KUMAR SINGH | E36: SELL | F36: 40,000 | G36: 25.55 | H36: BSE
A37: 2020-02-04 | B37: 539222 | C37: VMV | D37: RUSHIL SHAILESH PANDYA | E37: BUY | F37: 40,000 | G37: 25 | H37: BSE
A38: 2020-02-04 | B38: 539222 | C38: VMV | D38: RAJESH RAMANLAL KAPADIA | E38: SELL | F38: 30,000 | G38: 24.9 | H38: BSE
A39: 2020-02-04 | B39: AAKASH | C39: Aakash Exploration Ser L | D39: MEHTA ATULBHAI AMRATLAL HUF | E39: BUY | F39: 80,000 | G39: 67.16 | H39: NSE
A40: 2020-02-04 | B40: ASCOM | C40: Ascom Leasin & Invest Ltd | D40: SHAH BHAVESH KANTILAL HUF | E40: BUY | F40: 40,000 | G40: 32.63 | H40: NSE
A41: 2020-02-04 | B41: BHARATWIRE | C41: Bharat Wire Ropes Ltd. | D41: MOTILAL OSWAL | E41: BUY | F41: 942108 | G41: 26.25 | H41: NSE
A42: 2020-02-04 | B42: BHARATWIRE | C42: Bharat Wire Ropes Ltd. | D42: RAAMDEO AGRAWAL | E42: BUY | F42: 942109 | G42: 26.25 | H42: NSE
A43: 2020-02-04 | B43: BVCL | C43: Barak Valley Cements Limi | D43: BINA GARODIA | E43: BUY | F43: 200000 | G43: 12.5 | H43: NSE
A44: 2020-02-04 | B44: IBULHSGFIN | C44: Indiabulls Hsg Fin Ltd | D44: TOWER RESEARCH CAPITAL MARKETS INDIA PRIVATE LIMITED | E44: BUY | F44: 2143384 | G44: 269.41 | H44: NSE
A45: 2020-02-04 | B45: IEX | C45: Indian Energy Exc Ltd | D45: NIPPON INDIA MUTUAL FUND - NIPPON INDIA SMALL CAP FUND | E45: BUY | F45: 5500000 | G45: 166.5 | H45: NSE
A46: 2020-02-04 | B46: IEX | C46: Indian Energy Exc Ltd | D46: NIPPON INDIA MUTUAL FUND - NIPPON INDIA GROWTH FUND | E46: BUY | F46: 2200000 | G46: 166.5 | H46: NSE
A47: 2020-02-04 | B47: JUSTDIAL | C47: Justdial Ltd. | D47: TOWER RESEARCH CAPITAL MARKETS INDIA PRIVATE LIMITED | E47: BUY | F47: 417652 | G47: 519.44 | H47: NSE
A48: 2020-02-04 | B48: MOTILALOFS | C48: Motilal Oswal Financial S | D48: PASSIONATE INVESTMENT MANAGEMENT PRIVATE LIMITED | E48: BUY | F48: 854273 | G48: 773 | H48: NSE
A49: 2020-02-04 | B49: NCC | C49: NCC Limited | D49: HRTI PRIVATE LIMITED | E49: BUY | F49: 3080786 | G49: 50.31 | H49: NSE
A50: 2020-02-04 | B50: ORIENTALTL | C50: Oriental Trimex Limited | D50: SUNIYOJIT MERCHANTS PRIVATE LIMITED | E50: BUY | F50: 405000 | G50: 10.2 | H50: NSE
A51: 2020-02-04 | B51: YESBANK | C51: Yes Bank Limited | D51: TOWER RESEARCH CAPITAL MARKETS INDIA PRIVATE LIMITED | E51: BUY | F51: 16753655 | G51: 35.14 | H51: NSE
A52: 2020-02-04 | B52: BHARATWIRE | C52: Bharat Wire Ropes Ltd. | D52: OSAG ENTERPRISES LLP | E52: SELL | F52: 1884217 | G52: 26.25 | H52: NSE
A53: 2020-02-04 | B53: BVCL | C53: Barak Valley Cements Limi | D53: BIJAY KUMAR GARODIA | E53: SELL | F53: 200,000 | G53: 12.49 | H53: NSE
A54: 2020-02-04 | B54: CKFSL | C54: Cox & Kings Fin Serv Ltd | D54: ENTATHUR VEERARAGHAVA REDDIAR PERUMALSWAMI | E54: SELL | F54: 562,006 | G54: 0.35 | H54: NSE
A55: 2020-02-04 | B55: IBULHSGFIN | C55: Indiabulls Hsg Fin Ltd | D55: TOWER RESEARCH CAPITAL MARKETS INDIA PRIVATE LIMITED | E55: SELL | F55: 2,158,833 | G55: 269.44 | H55: NSE
A56: 2020-02-04 | B56: IEX | C56: Indian Energy Exc Ltd | D56: LSVP VIII MAURITIUS | E56: SELL | F56: 9,098,590 | G56: 166.5 | H56: NSE
A57: 2020-02-04 | B57: JUSTDIAL | C57: Justdial Ltd. | D57: TOWER RESEARCH CAPITAL MARKETS INDIA PRIVATE LIMITED | E57: SELL | F57: 417,039 | G57: 520.33 | H57: NSE
A58: 2020-02-04 | B58: MERCATOR | C58: Mercator Limited | D58: ARCADIA SHARE & STOCK BROKERS PVT. LTD. | E58: SELL | F58: 2,254,236 | G58: 1.02 | H58: NSE
A59: 2020-02-04 | B59: MINDPOOL | C59: Mindpool Technologies Ltd | D59: HEM FINLEASE PVT LTD | E59: SELL | F59: 28,000 | G59: 15.04 | H59: NSE
A60: 2020-02-04 | B60: NCC | C60: NCC Limited | D60: HRTI PRIVATE LIMITED | E60: SELL | F60: 3,080,786 | G60: 50.22 | H60: NSE
A61: 2020-02-04 | B61: ORIENTALTL | C61: Oriental Trimex Limited | D61: SILVERTOSS SHOPPERS PRIVATE LIMITED | E61: SELL | F61: 405,000 | G61: 10.2 | H61: NSE
A62: 2020-02-04 | B62: RPOWER | C62: Reliance Power Limited | D62: YES BANK LTD | E62: SELL | F62: 16,948,801 | G62: 1.65 | H62: NSE
A63: 2020-02-04 | B63: YESBANK | C63: Yes Bank Limited | D63: TOWER RESEARCH CAPITAL MARKETS INDIA PRIVATE LIMITED | E63: SELL | F63: 16,129,519 | G63: 35.16 | H63: NSE

Sheet Call Tracker (Equity & F&O)
M5: Back To Main Page
A6: Retail Research Technical Calls & Fundamental Performance Report for the month of February-2020
M7: =Main!B10 -> 2020-02-05
B8: Positional Call
A9: Sr.no | B9: Date | D9: Company | E9: Rec | F9: Rec Price | G9: Stop Loss*** | H9: Call Closed At | I9: Target | J9: Remark | K9: Profit / Loss per Share | L9: Gain / Loss % | M9: Status | N9: Closed Date | O9: NSE Closed Price
A10: 1 | B10: 2020-01-07 | D10: ITC | E10: Buy | F10: 237 | G10: 222.2 | H10: 220 | I10: 255-260 | J10: Loss of Rs.17/- | K10: =H10-F10 -> -17 | L10: =K10/F10 -> -7.17% | M10: Unsuccessful | N10: 2020-02-01 | R10: R
A11: 2 | B11: 2020-01-20 | D11: IOC | E11: Buy | F11: 117.5 | G11: 114 | H11: 117.25 | I11: 130 | J11: Loss of Rs.0.25/- | K11: =H11-F11 -> -0.25 | L11: =K11/F11 -> -0.21% | M11: Neutral | N11: 2020-02-01 | R11: H
A12: 3 | B12: 2020-02-03 | D12: FINPIPE | E12: Buy | F12: 552.5 | G12: 518 | H12: 567.5 | I12: 600-630 | J12: Profit of Rs.15/- | K12: =H12-F12 -> 15 | L12: =K12/F12 -> 2.71% | M12: Successful | N12: 2020-02-03 | R12: H
A13: 4 | B13: 2020-02-03 | D13: POWERGRID | E13: Buy | F13: 183 | G13: 169 | H13: 190 | I13: 200-210 | J13: Profit of Rs.7/- | K13: =H13-F13 -> 7 | L13: =K13/F13 -> 3.83% | M13: Successful | N13: 2020-02-03 | R13: H
A14: 5 | B14: 2020-02-04 | D14: MARICO | E14: Buy | F14: 306-308 | G14: 287.8 | I14: 335-345 | J14: Open | R14: R
A15: 6 | B15: 2020-02-04 | D15: BAJAJFINSV | E15: Sell | F15: 9500-9550 | G15: 10100 | I15: 8500-8300 | J15: Open | R15: H
A16: 7 | B16: 2020-02-05 | D16: INDHOTEL | E16: Buy | F16: 140-141 | G16: 132 | I16: 152-158 | J16: Open | R16: H
A17: 8 | B17: 2020-02-05 | D17: FINPIPE | E17: Buy | F17: 550-554 | G17: 518 | I17: 600-630 | J17: Open | R17: H
A18: 9 | B18: 2020-02-05 | D18: IOC | E18: Buy | F18: 113-115 | G18: 107 | I18: 124-128 | J18: Open | R18: H
A20: CLBS = Closing Basis ***
A21: Dividend adjusted <> | F21: Reinitiated $
A22: Part book {} | F22: Revised stoploss #
B24: Momentum Call
A25: Sr.no | B25: Date | D25: Company | E25: Rec | F25: Rec Price | G25: Stop Loss | H25: Call Closed At | I25: Target | J25: Remark | K25: Profit / Loss per Share/Lot | L25: Gain / Loss % | M25: Gain / Loss per Lot | N25: Lot | O25: Status | P25: Closed Date
A26: 1 | B26: 2020-01-31 | D26: GRASIM FEB FUT | E26: Buy | F26: 793 | G26: 777.7 | H26: 778.5 | I26: 820 | J26: Loss of Rs.14.5/- | K26: =H26-F26 -> -14.5 | M26: =N26*K26 -> -10875 | N26: 750 | O26: Unsuccessful | P26: 2020-02-01 | R26: R
A27: 2 | B27: 2020-01-31 | D27: TATASTEEL | E27: Buy | F27: 445 | G27: 431.7 | H27: 427.5 | I27: 465-470 | J27: Loss of Rs.17.5/- | K27: =H27-F27 -> -17.5 | L27: =K27/F27 -> -3.93% | O27: Unsuccessful | P27: 2020-02-01 | R27: R
A28: 3 | B28: 2020-02-01 | D28: SBIN | E28: Buy | F28: 313.5 | G28: 304 | H28: 304 | I28: 330-335 | J28: Loss of Rs.9.5/- | K28: =H28-F28 -> -9.5 | L28: =K28/F28 -> -3.03% | O28: Unsuccessful | P28: 2020-02-01 | R28: H
A29: 4 | B29: 2020-02-03 | D29: SBIN | E29: Buy | F29: 301 | G29: 292 | H29: 306 | I29: 315-320 | J29: Profit of Rs.5/- | K29: =H29-F29 -> 5 | L29: =K29/F29 -> 1.66% | O29: Successful | P29: 2020-02-03 | R29: H
A30: 5 | B30: 2020-02-03 | D30: SBIN | E30: Buy | F30: 300 | G30: 289 | H30: 306.5 | I30: 315-320 | J30: Profit of Rs.5/- | K30: =H30-F30 -> 6.5 | L30: =K30/F30 -> 2.17% | O30: Successful | P30: 2020-02-04 | R30: H
A31: 6 | B31: 2020-02-03 | D31: BAJAJAUTO | E31: Sell | F31: 3265 | G31: 3355 | H31: 3195 | I31: 3100-3050 | J31: Profit of Rs.70/- | K31: =F31-H31 -> 70 | L31: 2.14% | O31: Successful | P31: 2020-02-04 | R31: H
A32: 7 | B32: 2020-02-04 | D32: RELIANCE | E32: Buy | F32: 1414 | G32: 1367.7 | H32: 1442.5 | I32: 1480-1500 | J32: Profit of Rs.28.5/- | K32: =H32-F32 -> 28.5 | L32: =K32/F32 -> 2.02% | O32: Successful | P32: 2020-02-05 | R32: R
A33: 8 | B33: 2020-02-04 | D33: SUNPHARMA | E33: Buy | F33: 417 | G33: 404 | H33: 423.5 | I33: 435-445 | J33: Profit of Rs.6.5/- | K33: =H33-F33 -> 6.5 | L33: =K33/F33 -> 1.56% | O33: Successful | P33: 2020-02-04 | R33: R
A34: 9 | B34: 2020-02-05 | D34: ESCORTS | E34: Sell | F34: 840-845 | G34: 866 | I34: 815-805 | J34: Open | R34: H
A35: 10 | B35: 2020-02-05 | D35: LT FEB FUT | E35: Buy | F35: 1308-1312 | G35: 1275 | I35: 1350-1360 | J35: Open | R35: N
A36: 11 | B36: 2020-02-05 | D36: APOLLOHOSP | E36: Buy | F36: 1656-1662 | G36: 1595 | I36: 1720-1750 | J36: Open | R36: H
A37: 12 | B37: 2020-02-05 | D37: UPL | E37: Sell | F37: 536-540 | G37: 555.5 | I37: 510-505 | J37: Open | R37: R
A38: 13 | B38: 2020-02-05 | D38: COLPAL FEB FUT | E38: Buy | F38: 1368 | G38: 1351 | H38: 1378 | I38: 1400 | J38: Profit of Rs.10/- | K38: =H38-F38 -> 10 | M38: =N38*K38 -> 7000 | N38: 700 | O38: Successful | P38: 2020-02-05 | R38: N
A39: 14 | B39: 2020-02-05 | D39: ITC | E39: Buy | F39: 213-215 | G39: 204.4 | I39: 226-230 | J39: Open | R39: R
A40: 15 | B40: 2020-02-05 | D40: HINDUNILVR FEB FUT | E40: Sell | F40: 2160-2165 | G40: 2205 | I40: 2100-2080 | J40: Open | R40: R
A41: 16 | B41: 2020-02-05 | D41: DABUR FEB FUT | E41: Sell | F41: 512-514 | G41: 523.4 | I41: 495 | J41: Open | R41: R
A42: 17 | B42: 2020-02-05 | D42: NIFTY FEB FUT | E42: Sell | F42: 12040-12050 | G42: 12155 | I42: 11850 | J42: Open | R42: R
A43: 18 | B43: 2020-02-05 | D43: ACC FEB FUT | E43: Buy | F43: 1475-1477 | G43: 1445 | I43: 1510-1525 | J43: Open | R43: N
A51: CLBS = Closing Basis ***
A52: Dividend adjusted <> | F52: Reinitiated $
F53: Revised stoploss #
A55: Master Trade High Risk
A56: Sr.no | B56: Date | D56: Company | E56: Rec | F56: Rec Price | G56: Stop Loss | H56: Call Closed At | I56: Target | J56: Remark | K56: Profit / Loss per share | L56: Gain / Loss per Lot | M56: Lot | N56: Status | O56: Closed Date
A57: 1 | B57: 2020-02-04 | D57: ESCORTS FEB FUT | E57: Sell | F57: 836 | G57: 864 | H57: 855 | I57: 800-790 | J57: Loss of Rs.13/- | K57: =F57-H57 -> -19 | L57: =-13*M57 -> -14300 | M57: 1100 | N57: Unsuccessful | O57: 2020-02-04 | R57: H
D58: ESCORTS FEB 800 PE | E58: Sell | F58: 17 | H58: 11 | K58: =F58-H58 -> 6 | R58: H
A61: Master Trade Medium Risk
A62: Sr.no | B62: Date | D62: Company | E62: Rec | F62: Rec Price | G62: Stop Loss | H62: Call Closed At | I62: Target | J62: Remark | K62: Profit/ Loss per lot | L62: Gain / Loss per Lot | M62: Lot | N62: Status | O62: Closed Date
A63: 1 | B63: 2020-01-31 | D63: DLF 250 FEB PE | E63: Buy | F63: 8.8 | H63: 13.5 | J63: Profit of Rs.1.2/- | K63: =H63-F63 -> 4.7 | L63: =1.2*M63 -> 3960 | M63: 3300 | N63: Successful | O63: 2020-02-01 | R63: H
D64: DLF FEB 245 PE | E64: Sell | F64: 7 | H64: 10.5 | K64: =F64-H64 -> -3.5 | R64: H
A65: 2 | B65: 2020-02-01 | D65: DABUR 490 FEB PE | E65: Buy | F65: 9 | G65: 4.5 | H65: 11 | I65: 14-16 | J65: Profit of Rs.2/- | K65: =H65-F65 -> 2 | L65: =K65*M65 -> 2500 | M65: 1250 | N65: Successful | O65: 2020-02-01 | R65: H
A66: 3 | B66: 2020-02-03 | D66: MARUTI 7200 FEB CE | E66: Buy | F66: 111.5 | H66: 155.5 | J66: Prpfit of Rs.23.5 | K66: 44 | L66: =23.5*M66 -> 1762.5 | M66: 75 | N66: Successful | O66: 2020-02-04 | R66: H
D67: MARUTI 7400 FEB CE | E67: Sell | F67: 61.5 | H67: 82 | K67: -20.5 | R67: H
A68: 4 | B68: 2020-02-04 | D68: NIFTY 27 FEB 11700 PE | E68: Buy | F68: 118-122 | J68: Open | R68: H
D69: NIFTY 27 FEB 11500 PE | E69: Sell | F69: 64-68 | R69: H
A70: 5 | B70: 2020-02-05 | D70: NIFTY 11800 27-FEB PE | E70: Buy | F70: 73 | G70: 35 | H70: 84 | I70: 120-140 | J70: Profit of Rs.11/- | K70: =H70-F70 -> 11 | L70: =K70*M70 -> 825 | M70: 75 | N70: Successful | O70: 2020-02-05 | R70: H
A71: 6 | B71: 2020-02-05 | D71: DABUR 490 FEB PE | E71: Buy | F71: 4.50-5.00 | G71: 1.5 | I71: 8.00-10.00 | J71: Open | R71: H
A72: 7 | B72: 2020-02-05 | D72: NIFTY 11800 27-FEB PE | E72: Buy | F72: 65-68 | G72: 33 | I72: 110-120 | J72: Open | R72: H
A81: Techno -Funda (positional)
A82: Sr.no | B82: Date | D82: Company | E82: Rec | F82: Rec Price | G82: Stop Loss*** | H82: Call Closed At | I82: Target | J82: Remark | K82: Profit / Loss per Share | L82: Gain / Loss % | M82: Status | N82: Closed Date | O82: NSE Closed Price
A83: 1 | B83: 2020-01-07 | D83: FINPIPE | E83: Buy | F83: 543 | G83: 495 | H83: 584.5 | I83: 630-650 | J83: Profit of Rs.41.5/- | K83: =H83-F83 -> 41.5 | L83: =K83/F83 -> 7.64% | M83: Successful | N83: 2020-02-01 | R83: H
A85: CLBS = Closing Basis *** | F85: Reinitiated $
A86: Dividend adjusted <> | F86: Revised stoploss #
B91: Investment Idea
A92: Sr.no | B92: Date | D92: Company | E92: Rec | F92: Rec Price | G92: Point of Review | H92: Close Rate | I92: Target | J92: Remark | K92: Profit / Loss per Share | L92: Gain / Loss % | M92: Status | N92: Closed Date
A93: 1 | B93: 2013-11-01 | D93: L&T Finance Holding | E93: Accu | F93: 82.00 | G93: - | H93: 100 | I93: 100.00 | J93: Target Achieved | K93: =H93-F93 -> 18.00 | L93: =K93/F93 -> 21.95% | M93: Successful | N93: 2016-10-14
A94: 2 | B94: 2014-06-04 | D94: Finolex Inds | E94: Buy | F94: 257.00 | G94: - | H94: 300 | I94: 300.00 | J94: Target Achieved | K94: 43.00 | L94: 16.73% | M94: Successful | N94: 2014-07-02
A95: 3 | B95: 2014-07-08 | D95: JK Cement | E95: Buy | F95: 393.00 | G95: - | H95: 468 | I95: 468.00 | J95: Target Achieved | K95: 75.00 | L95: 19.08% | M95: Successful | N95: 2014-08-12
A96: 4 | B96: 2014-08-06 | D96: Finolex Cables | E96: Buy | F96: 205.00 | G96: - | H96: 275 | I96: 250.00 | J96: Target Achieved | K96: 70.00 | L96: 34.15% | M96: Successful | N96: 2014-11-19
A97: 5 | B97: 2014-09-04 | D97: Exide Inds | E97: Buy | F97: 162.00 | G97: - | H97: 190 | I97: 190.00 | J97: Target Achieved | K97: 28.00 | L97: 17.28% | M97: Successful | N97: 2015-01-02
A98: 6 | B98: 2014-09-04 | D98: Deepak Nitrite | E98: Buy | F98: 75.00 | G98: - | H98: 91.5 | I98: 95-100 | J98: Profit of Rs.16.50/- | K98: 16.50 | L98: 22.00% | M98: Successful | N98: 2014-11-11
A99: 7 | B99: 2014-10-01 | D99: Mercks | E99: Buy | F99: 850.00 | G99: - | H99: 982.5 | I99: 1050.00 | J99: Profit of Rs.132.50/- | K99: 132.50 | L99: 15.59% | M99: Successful | N99: 2015-02-04
A100: 8 | B100: 2014-10-01 | D100: Grindwell Norton | E100: Buy | F100: 475.00 | G100: - | H100: 515 | I100: 600.00 | J100: Profit of Rs.40/- | K100: 40.00 | L100: 8.42% | M100: Successful | N100: 2014-10-27
A101: 9 | B101: 2014-10-01 | D101: Snowman Logistics | E101: Buy | F101: 86.00 | G101: - | H101: 99 | I101: 140.00 | J101: Profit of Rs.13.00/- | K101: 13.00 | L101: 15.12% | M101: Successful | N101: 2014-10-27
A102: 10 | B102: 2014-10-14 | D102: Birla Corp | E102: Buy | F102: 496.60 | G102: - | H102: 621 | I102: 580.00 | J102: Target Achieved | K102: 124.40 | L102: 25.05% | M102: Successful | N102: 2016-08-23
A103: 11 | B103: 2014-10-14 | D103: Ultratech Cem | E103: Buy | F103: 2481.90 | G103: - | H103: 2840 | I103: 2870.00 | J103: Profit of Rs.358.10/- | K103: 358.10 | L103: 14.43% | M103: Successful | N103: 2015-01-13
A104: 12 | B104: 2014-10-16 | D104: Sintex Inds | E104: Buy | F104: 84.50 | G104: - | H104: 93 | I104: 110.00 | J104: Profit of Rs.8.50/- | K104: 8.50 | L104: 10.06% | M104: Successful | N104: 2014-10-27
A105: 13 | B105: 2014-10-16 | D105: HSIL | E105: Buy | F105: 401.00 | G105: - | H105: 428 | I105: 450.00 | J105: Profit of Rs.27.00/- | K105: 27.00 | L105: 6.73% | M105: Successful | N105: 2015-01-16
A106: 14 | B106: 2014-10-16 | D106: Eveready Inds | E106: Buy | F106: 101.00 | G106: - | H106: 112 | I106: 120.00 | J106: Profit of Rs.11.00/- | K106: 11.00 | L106: 10.89% | M106: Successful | N106: 2014-10-27
A107: 15 | B107: 2014-11-11 | D107: Pennar Inds | E107: Buy | F107: 59.00 | G107: - | H107: 76 | I107: 76.00 | J107: Target Achieved | K107: 17.00 | L107: 28.81% | M107: Successful | N107: 2017-10-24
A108: 16 | B108: 2014-11-11 | D108: Snowman Logistics | E108: Buy | F108: 99.00 | G108: - | H108: 120 | I108: 120.00 | J108: Profit of Rs.21/- | K108: 21.00 | L108: 21.21% | M108: Successful | N108: 2014-11-17
A109: 17 | B109: 2014-11-13 | D109: Dharamsi Morarji Chem | E109: Buy | F109: 22.00 | G109: - | H109: 33.55 | I109: 32.00 | J109: Profit of Rs 11.55/- | K109: 11.55 | L109: 52.50% | M109: Successful | N109: 2015-07-03
A110: 18 | B110: 2014-12-03 | D110: Tatachem | E110: Buy | F110: 440.00 | G110: - | H110: 520 | I110: 520.00 | J110: Profit of Rs 80.00/- | K110: 80.00 | L110: 18.18% | M110: Successful | N110: 2015-07-23
A111: 19 | B111: 2014-12-03 | D111: Advanta | E111: Buy | F111: 360.00 | G111: - | H111: 427 | I111: 425.00 | J111: Profit of Rs.67.00/- | K111: 67.00 | L111: 18.61% | M111: Successful | N111: 2015-02-23
A112: 20 | B112: 2015-01-08 | D112: GDL | E112: Buy | F112: 360.00 | G112: - | H112: 455 | I112: 420.00 | J112: Profit of Rs.95.00/- | K112: 95.00 | L112: 26.39% | M112: Successful | N112: 2015-01-20
A113: 21 | B113: 2015-01-08 | D113: NRB Bearing | E113: Buy | F113: 130.00 | H113: 175.5 | I113: 165.00 | J113: Profit of Rs 45.50/- | K113: 45.50 | L113: 35.00% | M113: Successful | N113: 2017-12-19
A114: 22 | B114: 2015-02-05 | D114: GSFC | E114: Accu | F114: 98.00 | H114: 120 | I114: 120.00 | J114: Target Achieved | K114: 22.00 | L114: 22.45% | M114: Successful | N114: 2017-01-18
A115: 23 | B115: 2015-02-05 | D115: Sundrmfast | E115: Accu | F115: 196.00 | H115: 262 | I115: 255.00 | J115: Target Achieved | K115: 66.00 | L115: 33.67% | M115: Successful | N115: 2016-08-17
A116: 24 | B116: 2015-03-04 | D116: GPPL | E116: Accu | F116: 235 | H116: 77.00 | I116: 280-285 | J116: Loss of Rs.158/- | K116: -158.00 | L116: -67.23% | M116: Unsuccessful | N116: 2019-02-26
A117: 25 | B117: 2015-03-04 | D117: ORIENTCEM | E117: Accu | F117: 185.00 | H117: 224 | I117: 220-225 | J117: Target Achieved | K117: 39.00 | L117: 21.08% | M117: Successful | N117: 2016-10-04
A118: 26 | B118: 2015-03-27 | D118: PFS | E118: Accu | F118: 49.5 | H118: 15.85 | I118: 67.00 | J118: Loss of Rs.33.65/- | K118: -33.65 | L118: -68% | M118: Unsuccessful | N118: 2019-06-11
A119: 27 | B119: 2015-03-30 | D119: Walchandnagar Ind Ltd | E119: Accu | F119: 183.50 | H119: 219 | I119: 218.00 | J119: Profit of Rs.35.50/- | K119: 35.50 | L119: 19.35% | M119: Successful | N119: 2015-04-09
A120: 28 | B120: 2015-04-20 | D120: Kalpataru Power Transmission Ltd | E120: Accu | F120: =(227+237)/2 -> 232.00 | H120: 298 | I120: 298.00 | J120: Target Achieved | K120: 66.00 | L120: 28.45% | M120: Successful | N120: 2017-03-29
A121: 29 | B121: 2015-05-04 | D121: Mastek Ltd | E121: Buy | F121: 385.00 | H121: =212.5+331 -> 543.5 | I121: 510.00 | J121: Profit of Rs 158.50/- | K121: 158.50 | L121: 41.17% | M121: Successful | N121: 2015-08-19
A122: 30 | B122: 2015-05-04 | D122: Suprajit Eng | E122: Buy | F122: 115.50 | H122: 146 | I122: 142.00 | J122: Profit of Rs 30.50/- | K122: 30.50 | L122: 26.41% | M122: Successful | N122: 2015-07-17
A123: 31 | B123: 2015-05-27 | D123: TCI | E123: Buy | F123: 237.50 | H123: 279.5 | I123: 278.00 | J123: Target Achieved | K123: 42.00 | L123: 17.68% | M123: Successful | N123: 2015-08-06
A124: 32 | B124: 2015-06-19 | D124: HSIL | E124: Accu | F124: 340.00 | H124: 448 | I124: 448.00 | J124: Target Achieved | K124: 108.00 | L124: 31.76% | M124: Successful | N124: 2017-10-10
A125: 33 | B125: 2015-07-06 | D125: Capital First | E125: Accu | F125: 390.00 | H125: 460 | I125: 460.00 | J125: Target Achieved | K125: =H125-F125 -> 70.00 | L125: =K125/F125 -> 17.95% | M125: Successful | N125: 2016-04-18
A126: 34 | B126: 2015-07-10 | D126: Dolphin OffShore | E126: Accu | F126: 122.5 | H126: 61.00 | I126: 172.00 | J126: Loss of Rs.61.50/- | K126: -61.50 | L126: -50.20% | M126: Unsuccessful | N126: 2018-08-21
A127: 35 | B127: 2015-08-03 | D127: Allcargo logistics | E127: Accu | F127: 297.50 | H127: 350 | I127: 360.00 | J127: Profit of Rs 52.50/- | K127: 52.50 | L127: 17.65% | M127: Successful | N127: 2015-08-16
A128: 36 | B128: 2015-08-03 | D128: Camline Fine | E128: Accu | F128: 115.50 | H128: 149 | I128: 140.00 | J128: Profit of Rs 33.50/- | K128: 33.50 | L128: 29.00% | M128: Successful | N128: 2017-01-05
A129: 37 | B129: 2015-09-04 | D129: TCI | E129: Accu | F129: 226.00 | H129: 292 | I129: 292.00 | J129: Target Achieved | K129: 66.00 | L129: 29.20% | M129: Successful | N129: 2015-10-09
A130: 38 | B130: 2015-09-07 | D130: Kalpataru Power Transmission Ltd | E130: Accu | F130: 232.50 | H130: 312.5 | I130: 310.00 | J130: Target Achieved | K130: 80.00 | L130: 34.41% | M130: Successful | N130: 2017-03-29
A131: 39 | B131: 2015-09-21 | D131: LLOYD ELECTRIC & ENG LTD | E131: Accu | F131: 196.50 | H131: 238 | I131: 238.00 | J131: Target Achieved | K131: 41.50 | L131: 21.12% | M131: Successful | N131: 2015-10-14
A132: 40 | B132: 2015-09-24 | D132: L&T Finance Holding | E132: Accu | F132: 65.00 | H132: 82 | I132: 82.00 | J132: Target Achieved | K132: 17.00 | L132: 26.15% | M132: Successful | N132: 2016-07-27
A133: 41 | B133: 2015-10-14 | D133: KEC International ltd | E133: Accu | F133: 144.00 | H133: 182.5 | I133: 181.00 | J133: Target Achieved | K133: 38.50 | L133: 26.74% | M133: Successful | N133: 2017-03-23
A134: 42 | B134: 2015-10-14 | D134: Gruh Finance | E134: Accu | F134: 264.00 | H134: 311 | I134: 311.00 | J134: Target Achieved | K134: 47.00 | L134: 17.80% | M134: Successful | N134: 2016-08-22
A135: 43 | B135: 2015-11-10 | D135: Pidilitind | E135: Buy | F135: 549.50 | H135: 630 | I135: 630.00 | J135: Target Achieved | K135: 80.50 | L135: 14.65% | M135: Successful | N135: 2016-02-19
A136: 44 | B136: 2015-12-04 | D136: Zensar Technology | E136: Accu | F136: 1027.50 | H136: 1315 | I136: 1250.00 | J136: Target Achieved | K136: 287.50 | L136: 27.98% | M136: Successful | N136: 2018-05-24
A137: 45 | B137: 2015-12-29 | D137: Vinati Organics Ltd | E137: Accu | F137: 465.00 | H137: 540 | I137: 540.00 | J137: Target Achieved | K137: 75.00 | L137: 16.13% | M137: Successful | N137: 2016-06-09
A138: 46 | B138: 2016-01-11 | D138: GSFC | E138: Buy | F138: 81.00 | H138: 110 | I138: 110.00 | J138: Target Achieved | K138: 29.00 | L138: 35.80% | M138: Successful | N138: 2017-01-10
A139: 47 | B139: 2016-01-13 | D139: SSWL | E139: Buy | F139: 417.50 | H139: 547 | I139: 535.00 | J139: Target Achieved | K139: 129.50 | L139: 31.02% | M139: Successful | N139: 2016-07-27
A140: 48 | B140: 2016-02-08 | D140: Persistent System Ltd | E140: Accu | F140: 650.00 | H140: 800 | I140: 800.00 | J140: Target Achieved | K140: 150.00 | L140: 23.08% | M140: Successful | N140: 2018-02-23
A141: 49 | B141: 2016-03-04 | D141: UPL | E141: Accu | F141: 437.50 | H141: 504.5 | I141: 522.00 | J141: Profit of Rs.67/- | K141: 67.00 | L141: 15.31% | M141: Successful | N141: 2016-04-20
A142: 50 | B142: 2016-03-09 | D142: Ashoka Buildcon Ltd | E142: Accu | F142: 189.50 | H142: 218 | I142: 218.00 | J142: Target Achieved | K142: 28.50 | L142: 15.04% | M142: Successful | N142: 2017-10-26
A143: 51 | B143: 2016-04-11 | D143: PTC INDIA FIN SERV LTD | E143: Accu | F143: 36.5 | H143: 15.85 | I143: 60.00 | J143: Loss of Rs.20.65/- | K143: -20.65 | L143: -56.58% | M143: Unsuccessful | N143: 2019-06-11
A144: 52 | B144: 2016-04-12 | D144: CAMLINFINE $ | E144: Accu | F144: 93.00 | H144: 149 | I144: 140.00 | J144: Profit of Rs 56/- | K144: 56.00 | L144: 60.22% | M144: Successful | N144: 2017-01-05
A145: 53 | B145: 2016-04-12 | D145: Greaves Cotton Ltd. | E145: Accu | F145: 130.00 | H145: 150 | I145: 150-155 | J145: Target Achieved | K145: 20.00 | L145: 15.38% | M145: Successful | N145: 2016-07-13
A146: 54 | B146: 2016-04-13 | D146: DHFL | E146: Accu | F146: 196.00 | H146: 299 | I146: 299.00 | J146: Target Achieved | K146: 103.00 | L146: 52.55% | M146: Successful | N146: 2016-09-07
A147: 55 | B147: 2016-04-13 | D147: Magma | E147: Accu | F147: 88.00 | H147: 103 | I147: 103.00 | J147: Target Achieved | K147: 15.00 | L147: 17.05% | M147: Successful | N147: 2016-06-09
A148: 56 | B148: 2016-05-02 | D148: KEC International ltd $ | E148: Accu | F148: 127.50 | H148: 148 | I148: 148-150 | J148: Target Achieved | K148: =H148-F148 -> 20.50 | L148: =K148/F148 -> 16.08% | M148: Successful | N148: 2016-07-13
A149: 57 | B149: 2016-05-03 | D149: Mindtree | E149: Accu | F149: 675.00 | H149: 815 | I149: 790-800 | J149: Target Achieved | K149: =H149-F149 -> 140.00 | L149: =K149/F149 -> 20.74% | M149: Successful | N149: 2018-02-23
A150: 58 | B150: 2016-06-01 | D150: Atulauto | E150: Accu | F150: 500 | H150: 232.50 | I150: 565-570 | J150: Loss of Rs.267.50 /- | K150: =H150-F150 -> -267.50 | L150: =K150/F150 -> -53.50% | M150: Unsuccessful | N150: 2019-09-27
A151: 59 | B151: 2016-06-06 | D151: TRITURBINE | E151: Accu | F151: 110.00 | H151: 126.5 | I151: 125.00 | J151: Profit of Rs.16.50/- | K151: =H151-F151 -> 16.50 | L151: =K151/F151 -> 15.00% | M151: Successful | N151: 2016-07-01
A152: 60 | B152: 2016-06-17 | D152: Pennar Industries Ltd | E152: Accu | F152: 44.00 | H152: 69.5 | I152: 69.50 | J152: Profit of Rs.25.50/- | K152: =H152-F152 -> 25.50 | L152: =K152/F152 -> 57.95% | M152: Successful | N152: 2017-08-30
A153: 61 | B153: 2016-06-28 | D153: EVEREADY | E153: Accu | F153: 262.50 | H153: 340 | I153: 333.00 | J153: Profit of Rs.77.50/- | K153: 77.50 | L153: 29.52% | M153: Successful | N153: 2017-10-09
A154: 62 | B154: 2016-06-28 | D154: FIEMIND | E154: Accu | F154: 840.00 | H154: 1230 | I154: 1230.00 | J154: Target Achieved | K154: 390.00 | L154: 46.43% | M154: Successful | N154: 2016-10-06
A155: 63 | B155: 2016-07-05 | D155: Bajaj Corp Ltd | E155: Accu | F155: 395 | H155: =(468.5+342.5)/2 -> 405.50 | I155: 510.00 | J155: Profit of Rs.10.50/- | K155: =H155-F155 -> 10.50 | L155: =K155/F155 -> 3% | M155: Neutral | N155: 2019-05-21
A156: 64 | B156: 2016-08-02 | D156: GPPL $ | E156: Buy | F156: 169.5 | H156: 77.00 | I156: 198-200 | J156: Loss of Rs.92.5/- | K156: -92.50 | L156: -54.57% | M156: Unsuccessful | N156: 2019-02-26
A157: 65 | B157: 2016-08-04 | D157: WONDERLA HOLIDAYS LTD | E157: Accu | F157: 400 | H157: 305.00 | I157: 475.00 | J157: Loss of Rs.95/- | K157: -95.00 | L157: -23.75% | M157: Unsuccessful | N157: 2019-05-21
A158: 66 | B158: 2016-08-11 | D158: CAMLINFINE | E158: Accu | F158: 86.50 | H158: 130 | I158: 130.00 | J158: Profit of Rs.43.50/- | K158: 43.50 | L158: 50.29% | M158: Successful | N158: 2017-12-22
A159: 67 | B159: 2016-08-18 | D159: GRANULES | E159: Accu | F159: 133.5 | H159: 126.50 | I159: 178.00 | J159: Exit | K159: -7.00 | L159: -5.24% | M159: Unsuccessful | N159: 2016-09-02
A160: 68 | B160: 2016-08-31 | D160: VA TECH WABAG | E160: Accu | F160: 560.00 | H160: 725 | I160: 725.00 | J160: Target Achieved | K160: 165.00 | L160: 29.46% | M160: Successful | N160: 2016-03-27
A161: 69 | B161: 2016-09-01 | D161: SKIPPER LIMITED | E161: Accu | F161: 160.50 | H161: 210 | I161: 210.00 | J161: Target Achieved | K161: 49.50 | L161: 30.84% | M161: Successful | N161: 2017-05-16
A162: 70 | B162: 2016-10-03 | D162: IFBIND | E162: Accu | F162: 430.00 | H162: 596 | I162: 575.00 | J162: Profit of Rs.166/- | K162: 166.00 | L162: 38.60% | M162: Successful | N162: 2017-02-03
A163: 71 | B163: 2016-10-14 | D163: ASIANTILES | E163: Accu | F163: 280.00 | H163: 345 | I163: 345.00 | J163: Target Achieved | K163: =H163-F163 -> 65.00 | L163: =K163/F163 -> 23.21% | M163: Successful | N163: 2017-03-20
A164: 72 | B164: 2016-10-14 | D164: DEEPIND | E164: Accu | F164: 245.00 | H164: 325.5 | I164: 330.00 | J164: Profit of Rs.80.5/- | K164: 80.50 | L164: =K164/F164 -> 32.86% | M164: Successful | N164: 2017-02-03
A165: 73 | B165: 2016-10-17 | D165: DCBBANK | E165: Accu | F165: 125.00 | H165: 160 | I165: 160.00 | J165: Target Achieved | K165: 35.00 | L165: 28.00% | M165: Successful | N165: 2017-03-09
A166: 74 | B166: 2016-10-17 | D166: ORIENTREF | E166: Accu | F166: 114.00 | H166: 145 | I166: 145.00 | J166: Target Achieved | K166: 31.00 | L166: =K166/F166 -> 27.19% | M166: Successful | N166: 2017-05-04
A167: 75 | B167: 2016-10-17 | D167: GANECOS | E167: Accu | F167: 212.00 | H167: 280 | I167: 276.00 | J167: Profit of Rs.68/- | K167: 68.00 | L167: =K167/F167 -> 32.08% | M167: Successful | N167: 2017-05-03
A168: 76 | B168: 2016-11-04 | D168: NBCC | E168: Accu | F168: 155.00 | H168: 210 | I168: 210.00 | J168: Profit of Rs.55/- | K168: 55.00 | L168: =K168/F168 -> 35.48% | M168: Successful | N168: 2017-07-28
A169: 77 | B169: 2016-12-06 | D169: PRECAM | E169: Accu | F169: 150.5 | H169: 72.50 | I169: 174.00 | J169: Loss of Rs.78/- | K169: -78.00 | L169: -51.83% | M169: Unsuccessful | N169: 2018-08-21
A170: 78 | B170: 2016-12-08 | D170: INFRATEL | E170: Accu | F170: 380.00 | H170: 478 | I170: 468.00 | J170: Target Achieved | K170: =H170-F170 -> 98.00 | L170: =K170/F170 -> 25.79% | M170: Successful | N170: 2017-10-17
A171: 79 | B171: 2016-12-30 | D171: GODREJPROP | E171: Accu | F171: 305.00 | H171: 375 | I171: 375.00 | J171: Target Achieved | K171: =H171-F171 -> 70.00 | L171: =K171/F171 -> 22.95% | M171: Successful | N171: 2017-02-02
A172: 80 | B172: 2017-01-04 | D172: DEEPAKNTR | E172: Accu | F172: 99.50 | H172: 158 | I172: 158.00 | J172: Target Achieved | K172: =H172-F172 -> 58.50 | L172: =K172/F172 -> 58.79% | M172: Successful | N172: 2017-06-12
A173: 81 | B173: 2017-01-04 | D173: DEEPAKNTR | E173: Accu | F173: 99.50 | H173: 158 | I173: 158.00 | J173: Target Achieved | K173: 58.50 | L173: 58.79% | M173: Successful | N173: 2017-06-12
A174: 82 | B174: 2017-02-20 | D174: RECLTD | E174: Accu | F174: 140.50 | H174: 220 | I174: 220.00 | J174: Target Achieved | K174: =H174-F174 -> 79.50 | L174: =K174/F174 -> 56.58% | M174: Successful | N174: 2017-05-09
A175: 83 | B175: 2017-02-20 | D175: SUBROS | E175: Accu | F175: 202.50 | H175: 234 | I175: 234.00 | J175: Target Achieved | K175: 31.50 | L175: 15.56% | M175: Successful | N175: 2017-04-11
A176: 84 | B176: 2017-03-24 | D176: VRLLOG | E176: Accu | F176: 300.50 | H176: 417.5 | I176: 420.00 | J176: Profit of Rs.117/- | K176: =H176-F176 -> 117.00 | L176: =K176/F176 -> 38.94% | M176: Successful | N176: 2017-12-01
A177: 85 | B177: 2017-03-24 | D177: FIEMIND | E177: Accu | F177: 850.00 | H177: 1042.5 | I177: 1023.00 | J177: Profit of Rs 192.50/- | K177: 192.50 | L177: 22.65% | M177: Successful | N177: 2017-04-05
A178: 86 | B178: 2017-04-05 | D178: RATNAMANI | E178: Accu | F178: 785.00 | H178: 930 | I178: 920.00 | J178: Profit of Rs.145/- | K178: =H178-F178 -> 145.00 | L178: =K178/F178 -> 18.47% | M178: Successful | N178: 2017-08-29
A179: 87 | B179: 2017-04-06 | D179: ZEEMEDIA | E179: Accu | F179: 40 | H179: 13.10 | I179: 60.00 | J179: Loss of Rs.26.9/- | K179: -26.90 | L179: -67.25% | M179: Unsuccessful | N179: 2018-02-07
A180: 88 | B180: 2017-04-12 | D180: DABUR | E180: Accu | F180: 289.50 | H180: 354 | I180: 360.00 | J180: Profit of Rs.64.5/- | K180: =H180-F180 -> 64.50 | L180: =K180/F180 -> 22.28% | M180: Successful | N180: 2017-11-01
A181: 89 | B181: 2017-04-20 | D181: KPRMILL | E181: Accu | F181: 700.00 | H181: 840 | I181: 840.00 | J181: Profit of Rs.140/- | K181: 140.00 | L181: 20.00% | M181: Successful | N181: 2017-06-07
A182: 90 | B182: 2017-06-01 | D182: ESSELPACK | E182: Accu | F182: 130.00 | H182: 144.25 | I182: 170.00 | J182: Profit of Rs.14.25/- | K182: 14.25 | L182: 10.96% | M182: Successful | N182: 2019-07-29
A183: 91 | B183: 2017-06-15 | D183: KEI | E183: Accu | F183: 214.50 | H183: 262 | I183: 262.00 | J183: Profit of Rs.47.5/- | K183: 47.50 | L183: 22.14% | M183: Successful | N183: 2017-08-30
A184: 92 | B184: 2017-07-17 | D184: MAYURUNIQ | E184: Accu | F184: 370.00 | H184: 447.5 | I184: 450.00 | J184: Target Achieved | K184: 77.50 | L184: 20.95% | M184: Successful | N184: 2017-10-27
A185: 93 | B185: 2017-07-27 | D185: RAMCOCEM | E185: Accu | F185: 657.50 | H185: 825 | I185: 820.00 | J185: Target Achieved | K185: 167.50 | L185: 25.48% | M185: Successful | N185: 2017-12-21
A186: 94 | B186: 2017-08-17 | D186: FINPIPE | E186: Accu | F186: 605.00 | H186: 750 | I186: 750.00 | J186: Profit of Rs.145/- | K186: 145.00 | L186: 23.97% | M186: Successful | N186: 2017-10-19
A187: 95 | B187: 2017-09-01 | D187: SHK | E187: Accu | F187: 255 | H187: 217.25 | I187: 320.00 | J187: Loss of Rs.37.75/- | K187: -37.75 | L187: -15% | M187: Unsuccessful | N187: 2019-07-15
A188: 96 | B188: 2017-09-19 | D188: SKIPPER | E188: Accu | F188: 215.00 | H188: 258 | I188: 258.00 | J188: Target Achieved | K188: 43.00 | L188: 20.00% | M188: Successful | N188: 2017-11-01
A189: 97 | B189: 2017-09-19 | D189: SKIPPER | E189: Accu | F189: 215.00 | H189: 258 | I189: 258.00 | J189: Target Achieved | K189: 43.00 | L189: 20.00% | M189: Successful | N189: 2017-11-01
A190: 98 | B190: 2017-09-20 | D190: CAMLINFINE$ | E190: Accu | F190: 75.00 | H190: 90 | I190: 90.00 | J190: Profit of Rs.15.00/- | K190: =H190-F190 -> 15.00 | L190: =K190/F190 -> 20.00% | M190: Successful | N190: 2017-10-11
A191: 99 | B191: 2017-10-03 | D191: GNA | E191: Accu | F191: 315.00 | H191: 392 | I191: 384.00 | J191: Profit of Rs.77/- | K191: 77.00 | L191: 24.44% | M191: Successful | N191: 2017-10-09
A192: 100 | B192: 2017-10-05 | D192: NOCIL | E192: Accu | F192: 145.00 | H192: 179 | I192: 180.00 | J192: Profit of Rs.34/- | K192: 34.00 | L192: 23.45% | M192: Successful | N192: 2017-10-17
A193: 101 | B193: 2017-10-06 | D193: CENTURYPLY | E193: Accu | F193: 256.00 | H193: 323 | I193: 320.00 | J193: Target Achieved | K193: 67.00 | L193: 26.17% | M193: Successful | N193: 2017-11-28
A194: 102 | B194: 2017-10-09 | D194: EIHOTEL | E194: Accu | F194: 137.50 | H194: 184 | I194: 183.00 | J194: Profit of Rs.46.5/- | K194: 46.50 | L194: 33.82% | M194: Successful | N194: 2018-01-08
A195: 103 | B195: 2017-10-10 | D195: NRBBEARING | E195: Accu | F195: 125.50 | H195: 158 | I195: 155.00 | J195: Profit of Rs.32.5/- | K195: 32.50 | L195: 25.90% | M195: Successful | N195: 2017-11-28
A196: 104 | B196: 2017-10-10 | D196: BOROSIL | E196: Accu | F196: 895.00 | H196: 1122.5 | I196: 1078.00 | J196: Profit of Rs.227.5/- | K196: 227.50 | L196: 25.42% | M196: Successful | N196: 2018-01-17
A197: 105 | B197: 2017-10-12 | D197: CYIENT | E197: Accu | F197: 525.00 | H197: 629 | I197: 629.00 | J197: Target Achieved | K197: 104.00 | L197: 19.81% | M197: Successful | N197: 2018-01-19
A198: 106 | B198: 2017-11-07 | D198: HATSUN | E198: Accu | F198: 740.00 | H198: 892.5 | I198: 900.00 | J198: Profit of Rs.152.5/- | K198: =H198-F198 -> 152.50 | L198: =K198/F198 -> 20.61% | M198: Successful | N198: 2017-11-13
A199: 107 | B199: 2017-12-04 | D199: SANGHIIND | E199: Accu | F199: 118.50 | H199: 143.5 | I199: 145.00 | J199: Profit of Rs.25/- | K199: =H199-F199 -> 25.00 | L199: =K199/F199 -> 21.10% | M199: Successful | N199: 2017-12-28
A200: 108 | B200: 2017-12-21 | D200: KAJARIACER | E200: Accu | F200: 715 | H200: 500.00 | I200: 872.00 | J200: Loss of Rs.215/- | K200: =H200-F200 -> -215.00 | L200: =K200/F200 -> -30.07% | M200: Unsuccessful | N200: 2019-07-24
A201: 109 | B201: 2017-12-29 | D201: GNA | E201: Accu | F201: 435.00 | H201: 542.5 | I201: 539.00 | J201: Target Achieved | K201: 107.50 | L201: 24.71% | M201: Successful | N201: 2018-04-16
A202: 110 | B202: 2017-12-29 | D202: ZENSARTECH | E202: Accu | F202: 885.00 | H202: 1090 | I202: 1084.00 | J202: Target Achieved | K202: 205.00 | L202: 23.16% | M202: Successful | N202: 2018-04-23
A203: 111 | B203: 2018-04-02 | D203: EVERESTIND | E203: Accu | F203: 492.50 | H203: 442 | I203: 613.00 | J203: Loss of Rs.50.50 /- | K203: =H203-F203 -> -50.50 | L203: =K203/F203 -> -10.25% | M203: Unsuccessful | N203: 2019-10-24
A204: 112 | B204: 2018-04-04 | D204: GPPL$ | E204: Accu | F204: 141.5 | H204: 77.00 | I204: 180.00 | J204: Loss of Rs.64.5/- | K204: =H204-F204 -> -64.50 | L204: =K204/F204 -> -45.58% | M204: Unsuccessful | N204: 2019-02-26
A205: 113 | B205: 2018-04-19 | D205: MANPASAND | E205: Accu | F205: 430 | H205: 220.00 | I205: 537.00 | J205: Loss of Rs.210/- | K205: =H205-F205 -> -210.00 | L205: =K205/F205 -> -48.84% | M205: Unsuccessful | N205: 2018-06-01
A206: 114 | B206: 2018-04-30 | D206: HEIDELBERG | E206: Accu | F206: 156 | H206: 196.00 | I206: 196.00 | J206: Profit of Rs.40/- | K206: =H206-F206 -> 40.00 | L206: =K206/F206 -> 26% | M206: Successful | N206: 2019-05-20
A207: 115 | B207: 2018-07-25 | D207: ZEEMEDIA | E207: Accu | F207: 27.5 | H207: 13.10 | I207: 60.00 | J207: Loss of Rs.14.40/- | K207: -14.40 | L207: -52.36% | M207: Unsuccessful | N207: 2018-02-07
A208: 116 | B208: 2018-08-06 | D208: GABRIEL | E208: Accu | F208: 150.00 | H208: 102 | I208: 182.00 | J208: Loss of Rs.48 /- | K208: =H208-F208 -> -48.00 | L208: =K208/F208 -> -32.00% | M208: Unsuccessful | N208: 2019-07-15
A209: 117 | B209: 2018-08-23 | D209: INDIANHUME | E209: Accu | F209: 285.00 | H209: 355 | I209: 364.00 | J209: Profit of Rs.70/- | K209: 70.00 | L209: 24.56% | M209: Successful | N209: 2018-12-21
A210: 118 | B210: 2018-08-29 | D210: GRINDWELL | E210: Accu | F210: 525.00 | H210: 585 | I210: 635.00 | J210: Profit of Rs.60- | K210: =H210-F210 -> 60.00 | L210: =K210/F210 -> 11.43% | M210: Successful | N210: 2019-07-16
A211: 119 | B211: 2018-10-22 | D211: FINPIPE | E211: Accu | F211: 475.00 | H211: 574 | I211: 570.00 | J211: Target Achieved | K211: 99.00 | L211: 20.84% | M211: Successful | N211: 2018-10-30
A212: 120 | B212: 2018-10-24 | D212: GULFOILLUB | E212: Accu | F212: 707.50 | H212: 872 | I212: 872.00 | J212: Target Achieved | K212: 164.50 | L212: 23.25% | M212: Successful | N212: 2019-01-17
A213: 121 | B213: 2018-10-25 | D213: DBCORP | E213: Accu | F213: 164.00 | H213: 204 | I213: 209.00 | J213: Profit of Rs.40/- | K213: 40.00 | L213: 24.39% | M213: Successful | N213: 2019-03-15
A214: 122 | B214: 2018-10-26 | D214: RITES | E214: Accu | F214: 240.00 | H214: 297 | I214: 297.00 | J214: Target Achieved | K214: 57.00 | L214: 23.75% | M214: Successful | N214: 2018-11-13
A215: 123 | B215: 2018-12-05 | D215: BRIGADE | E215: Accu | F215: 202.50 | H215: 255 | I215: 252.00 | J215: Target Achieved | K215: 52.50 | L215: 25.93% | M215: Successful | N215: 2019-03-18
A216: 124 | B216: 2018-12-31 | D216: JKCEMENT | E216: Accu | F216: 710.00 | H216: 866 | I216: 866.00 | J216: Target Achieved | K216: 156.00 | L216: 21.97% | M216: Successful | N216: 2019-03-29
A217: 125 | B217: 2019-02-26 | D217: MARICO | E217: Accu | F217: 340.00 | H217: 398.5 | I217: 411.00 | J217: Profit of Rs.58.50/- | K217: 58.50 | L217: 17.21% | M217: Successful | N217: 2019-10-22
A218: 126 | B218: 2019-04-04 | D218: ITDCEM | E218: Accu | F218: 130.00 | H218: 65 | I218: 158.00 | J218: Loss of Rs.65 /- | K218: -65.00 | L218: -50.00% | M218: Unsuccessful | N218: 2019-09-18
A219: 127 | B219: 2017-10-09 | D219: RECLTD | E219: Accu | F219: 152.5 | H219: 183.50 | I219: 210.00 | J219: Part Profit of Rs.31/- | K219: 31.00 | L219: 20% | M219: Successful | N219: 2017-11-03 | R219: V
A220: 128 | B220: 2017-12-05 | D220: ALLCARGO | E220: Accu | F220: 177.50 | H220: 155.25 | I220: 230.00 | J220: Loss of Rs.22.25/- | K220: =H220-F220 -> -22.25 | L220: =K220/F220 -> -12.54% | M220: Unsuccessful | N220: 2019-11-18 | R220: V
A221: 129 | B221: 2018-10-25 | D221: GODREJCP | E221: Accu | F221: 707.5 | H221: 850.00 | I221: 890.00 | J221: Part Profit of Rs.142.5/- | K221: 142.50 | L221: 20% | M221: Successful | N221: 2018-12-19 | R221: V
A222: 130 | B222: 2017-05-22 | D222: GREAVESCOT | E222: Accu | F222: 138.6 | H222: 138.00 | I222: 190.00 | J222: Neutral | K222: -0.60 | L222: -0% | M222: Neutral | N222: 2019-11-05 | R222: K
A223: 131 | B223: 2018-02-27 | D223: MOLDTKPAC | E223: Accu | F223: 320-330 | I223: 398.00 | M223: Open | R223: K
A224: 132 | B224: 2018-03-05 | D224: LICHSGFIN | E224: Accu | F224: 505-515 | I224: 672.00 | M224: Open | R224: K
A225: 133 | B225: 2018-05-17 | D225: PHILIPCARB | E225: Accu | F225: 230-240 | I225: 348.00 | M225: Open | R225: V
A226: 134 | B226: 2018-06-07 | D226: KEC | E226: Accu | F226: 340-345 | I226: 439.00 | M226: Open | R226: K
A227: 135 | B227: 2018-07-04 | D227: ASHOKLEY | E227: Accu | F227: 125-130 | I227: 170.00 | M227: Open | R227: K
A228: 136 | B228: 2018-07-13 | D228: FCONSUMER | E228: Accu | F228: 46-47 | I228: 59.00 | M228: Open | R228: V
A229: 137 | B229: 2018-10-23 | D229: JKPAPER | E229: Accu | F229: 158-162 | I229: 191.00 | M229: Open | R229: V
... 16 more rows

Sheet Sheet2 (hidden)
A1: SYMBOL | B1: SERIES | C1: OPEN | D1: HIGH | E1: LOW | F1: CLOSE | G1: LAST | H1: PREVCLOSE | I1: TOTTRDQTY | J1: TOTTRDVAL | K1: TIMESTAMP | L1: TOTALTRADES | M1: ISIN | N1: ISIN
A2: 20MICRONS | B2: EQ | C2: 34.7 | D2: 35.5 | E2: 34 | F2: 34.8 | G2: 34.8 | H2: 34.45 | I2: 19419 | J2: 676464.8 | K2: 2020-02-04 | L2: 328 | M2: INE144J01027
A3: 3IINFOTECH | B3: EQ | C3: 2.15 | D3: 2.4 | E3: 2.15 | F3: 2.3 | G3: 2.35 | H3: 2.15 | I3: 1677171 | J3: 3851350.75 | K3: 2020-02-04 | L3: 765 | M3: INE748C01020
A4: 3MINDIA | B4: EQ | C4: 22800 | D4: 23661 | E4: 22731.6 | F4: 23090 | G4: 23350 | H4: 22637.05 | I4: 8496 | J4: 197073511 | K4: 2020-02-04 | L4: 2583 | M4: INE470A01017
A5: 3PLAND | B5: EQ | C5: 6.85 | D5: 7.15 | E5: 6.6 | F5: 6.6 | G5: 6.6 | H5: 6.9 | I5: 2089 | J5: 13883.1 | K5: 2020-02-04 | L5: 15 | M5: INE105C01023
A6: 5PAISA | B6: EQ | C6: 181.65 | D6: 187.95 | E6: 180 | F6: 182.2 | G6: 183.4 | H6: 182.7 | I6: 3951 | J6: 722473.4 | K6: 2020-02-04 | L6: 183 | M6: INE618L01018
A7: 63MOONS | B7: EQ | C7: 102.1 | D7: 104.8 | E7: 102.1 | F7: 103.4 | G7: 103.75 | H7: 101.75 | I7: 80721 | J7: 8358366.95 | K7: 2020-02-04 | L7: 2691 | M7: INE111B01023
A8: A2ZINFRA | B8: EQ | C8: 6.7 | D8: 7.35 | E8: 6.7 | F8: 6.8 | G8: 6.8 | H8: 6.75 | I8: 294270 | J8: 2046322.95 | K8: 2020-02-04 | L8: 518 | M8: INE619I01012
A9: AARTIDRUGS | B9: EQ | C9: 586.75 | D9: 600 | E9: 586.75 | F9: 597.4 | G9: 598 | H9: 586.75 | I9: 11955 | J9: 7101135.25 | K9: 2020-02-04 | L9: 938 | M9: INE767A01016
A10: AARTIIND | B10: EQ | C10: 982.95 | D10: 998 | E10: 956.1 | F10: 963.25 | G10: 963 | H10: 969.05 | I10: 198175 | J10: 191769803.2 | K10: 2020-02-04 | L10: 18348 | M10: INE769A01020
A11: AARVEEDEN | B11: EQ | C11: 13.7 | D11: 13.7 | E11: 12.65 | F11: 13.05 | G11: 13.1 | H11: 13.25 | I11: 1956 | J11: 25626.6 | K11: 2020-02-04 | L11: 57 | M11: INE273D01019
A12: AAVAS | B12: EQ | C12: 1988.8 | D12: 2000 | E12: 1965 | F12: 1970.6 | G12: 1975 | H12: 1988.8 | I12: 15186 | J12: 30028718.5 | K12: 2020-02-04 | L12: 3259 | M12: INE216P01012
A13: ABAN | B13: EQ | C13: 24.2 | D13: 24.9 | E13: 23.1 | F13: 24 | G13: 23.9 | H13: 24.2 | I13: 46730 | J13: 1113546.4 | K13: 2020-02-04 | L13: 494 | M13: INE421A01028
A14: ABB | B14: EQ | C14: 1301 | D14: 1324 | E14: 1293.8 | F14: 1311.3 | G14: 1310.05 | H14: 1292.3 | I14: 21892 | J14: 28651155.6 | K14: 2020-02-04 | L14: 1867 | M14: INE117A01022
A15: ABBOTINDIA | B15: EQ | C15: 12839 | D15: 13280 | E15: 12796.25 | F15: 13134.35 | G15: 13081.05 | H15: 12746.25 | I15: 13188 | J15: 172206288.2 | K15: 2020-02-04 | L15: 3773 | M15: INE358A01014
A16: ABCAPITAL | B16: EQ | C16: 93 | D16: 96 | E16: 92.95 | F16: 95 | G16: 95.45 | H16: 92.1 | I16: 2766962 | J16: 261202934.1 | K16: 2020-02-04 | L16: 20892 | M16: INE674K01013
A17: ABFRL | B17: EQ | C17: 231 | D17: 232.4 | E17: 227.5 | F17: 229.65 | G17: 228 | H17: 230 | I17: 506335 | J17: 116238307.7 | K17: 2020-02-04 | L17: 7123 | M17: INE647O01011
A18: ABSLBANETF | B18: EQ | C18: 305.01 | D18: 305.01 | E18: 305.01 | F18: 305.01 | G18: 305.01 | H18: 300.73 | I18: 5 | J18: 1525.05 | K18: 2020-02-04 | L18: 1 | M18: INF209KB1O58
A19: ABSLNN50ET | B19: EQ | C19: 278.92 | D19: 282.82 | E19: 278.75 | F19: 282.82 | G19: 282.82 | H19: 276.44 | I19: 53 | J19: 14782.06 | K19: 2020-02-04 | L19: 4 | M19: INF209KB1B87
A20: ACC | B20: EQ | C20: 1463.8 | D20: 1506 | E20: 1463 | F20: 1487.25 | G20: 1488.15 | H20: 1456.55 | I20: 944148 | J20: 1408118547 | K20: 2020-02-04 | L20: 19558 | M20: INE012A01025
A21: ACCELYA | B21: EQ | C21: 1030.7 | D21: 1052.5 | E21: 1025.2 | F21: 1044.45 | G21: 1045 | H21: 1030.7 | I21: 3678 | J21: 3835975.95 | K21: 2020-02-04 | L21: 478 | M21: INE793A01012
A22: ACE | B22: EQ | C22: 81.45 | D22: 81.6 | E22: 72.15 | F22: 74.35 | G22: 75 | H22: 80.6 | I22: 296918 | J22: 22941111.8 | K22: 2020-02-04 | L22: 2809 | M22: INE731H01025
A23: ADANIENT | B23: EQ | C23: 222.65 | D23: 227.15 | E23: 222.05 | F23: 225.45 | G23: 224.6 | H23: 220.9 | I23: 2028088 | J23: 456711544.1 | K23: 2020-02-04 | L23: 11967 | M23: INE423A01024
A24: ADANIGAS | B24: EQ | C24: 166.8 | D24: 169 | E24: 166.2 | F24: 167.15 | G24: 167.15 | H24: 165.15 | I24: 741382 | J24: 124325904.5 | K24: 2020-02-04 | L24: 8171 | M24: INE399L01023
A25: ADANIGREEN | B25: EQ | C25: 201.9 | D25: 205.95 | E25: 190.1 | F25: 198 | G25: 198.2 | H25: 196.15 | I25: 3984199 | J25: 794737191.1 | K25: 2020-02-04 | L25: 57318 | M25: INE364U01010
A26: ADANIPORTS | B26: EQ | C26: 370.1 | D26: 376 | E26: 366.35 | F26: 372.5 | G26: 368.35 | H26: 367.35 | I26: 3061868 | J26: 1140064198 | K26: 2020-02-04 | L26: 37727 | M26: INE742F01042
A27: ADANIPOWER | B27: EQ | C27: 59.05 | D27: 60.7 | E27: 59.05 | F27: 60.45 | G27: 60.45 | H27: 59 | I27: 5643410 | J27: 339842457.8 | K27: 2020-02-04 | L27: 10899 | M27: INE814H01011
A28: ADANITRANS | B28: EQ | C28: 333 | D28: 338 | E28: 327.9 | F28: 333.9 | G28: 333.8 | H28: 332.05 | I28: 150439 | J28: 50093187.8 | K28: 2020-02-04 | L28: 4447 | M28: INE931S01010
A29: ADFFOODS | B29: EQ | C29: 287 | D29: 304.2 | E29: 287 | F29: 292 | G29: 294 | H29: 286.3 | I29: 61100 | J29: 18052328.45 | K29: 2020-02-04 | L29: 1750 | M29: INE982B01019
A30: ADHUNIKIND | B30: EQ | C30: 37 | D30: 38.9 | E30: 36.7 | F30: 37.45 | G30: 37.9 | H30: 38.25 | I30: 5478 | J30: 205598.75 | K30: 2020-02-04 | L30: 252 | M30: INE452L01012
A31: ADORWELD | B31: EQ | C31: 308 | D31: 315 | E31: 305.3 | F31: 309.2 | G31: 307.7 | H31: 298.8 | I31: 7632 | J31: 2373491.7 | K31: 2020-02-04 | L31: 445 | M31: INE045A01017
A32: ADVANIHOTR | B32: EQ | C32: 55.25 | D32: 59.8 | E32: 54.2 | F32: 55.7 | G32: 55.15 | H32: 52.15 | I32: 38668 | J32: 2165107.25 | K32: 2020-02-04 | L32: 550 | M32: INE199C01026
A33: ADVENZYMES | B33: EQ | C33: 162.05 | D33: 169 | E33: 161.55 | F33: 168.2 | G33: 168.8 | H33: 161.7 | I33: 32507 | J33: 5408990 | K33: 2020-02-04 | L33: 1484 | M33: INE837H01020
A34: AEGISCHEM | B34: EQ | C34: 207.7 | D34: 235 | E34: 207 | F34: 230.35 | G34: 230.8 | H34: 205.8 | I34: 1149314 | J34: 263207166.2 | K34: 2020-02-04 | L34: 22131 | M34: INE208C01025
A35: AFFLE | B35: EQ | C35: 1780 | D35: 1835 | E35: 1776 | F35: 1796.7 | G35: 1787.05 | H35: 1754.4 | I35: 412370 | J35: 741558993.1 | K35: 2020-02-04 | L35: 29116 | M35: INE00WC01019
A36: AGARIND | B36: EQ | C36: 82.75 | D36: 84.9 | E36: 74.5 | F36: 76.75 | G36: 76.05 | H36: 82.75 | I36: 91397 | J36: 6943931.45 | K36: 2020-02-04 | L36: 1691 | M36: INE204E01012
A37: AGCNET | B37: EQ | C37: 263.95 | D37: 266.55 | E37: 253.1 | F37: 257.7 | G37: 256.5 | H37: 253.9 | I37: 46897 | J37: 12147963.1 | K37: 2020-02-04 | L37: 2799 | M37: INE676A01019
A38: AGRITECH | B38: EQ | C38: 44.7 | D38: 46.8 | E38: 44.7 | F38: 46.05 | G38: 46.2 | H38: 45.7 | I38: 10806 | J38: 491374.35 | K38: 2020-02-04 | L38: 305 | M38: INE449G01018
A39: AGROPHOS | B39: EQ | C39: 20.35 | D39: 20.35 | E39: 20.35 | F39: 20.35 | G39: 20.35 | H39: 21.4 | I39: 2082 | J39: 42368.7 | K39: 2020-02-04 | L39: 50 | M39: INE740V01019
A40: AHLEAST | B40: EQ | C40: 192.15 | D40: 195.9 | E40: 178.05 | F40: 180.1 | G40: 180 | H40: 182.45 | I40: 1989 | J40: 366917.6 | K40: 2020-02-04 | L40: 197 | M40: INE926K01017
A41: AHLUCONT | B41: EQ | C41: 343 | D41: 346.6 | E41: 329 | F41: 333.65 | G41: 335 | H41: 343.85 | I41: 9340 | J41: 3127666.8 | K41: 2020-02-04 | L41: 691 | M41: INE758C01029
A42: AHLWEST | B42: EQ | C42: 330 | D42: 342 | E42: 326.2 | F42: 329.5 | G42: 327.1 | H42: 335.1 | I42: 422 | J42: 141198.35 | K42: 2020-02-04 | L42: 232 | M42: INE915K01010
A43: AIAENG | B43: EQ | C43: 1778.1 | D43: 1819.6 | E43: 1765 | F43: 1775.65 | G43: 1765 | H43: 1769.25 | I43: 9513 | J43: 17029042.9 | K43: 2020-02-04 | L43: 1108 | M43: INE212H01026
A44: AIONJSW | B44: EQ | C44: 14.25 | D44: 14.4 | E44: 13.65 | F44: 13.75 | G44: 13.7 | H44: 13.95 | I44: 182647 | J44: 2526489.5 | K44: 2020-02-04 | L44: 297 | M44: INE743C01021
A45: AIRAN | B45: EQ | C45: 13.8 | D45: 14 | E45: 13.05 | F45: 13.1 | G45: 13.1 | H45: 13.7 | I45: 23232 | J45: 316577.85 | K45: 2020-02-04 | L45: 81 | M45: INE645W01026
A46: AJANTPHARM | B46: EQ | C46: 1185 | D46: 1218 | E46: 1159 | F46: 1182.55 | G46: 1190 | H46: 1174.6 | I46: 428955 | J46: 511702106.4 | K46: 2020-02-04 | L46: 12081 | M46: INE031B01049
A47: AJMERA | B47: EQ | C47: 125.35 | D47: 133.8 | E47: 124.5 | F47: 133 | G47: 133.5 | H47: 123.5 | I47: 63327 | J47: 8243572.6 | K47: 2020-02-04 | L47: 1919 | M47: INE298G01027
A48: AKSHARCHEM | B48: EQ | C48: 226.1 | D48: 240.85 | E48: 226.1 | F48: 236.45 | G48: 236.3 | H48: 226.1 | I48: 1964 | J48: 460247.05 | K48: 2020-02-04 | L48: 176 | M48: INE542B01011
A49: AKSHOPTFBR | B49: EQ | C49: 7.5 | D49: 7.75 | E49: 7.35 | F49: 7.55 | G49: 7.6 | H49: 7.45 | I49: 165041 | J49: 1247537.05 | K49: 2020-02-04 | L49: 355 | M49: INE523B01011
A50: AKZOINDIA | B50: EQ | C50: 2055.6 | D50: 2139 | E50: 2005.2 | F50: 2065.05 | G50: 2074.9 | H50: 2045.4 | I50: 10699 | J50: 22022940.45 | K50: 2020-02-04 | L50: 1448 | M50: INE133A01011
A51: ALANKIT | B51: EQ | C51: 14.2 | D51: 14.4 | E51: 13.5 | F51: 13.5 | G51: 13.5 | H51: 14.2 | I51: 61586 | J51: 847512.1 | K51: 2020-02-04 | L51: 200 | M51: INE914E01040
A52: ALBERTDAVD | B52: EQ | C52: 459 | D52: 474 | E52: 453.1 | F52: 464.55 | G52: 470 | H52: 452.75 | I52: 10397 | J52: 4844661.1 | K52: 2020-02-04 | L52: 480 | M52: INE155C01010
A53: ALBK | B53: EQ | C53: 17 | D53: 17.1 | E53: 16.6 | F53: 16.65 | G53: 16.65 | H53: 16.9 | I53: 687858 | J53: 11562658.05 | K53: 2020-02-04 | L53: 2712 | M53: INE428A01015
A54: ALEMBICLTD | B54: EQ | C54: 55.4 | D54: 56 | E54: 53.8 | F54: 54.1 | G54: 54 | H54: 54.4 | I54: 202386 | J54: 11062945.8 | K54: 2020-02-04 | L54: 1585 | M54: INE426A01027
A55: ALICON | B55: EQ | C55: 373.4 | D55: 395 | E55: 373.4 | F55: 385.35 | G55: 385 | H55: 373 | I55: 2637 | J55: 1015292.05 | K55: 2020-02-04 | L55: 485 | M55: INE062D01024
A56: ALKALI | B56: EQ | C56: 47.4 | D56: 52 | E56: 47.4 | F56: 48.65 | G56: 48.2 | H56: 47.9 | I56: 6815 | J56: 334462.25 | K56: 2020-02-04 | L56: 195 | M56: INE773I01017
A57: ALKEM | B57: EQ | C57: 2380 | D57: 2443.2 | E57: 2335 | F57: 2370.8 | G57: 2375.5 | H57: 2376.6 | I57: 128380 | J57: 307429299.9 | K57: 2020-02-04 | L57: 8618 | M57: INE540L01014
A58: ALKYLAMINE | B58: EQ | C58: 1370 | D58: 1400 | E58: 1365.3 | F58: 1386.65 | G58: 1380.55 | H58: 1350.6 | I58: 49992 | J58: 69338147.5 | K58: 2020-02-04 | L58: 2385 | M58: INE150B01021
A59: ALLCARGO | B59: EQ | C59: 111.9 | D59: 112 | E59: 109.8 | F59: 110.05 | G59: 110.05 | H59: 109.85 | I59: 339467 | J59: 37523451.05 | K59: 2020-02-04 | L59: 4831 | M59: INE418H01029
A60: ALLSEC | B60: EQ | C60: 281 | D60: 287.05 | E60: 281 | F60: 282.35 | G60: 281.35 | H60: 283.35 | I60: 8669 | J60: 2458394.95 | K60: 2020-02-04 | L60: 198 | M60: INE835G01018
A61: ALMONDZ | B61: EQ | C61: 14.7 | D61: 16.1 | E61: 14.7 | F61: 15.35 | G61: 16.1 | H61: 15.35 | I61: 2506 | J61: 37945.4 | K61: 2020-02-04 | L61: 21 | M61: INE326B01027
A62: ALPA | B62: EQ | C62: 18.35 | D62: 20.75 | E62: 17.55 | F62: 20.1 | G62: 20.25 | H62: 17.85 | I62: 87186 | J62: 1719636 | K62: 2020-02-04 | L62: 799 | M62: INE385I01010
A63: ALPHAGEO | B63: EQ | C63: 188.9 | D63: 196.95 | E63: 173.1 | F63: 196.95 | G63: 196.95 | H63: 179.05 | I63: 7997 | J63: 1533756.1 | K63: 2020-02-04 | L63: 402 | M63: INE137C01018
A64: AMARAJABAT | B64: EQ | C64: 784.7 | D64: 794.5 | E64: 773.6 | F64: 776.9 | G64: 778 | H64: 785.7 | I64: 650241 | J64: 508366090.4 | K64: 2020-02-04 | L64: 34881 | M64: INE885A01032
A65: AMBER | B65: EQ | C65: 1560 | D65: 1619.8 | E65: 1555.55 | F65: 1603.25 | G65: 1610 | H65: 1534.3 | I65: 121732 | J65: 194157289.4 | K65: 2020-02-04 | L65: 10020 | M65: INE371P01015
A66: AMBIKCO | B66: EQ | C66: 839 | D66: 855 | E66: 831.65 | F66: 851 | G66: 854 | H66: 836.85 | I66: 2029 | J66: 1714388.7 | K66: 2020-02-04 | L66: 351 | M66: INE540G01014
A67: AMBUJACEM | B67: EQ | C67: 202.8 | D67: 210 | E67: 202.45 | F67: 206.8 | G67: 207.85 | H67: 200.75 | I67: 3761981 | J67: 774810401.4 | K67: 2020-02-04 | L67: 28428 | M67: INE079A01024
A68: AMDIND | B68: EQ | C68: 17 | D68: 17.2 | E68: 16.3 | F68: 16.55 | G68: 16.5 | H68: 16.5 | I68: 5051 | J68: 83418.2 | K68: 2020-02-04 | L68: 78 | M68: INE005I01014
A69: AMJLAND | B69: EQ | C69: 20.95 | D69: 22.5 | E69: 20.8 | F69: 21.6 | G69: 21.25 | H69: 21.05 | I69: 2873 | J69: 61861.6 | K69: 2020-02-04 | L69: 59 | M69: INE606A01024
A70: AMRUTANJAN | B70: EQ | C70: 461.8 | D70: 479.5 | E70: 454 | F70: 476.75 | G70: 477 | H70: 454.8 | I70: 42547 | J70: 19996826.55 | K70: 2020-02-04 | L70: 3086 | M70: INE098F01031
A71: ANANTRAJ | B71: EQ | C71: 34 | D71: 34.6 | E71: 33.35 | F71: 34.35 | G71: 34.15 | H71: 33.25 | I71: 171563 | J71: 5847368.95 | K71: 2020-02-04 | L71: 1922 | M71: INE242C01024
A72: ANDHRABANK | B72: EQ | C72: 15.9 | D72: 16.1 | E72: 15.9 | F72: 16 | G72: 16 | H72: 15.85 | I72: 312377 | J72: 4995613.65 | K72: 2020-02-04 | L72: 1397 | M72: INE434A01013
A73: ANDHRACEMT | B73: EQ | C73: 2.4 | D73: 2.4 | E73: 2.25 | F73: 2.3 | G73: 2.3 | H73: 2.3 | I73: 237538 | J73: 546668.75 | K73: 2020-02-04 | L73: 155 | M73: INE666E01012
A74: ANDHRSUGAR | B74: EQ | C74: 314.8 | D74: 316.5 | E74: 300.5 | F74: 303.2 | G74: 302 | H74: 310.25 | I74: 55154 | J74: 17105305.8 | K74: 2020-02-04 | L74: 1741 | M74: INE715B01013
A75: ANDPAPER | B75: EQ | C75: 281.9 | D75: 292 | E75: 281.25 | F75: 286.1 | G75: 289 | H75: 280.5 | I75: 14367 | J75: 4116370.5 | K75: 2020-02-04 | L75: 307 | M75: INE435A01028
A76: ANSALAPI | B76: EQ | C76: 5 | D76: 5.1 | E76: 4.9 | F76: 5 | G76: 5.1 | H76: 5 | I76: 11434 | J76: 57238.35 | K76: 2020-02-04 | L76: 57 | M76: INE436A01026
A77: ANUP | B77: EQ | C77: 639 | D77: 655.45 | E77: 618.5 | F77: 623.2 | G77: 620 | H77: 624.1 | I77: 20860 | J77: 13364313.1 | K77: 2020-02-04 | L77: 2450 | M77: INE294Z01018
A78: APARINDS | B78: EQ | C78: 387.5 | D78: 393.95 | E78: 385.35 | F78: 386.75 | G78: 386.9 | H78: 386.35 | I78: 23722 | J78: 9234441.6 | K78: 2020-02-04 | L78: 1523 | M78: INE372A01015
A79: APCL | B79: EQ | C79: 159.6 | D79: 164 | E79: 156.35 | F79: 160.75 | G79: 160.95 | H79: 154.95 | I79: 6474 | J79: 1043092.95 | K79: 2020-02-04 | L79: 267 | M79: INE071F01012
A80: APCOTEXIND | B80: EQ | C80: 151.75 | D80: 154.9 | E80: 150.1 | F80: 151.3 | G80: 150.1 | H80: 147.85 | I80: 23644 | J80: 3596311.95 | K80: 2020-02-04 | L80: 764 | M80: INE116A01032
A81: APEX | B81: EQ | C81: 376.85 | D81: 385 | E81: 366.5 | F81: 381.45 | G81: 385 | H81: 373.85 | I81: 360664 | J81: 136480192 | K81: 2020-02-04 | L81: 11073 | M81: INE346W01013
A82: APLAPOLLO | B82: EQ | C82: 1927 | D82: 2005.95 | E82: 1927 | F82: 1975.45 | G82: 1971 | H82: 1921.75 | I82: 39263 | J82: 77570184.95 | K82: 2020-02-04 | L82: 5823 | M82: INE702C01019
A83: APLLTD | B83: EQ | C83: 624.05 | D83: 634.8 | E83: 614.9 | F83: 617.5 | G83: 618 | H83: 624.05 | I83: 146448 | J83: 90896718.5 | K83: 2020-02-04 | L83: 8900 | M83: INE901L01018
A84: APOLLO | B84: EQ | C84: 75.5 | D84: 77 | E84: 74.6 | F84: 76.25 | G84: 75.55 | H84: 74.65 | I84: 28184 | J84: 2140233.9 | K84: 2020-02-04 | L84: 730 | M84: INE713T01010
A85: APOLLOHOSP | B85: EQ | C85: 1695.85 | D85: 1704.9 | E85: 1661 | F85: 1671.05 | G85: 1680 | H85: 1695.85 | I85: 384789 | J85: 649302363.7 | K85: 2020-02-04 | L85: 24610 | M85: INE437A01024
A86: APOLLOPIPE | B86: EQ | C86: 405 | D86: 405.95 | E86: 385 | F86: 399.1 | G86: 400 | H86: 389.05 | I86: 11404 | J86: 4518409.4 | K86: 2020-02-04 | L86: 996 | M86: INE126J01016
A87: APOLLOTYRE | B87: EQ | C87: 163.5 | D87: 165.15 | E87: 160.5 | F87: 161.55 | G87: 162.15 | H87: 161.05 | I87: 3108857 | J87: 506251911.9 | K87: 2020-02-04 | L87: 17468 | M87: INE438A01022
A88: APOLSINHOT | B88: EQ | C88: 734.95 | D88: 768.05 | E88: 729.2 | F88: 730.95 | G88: 729.2 | H88: 729.2 | I88: 1658 | J88: 1230606.05 | K88: 2020-02-04 | L88: 249 | M88: INE451F01024
A89: APTECHT | B89: EQ | C89: 160.65 | D89: 162.7 | E89: 158 | F89: 159.5 | G89: 159 | H89: 159.3 | I89: 140440 | J89: 22491593.95 | K89: 2020-02-04 | L89: 3547 | M89: INE266F01018
A90: ARCHIDPLY | B90: EQ | C90: 30.1 | D90: 31.4 | E90: 29.1 | F90: 29.6 | G90: 29.6 | H90: 29.35 | I90: 27528 | J90: 837318 | K90: 2020-02-04 | L90: 260 | M90: INE877I01016
A91: ARCHIES | B91: EQ | C91: 16.85 | D91: 17.5 | E91: 16.5 | F91: 16.85 | G91: 17.15 | H91: 17.05 | I91: 34064 | J91: 580571.85 | K91: 2020-02-04 | L91: 272 | M91: INE731A01020
A92: ARIES | B92: EQ | C92: 67.1 | D92: 68.4 | E92: 66.6 | F92: 67.6 | G92: 68.2 | H92: 66.5 | I92: 40404 | J92: 2720254.45 | K92: 2020-02-04 | L92: 606 | M92: INE298I01015
A93: ARIHANT | B93: EQ | C93: 23 | D93: 23.5 | E93: 22 | F93: 22.4 | G93: 22.5 | H93: 23 | I93: 3288 | J93: 74566.5 | K93: 2020-02-04 | L93: 316 | M93: INE413D01011
A94: ARIHANTSUP | B94: EQ | C94: 27.8 | D94: 29 | E94: 27.8 | F94: 27.95 | G94: 27.85 | H94: 29.25 | I94: 3210 | J94: 90510.85 | K94: 2020-02-04 | L94: 27 | M94: INE643K01018
A95: ARMANFIN | B95: EQ | C95: 742 | D95: 768 | E95: 730.6 | F95: 761.65 | G95: 765 | H95: 724.45 | I95: 7993 | J95: 6016100.6 | K95: 2020-02-04 | L95: 639 | M95: INE109C01017
A96: AROGRANITE | B96: EQ | C96: 35 | D96: 36.95 | E96: 34.15 | F96: 35.85 | G96: 35.85 | H96: 34.9 | I96: 10106 | J96: 358224.45 | K96: 2020-02-04 | L96: 204 | M96: INE210C01013
A97: ARROWGREEN | B97: EQ | C97: 46.7 | D97: 51.35 | E97: 46.2 | F97: 51.35 | G97: 51.35 | H97: 46.7 | I97: 6408 | J97: 323101.65 | K97: 2020-02-04 | L97: 191 | M97: INE570D01018
A98: ARSHIYA | B98: EQ | C98: 16.2 | D98: 16.8 | E98: 16.1 | F98: 16.2 | G98: 16.2 | H98: 16.2 | I98: 11436 | J98: 186862.9 | K98: 2020-02-04 | L98: 76 | M98: INE968D01022
A99: ARSSINFRA | B99: EQ | C99: 20.85 | D99: 20.85 | E99: 19.2 | F99: 19.5 | G99: 19.3 | H99: 19.6 | I99: 9610 | J99: 187744.5 | K99: 2020-02-04 | L99: 172 | M99: INE267I01010
A100: ARVIND | B100: EQ | C100: 41.25 | D100: 43.5 | E100: 41 | F100: 43.1 | G100: 43.35 | H100: 41 | I100: 1406751 | J100: 59813784.2 | K100: 2020-02-04 | L100: 4764 | M100: INE034A01011
A101: ARVINDFASN | B101: EQ | C101: 369 | D101: 375 | E101: 362 | F101: 368.8 | G101: 365 | H101: 361.55 | I101: 11090 | J101: 4089895.1 | K101: 2020-02-04 | L101: 819 | M101: INE955V01021
A102: ARVSMART | B102: EQ | C102: 91.1 | D102: 92.95 | E102: 91 | F102: 92 | G102: 92.2 | H102: 90.85 | I102: 7560 | J102: 695185.35 | K102: 2020-02-04 | L102: 386 | M102: INE034S01021
A103: ASAHIINDIA | B103: EQ | C103: 263.95 | D103: 273 | E103: 255.3 | F103: 266.65 | G103: 268 | H103: 260.85 | I103: 129924 | J103: 34311395.75 | K103: 2020-02-04 | L103: 4216 | M103: INE439A01020
A104: ASAHISONG | B104: EQ | C104: 134.4 | D104: 139.35 | E104: 134 | F104: 136.25 | G104: 136.2 | H104: 136.6 | I104: 3633 | J104: 496343.45 | K104: 2020-02-04 | L104: 189 | M104: INE228I01012
A105: ASAL | B105: EQ | C105: 31.15 | D105: 31.15 | E105: 29.7 | F105: 30.55 | G105: 30.9 | H105: 30.1 | I105: 5301 | J105: 161703.4 | K105: 2020-02-04 | L105: 60 | M105: INE900C01027
A106: ASHAPURMIN | B106: EQ | C106: 34 | D106: 35.55 | E106: 33.15 | F106: 34 | G106: 34.15 | H106: 33.9 | I106: 23316 | J106: 794850.9 | K106: 2020-02-04 | L106: 221 | M106: INE348A01023
A107: ASHIANA | B107: EQ | C107: 104.85 | D107: 106 | E107: 102.6 | F107: 103.75 | G107: 104 | H107: 104.85 | I107: 20448 | J107: 2123140.25 | K107: 2020-02-04 | L107: 344 | M107: INE365D01021
A108: ASHIMASYN | B108: EQ | C108: 7.15 | D108: 7.6 | E108: 6.95 | F108: 7.4 | G108: 7.2 | H108: 6.95 | I108: 32094 | J108: 232881.4 | K108: 2020-02-04 | L108: 150 | M108: INE440A01010
A109: ASHOKA | B109: EQ | C109: 107.5 | D109: 109.95 | E109: 106 | F109: 107.05 | G109: 107 | H109: 106.7 | I109: 355609 | J109: 38471684.4 | K109: 2020-02-04 | L109: 4203 | M109: INE442H01029
A110: ASHOKLEY | B110: EQ | C110: 78 | D110: 79.3 | E110: 77.35 | F110: 79 | G110: 79.05 | H110: 78 | I110: 18338944 | J110: 1438036035 | K110: 2020-02-04 | L110: 58102 | M110: INE208A01029
A111: ASIANHOTNR | B111: EQ | C111: 87.3 | D111: 91.8 | E111: 83.3 | F111: 91.25 | G111: 91.75 | H111: 83.95 | I111: 4716 | J111: 418737.85 | K111: 2020-02-04 | L111: 349 | M111: INE363A01022
A112: ASIANPAINT | B112: EQ | C112: 1870 | D112: 1896.75 | E112: 1855.05 | F112: 1891.3 | G112: 1896.75 | H112: 1867.65 | I112: 1830049 | J112: 3436113183 | K112: 2020-02-04 | L112: 90719 | M112: INE021A01026
A113: ASIANTILES | B113: EQ | C113: 218 | D113: 225.85 | E113: 216.4 | F113: 223.1 | G113: 221.2 | H113: 214.05 | I113: 112685 | J113: 25007088.95 | K113: 2020-02-04 | L113: 4153 | M113: INE022I01019
A114: ASPINWALL | B114: EQ | C114: 157 | D114: 160.05 | E114: 156 | F114: 159.8 | G114: 159.8 | H114: 156.2 | I114: 2646 | J114: 419310.15 | K114: 2020-02-04 | L114: 33 | M114: INE991I01015
A115: ASTEC | B115: EQ | C115: 478.15 | D115: 498.15 | E115: 474.65 | F115: 478.3 | G115: 477.1 | H115: 478.15 | I115: 13315 | J115: 6522868.9 | K115: 2020-02-04 | L115: 812 | M115: INE563J01010
A116: ASTERDM | B116: EQ | C116: 168.9 | D116: 168.9 | E116: 165 | F116: 166.5 | G116: 167 | H116: 165.15 | I116: 80207 | J116: 13393996.6 | K116: 2020-02-04 | L116: 1337 | M116: INE914M01019
A117: ASTRAL | B117: EQ | C117: 1179.15 | D117: 1213.65 | E117: 1168.85 | F117: 1185.75 | G117: 1187 | H117: 1166.6 | I117: 66124 | J117: 78908667.2 | K117: 2020-02-04 | L117: 6330 | M117: INE006I01046
A118: ASTRAMICRO | B118: EQ | C118: 93.75 | D118: 98 | E118: 93.05 | F118: 96.8 | G118: 97.6 | H118: 91.2 | I118: 889013 | J118: 85010565.1 | K118: 2020-02-04 | L118: 10295 | M118: INE386C01029
A119: ASTRAZEN | B119: EQ | C119: 2550 | D119: 2630.05 | E119: 2531.1 | F119: 2541 | G119: 2550 | H119: 2613.5 | I119: 36950 | J119: 94681805.2 | K119: 2020-02-04 | L119: 5161 | M119: INE203A01020
A120: ASTRON | B120: EQ | C120: 40.3 | D120: 40.3 | E120: 38.9 | F120: 39.8 | G120: 39.5 | H120: 39.45 | I120: 42051 | J120: 1650152.9 | K120: 2020-02-04 | L120: 229 | M120: INE646X01014
A121: ATFL | B121: EQ | C121: 680.5 | D121: 693.55 | E121: 680.5 | F121: 691 | G121: 691 | H121: 686.35 | I121: 2995 | J121: 2060517.45 | K121: 2020-02-04 | L121: 206 | M121: INE209A01019
A122: ATLANTA | B122: EQ | C122: 5.8 | D122: 5.9 | E122: 5.6 | F122: 5.65 | G122: 5.75 | H122: 5.8 | I122: 16480 | J122: 94069.2 | K122: 2020-02-04 | L122: 71 | M122: INE285H01022
A123: ATUL | B123: EQ | C123: 4890.9 | D123: 4951 | E123: 4810 | F123: 4837.4 | G123: 4821.05 | H123: 4834.15 | I123: 16139 | J123: 78617060.8 | K123: 2020-02-04 | L123: 3230 | M123: INE100A01010
A124: ATULAUTO | B124: EQ | C124: 238.05 | D124: 247.8 | E124: 238.05 | F124: 242 | G124: 244 | H124: 237.75 | I124: 31894 | J124: 7753510 | K124: 2020-02-04 | L124: 3417 | M124: INE951D01028
A125: AUBANK | B125: EQ | C125: 1051.8 | D125: 1061.4 | E125: 1044 | F125: 1051.8 | G125: 1050 | H125: 1043.95 | I125: 260618 | J125: 273837661.3 | K125: 2020-02-04 | L125: 18530 | M125: INE949L01017
A126: AURIONPRO | B126: EQ | C126: 55 | D126: 57.35 | E126: 50.6 | F126: 54.25 | G126: 54.15 | H126: 55 | I126: 11296 | J126: 616609.65 | K126: 2020-02-04 | L126: 231 | M126: INE132H01018
A127: AUROPHARMA | B127: EQ | C127: 476 | D127: 505.25 | E127: 476 | F127: 494.8 | G127: 495.6 | H127: 473.5 | I127: 4880725 | J127: 2418803552 | K127: 2020-02-04 | L127: 66397 | M127: INE406A01037
A128: AUTOAXLES | B128: EQ | C128: 849 | D128: 849 | E128: 806 | F128: 817.95 | G128: 813 | H128: 812.2 | I128: 5404 | J128: 4435310.6 | K128: 2020-02-04 | L128: 1674 | M128: INE449A01011
A129: AUTOLITIND | B129: EQ | C129: 22.8 | D129: 23.35 | E129: 22.25 | F129: 22.7 | G129: 22.7 | H129: 22.95 | I129: 16346 | J129: 371287.4 | K129: 2020-02-04 | L129: 151 | M129: INE448A01013
A130: AVADHSUGAR | B130: EQ | C130: 260.6 | D130: 275.2 | E130: 260.5 | F130: 263.4 | G130: 264 | H130: 258 | I130: 150275 | J130: 40144630.65 | K130: 2020-02-04 | L130: 4475 | M130: INE349W01017
A131: AVANTIFEED | B131: EQ | C131: 674 | D131: 690.9 | E131: 664 | F131: 669.3 | G131: 672 | H131: 670.05 | I131: 1033295 | J131: 697422053.6 | K131: 2020-02-04 | L131: 31995 | M131: INE871C01038
A132: AVTNPL | B132: EQ | C132: 32 | D132: 36 | E132: 32 | F132: 35.55 | G132: 35.3 | H132: 31.85 | I132: 147034 | J132: 5051770.05 | K132: 2020-02-04 | L132: 1640 | M132: INE488D01021
A133: AXISBANK | B133: EQ | C133: 712.45 | D133: 720.6 | E133: 710 | F133: 715 | G133: 715.2 | H133: 708.95 | I133: 9653925 | J133: 6907408170 | K133: 2020-02-04 | L133: 122548 | M133: INE238A01034
A134: AXISGOLD | B134: EQ | C134: 3550 | D134: 3560 | E134: 3536.55 | F134: 3543.6 | G134: 3540 | H134: 3578.15 | I134: 147 | J134: 521799.4 | K134: 2020-02-04 | L134: 54 | M134: INF846K01347
A135: AXISNIFTY | B135: EQ | C135: 1221.54 | D135: 1238.43 | E135: 1221.54 | F135: 1238.43 | G135: 1238.43 | H135: 1210.68 | I135: 88 | J135: 108664.48 | K135: 2020-02-04 | L135: 9 | M135: INF846K01ZL0
A136: AYMSYNTEX | B136: EQ | C136: 33.55 | D136: 35.95 | E136: 33.55 | F136: 34.5 | G136: 34 | H136: 33.5 | I136: 8167 | J136: 282560.65 | K136: 2020-02-04 | L136: 127 | M136: INE193B01039
A137: BAJAJ-AUTO | B137: EQ | C137: 3270 | D137: 3313 | E137: 3151 | F137: 3162.8 | G137: 3160.9 | H137: 3284.5 | I137: 1546450 | J137: 4982158384 | K137: 2020-02-04 | L137: 86685 | M137: INE917I01010
A138: BAJAJCON | B138: EQ | C138: 218 | D138: 221.3 | E138: 214.3 | F138: 215.2 | G138: 215.95 | H138: 214.95 | I138: 112089 | J138: 24422233.75 | K138: 2020-02-04 | L138: 3668 | M138: INE933K01021
A139: BAJAJELEC | B139: EQ | C139: 376.1 | D139: 420.5 | E139: 367.95 | F139: 410.45 | G139: 409.7 | H139: 375.35 | I139: 1471497 | J139: 582299464.9 | K139: 2020-02-04 | L139: 29541 | M139: INE193E01025
A140: BAJAJFINSV | B140: EQ | C140: 9180 | D140: 9624.9 | E140: 9161.3 | F140: 9534.9 | G140: 9535 | H140: 9086.15 | I140: 463697 | J140: 4370177960 | K140: 2020-02-04 | L140: 53019 | M140: INE918I01018
A141: BAJAJHIND | B141: EQ | C141: 6.1 | D141: 6.25 | E141: 6.1 | F141: 6.15 | G141: 6.15 | H141: 6.05 | I141: 980245 | J141: 6040522.55 | K141: 2020-02-04 | L141: 1018 | M141: INE306A01021
A142: BAJAJHLDNG | B142: EQ | C142: 3619 | D142: 3770 | E142: 3600 | F142: 3728.35 | G142: 3739 | H142: 3600.8 | I142: 581865 | J142: 2157454954 | K142: 2020-02-04 | L142: 18645 | M142: INE118A01012
A143: BAJFINANCE | B143: EQ | C143: 4387.95 | D143: 4550 | E143: 4377.15 | F143: 4519.25 | G143: 4515.95 | H143: 4359.35 | I143: 1958323 | J143: 8769174175 | K143: 2020-02-04 | L143: 100939 | M143: INE296A01024
A144: BALAJITELE | B144: EQ | C144: 51.45 | D144: 53 | E144: 51 | F144: 52.45 | G144: 52.3 | H144: 50.6 | I144: 16098 | J144: 842358.55 | K144: 2020-02-04 | L144: 231 | M144: INE794B01026
A145: BALAMINES | B145: EQ | C145: 408.1 | D145: 428.05 | E145: 405.25 | F145: 408 | G145: 407.5 | H145: 397.1 | I145: 49803 | J145: 20495796.6 | K145: 2020-02-04 | L145: 1985 | M145: INE050E01027
A146: BALAXI | B146: EQ | C146: 79.5 | D146: 87 | E146: 79.5 | F146: 85.95 | G146: 86 | H146: 79.15 | I146: 636 | J146: 54236.95 | K146: 2020-02-04 | L146: 32 | M146: INE618N01014
A147: BALKRISIND | B147: EQ | C147: 1082.05 | D147: 1137.4 | E147: 1082.05 | F147: 1126.15 | G147: 1125 | H147: 1081.8 | I147: 1348044 | J147: 1491821772 | K147: 2020-02-04 | L147: 33314 | M147: INE787D01026
A148: BALMLAWRIE | B148: EQ | C148: 116 | D148: 123.6 | E148: 113.4 | F148: 117.6 | G148: 117.25 | H148: 115.15 | I148: 94790 | J148: 11152650.15 | K148: 2020-02-04 | L148: 2264 | M148: INE164A01016
A149: BALPHARMA | B149: EQ | C149: 42 | D149: 44.9 | E149: 40.25 | F149: 43.15 | G149: 43 | H149: 42.65 | I149: 22098 | J149: 944000.3 | K149: 2020-02-04 | L149: 355 | M149: INE083D01012
A150: BALRAMCHIN | B150: EQ | C150: 158.65 | D150: 161.95 | E150: 156.25 | F150: 157.15 | G150: 157.05 | H150: 156.85 | I150: 932107 | J150: 147665429.5 | K150: 2020-02-04 | L150: 12624 | M150: INE119A01028
A151: BANARBEADS | B151: EQ | C151: 37.5 | D151: 38.5 | E151: 34.55 | F151: 36.4 | G151: 37.2 | H151: 36.3 | I151: 13157 | J151: 472736.3 | K151: 2020-02-04 | L151: 168 | M151: INE655B01011
A152: BANARISUG | B152: EQ | C152: 1404.85 | D152: 1474.95 | E152: 1400 | F152: 1420 | G152: 1420 | H152: 1403 | I152: 266 | J152: 376166.55 | K152: 2020-02-04 | L152: 101 | M152: INE459A01010
A153: BANCOINDIA | B153: EQ | C153: 100.1 | D153: 103.9 | E153: 99.95 | F153: 100.55 | G153: 100.5 | H153: 99.55 | I153: 21689 | J153: 2189047.2 | K153: 2020-02-04 | L153: 750 | M153: INE213C01025
A154: BANDHANBNK | B154: EQ | C154: 440 | D154: 442.35 | E154: 433 | F154: 437.9 | G154: 438.5 | H154: 438 | I154: 2472717 | J154: 1082383571 | K154: 2020-02-04 | L154: 47978 | M154: INE545U01014
A155: BANG | B155: EQ | C155: 18.45 | D155: 19 | E155: 16.65 | F155: 17.45 | G155: 17.8 | H155: 18.45 | I155: 15326 | J155: 265576.75 | K155: 2020-02-04 | L155: 158 | M155: INE863I01016
A156: BANKBARODA | B156: EQ | C156: 86.8 | D156: 87.9 | E156: 86.1 | F156: 87.1 | G156: 87.05 | H156: 85.9 | I156: 21444489 | J156: 1867646567 | K156: 2020-02-04 | L156: 45540 | M156: INE028A01039
A157: BANKBEES | B157: EQ | C157: 308.34 | D157: 314.2 | E157: 308.22 | F157: 312.9 | G157: 312.7 | H157: 306.93 | I157: 604382 | J157: 189529086.1 | K157: 2020-02-04 | L157: 3751 | M157: INF204KB15I9
A158: BANKINDIA | B158: EQ | C158: 65.1 | D158: 66.1 | E158: 64.8 | F158: 65.55 | G158: 65.7 | H158: 65.1 | I158: 1323547 | J158: 86734290.65 | K158: 2020-02-04 | L158: 6802 | M158: INE084A01016
A159: BASF | B159: EQ | C159: 964.5 | D159: 988.25 | E159: 964.5 | F159: 979.55 | G159: 980 | H159: 959.75 | I159: 13921 | J159: 13648976.75 | K159: 2020-02-04 | L159: 1799 | M159: INE373A01013
A160: BASML | B160: EQ | C160: 134.4 | D160: 139 | E160: 118.3 | F160: 123.65 | G160: 120.25 | H160: 132.3 | I160: 2392 | J160: 306531.6 | K160: 2020-02-04 | L160: 262 | M160: INE186H01014
A161: BATAINDIA | B161: EQ | C161: 1855 | D161: 1882.5 | E161: 1838.55 | F161: 1866.1 | G161: 1868 | H161: 1850.2 | I161: 823360 | J161: 1536184888 | K161: 2020-02-04 | L161: 35296 | M161: INE176A01028
A162: BAYERCROP | B162: EQ | C162: 4310 | D162: 4475 | E162: 4310 | F162: 4441.65 | G162: 4447.65 | H162: 4255.25 | I162: 59084 | J162: 261164068.1 | K162: 2020-02-04 | L162: 6921 | M162: INE462A01022
A163: BBL | B163: EQ | C163: 841 | D163: 883.9 | E163: 841 | F163: 866.7 | G163: 866.45 | H163: 839.25 | I163: 10474 | J163: 9105675.1 | K163: 2020-02-04 | L163: 896 | M163: INE464A01028
A164: BBTC | B164: EQ | C164: 1128.5 | D164: 1153 | E164: 1124.05 | F164: 1143.9 | G164: 1149 | H164: 1118.15 | I164: 63160 | J164: 72186476.9 | K164: 2020-02-04 | L164: 3828 | M164: INE050A01025
A165: BDL | B165: EQ | C165: 278.9 | D165: 283.9 | E165: 278 | F165: 279.1 | G165: 278.95 | H165: 276.15 | I165: 34403 | J165: 9659502.2 | K165: 2020-02-04 | L165: 2191 | M165: INE171Z01018
A166: BEL | B166: EQ | C166: 84.55 | D166: 87.1 | E166: 84.45 | F166: 84.85 | G166: 84.7 | H166: 83.5 | I166: 14808948 | J166: 1267297174 | K166: 2020-02-04 | L166: 47516 | M166: INE263A01024
A167: BEML | B167: EQ | C167: 955 | D167: 965 | E167: 945 | F167: 953.7 | G167: 948.9 | H167: 950.1 | I167: 143591 | J167: 137219302.7 | K167: 2020-02-04 | L167: 5262 | M167: INE258A01016
A168: BEPL | B168: EQ | C168: 47.95 | D168: 48.75 | E168: 47.6 | F168: 47.7 | G168: 47.6 | H168: 46.75 | I168: 302072 | J168: 14513390.85 | K168: 2020-02-04 | L168: 4328 | M168: INE922A01025
A169: BERGEPAINT | B169: EQ | C169: 576.1 | D169: 593.95 | E169: 565.15 | F169: 588.5 | G169: 593 | H169: 570.3 | I169: 1965599 | J169: 1139837142 | K169: 2020-02-04 | L169: 35511 | M169: INE463A01038
A170: BFINVEST | B170: EQ | C170: 320.2 | D170: 327 | E170: 315 | F170: 318 | G170: 315.3 | H170: 320.15 | I170: 23127 | J170: 7472178.05 | K170: 2020-02-04 | L170: 1381 | M170: INE878K01010
A171: BFUTILITIE | B171: EQ | C171: 281 | D171: 288.6 | E171: 281 | F171: 285 | G171: 287 | H171: 278.1 | I171: 150302 | J171: 42817227.25 | K171: 2020-02-04 | L171: 3956 | M171: INE243D01012
A172: BGRENERGY | B172: EQ | C172: 35.45 | D172: 36.55 | E172: 35.35 | F172: 35.8 | G172: 35.95 | H172: 35.2 | I172: 152338 | J172: 5469980.65 | K172: 2020-02-04 | L172: 1204 | M172: INE661I01014
A173: BHAGERIA | B173: EQ | C173: 112.15 | D173: 115.35 | E173: 112.15 | F173: 113.5 | G173: 114.4 | H173: 112.2 | I173: 23582 | J173: 2683817.75 | K173: 2020-02-04 | L173: 412 | M173: INE354C01027
A174: BHAGYANGR | B174: EQ | C174: 21.45 | D174: 21.45 | E174: 19.8 | F174: 20.2 | G174: 20.2 | H174: 20.85 | I174: 18474 | J174: 375891.85 | K174: 2020-02-04 | L174: 175 | M174: INE458B01036
A175: BHAGYAPROP | B175: EQ | C175: 23 | D175: 23.5 | E175: 22.55 | F175: 23.5 | G175: 23.5 | H175: 23.65 | I175: 919 | J175: 20758.85 | K175: 2020-02-04 | L175: 11 | M175: INE363W01018
A176: BHANDARI | B176: EQ | C176: 1.15 | D176: 1.25 | E176: 1.15 | F176: 1.15 | G176: 1.25 | H176: 1.2 | I176: 72350 | J176: 85736.25 | K176: 2020-02-04 | L176: 63 | M176: INE474E01029
A177: BHARATFORG | B177: EQ | C177: 489 | D177: 509 | E177: 489 | F177: 502.3 | G177: 505.35 | H177: 488.45 | I177: 847450 | J177: 425289141.2 | K177: 2020-02-04 | L177: 15294 | M177: INE465A01025
A178: BHARATRAS | B178: EQ | C178: 6310.7 | D178: 6650 | E178: 6310.65 | F178: 6613.35 | G178: 6625 | H178: 6309.4 | I178: 3084 | J178: 20148646.25 | K178: 2020-02-04 | L178: 929 | M178: INE838B01013
A179: BHARATWIRE | B179: EQ | C179: 26.2 | D179: 30.8 | E179: 26.2 | F179: 27.1 | G179: 26.65 | H179: 26.15 | I179: 1991253 | J179: 52435150.2 | K179: 2020-02-04 | L179: 1045 | M179: INE316L01019
A180: BHARTIARTL | B180: EQ | C180: 514 | D180: 522.6 | E180: 503.45 | F180: 518.9 | G180: 520.5 | H180: 510.05 | I180: 14376670 | J180: 7366141038 | K180: 2020-02-04 | L180: 140565 | M180: INE397D01024
A181: BHEL | B181: EQ | C181: 39.8 | D181: 40.2 | E181: 39.35 | F181: 39.95 | G181: 40 | H181: 39.45 | I181: 13225776 | J181: 525997201 | K181: 2020-02-04 | L181: 31290 | M181: INE257A01026
A182: BIL | B182: EQ | C182: 168 | D182: 177.25 | E182: 165.2 | F182: 170.8 | G182: 173 | H182: 170.4 | I182: 1497 | J182: 257709.3 | K182: 2020-02-04 | L182: 172 | M182: INE828A01016
A183: BILENERGY | B183: EQ | C183: 0.85 | D183: 0.85 | E183: 0.8 | F183: 0.85 | G183: 0.85 | H183: 0.85 | I183: 494327 | J183: 399740.1 | K183: 2020-02-04 | L183: 179 | M183: INE607L01029
A184: BINDALAGRO | B184: EQ | C184: 13 | D184: 13.6 | E184: 12.9 | F184: 13.25 | G184: 13.3 | H184: 12.75 | I184: 27511 | J184: 363470.45 | K184: 2020-02-04 | L184: 215 | M184: INE143A01010
A185: BIOCON | B185: EQ | C185: 300.35 | D185: 301.5 | E185: 279 | F185: 290.1 | G185: 291 | H185: 298.5 | I185: 12882529 | J185: 3690268093 | K185: 2020-02-04 | L185: 133184 | M185: INE376G01013
A186: BIRLACABLE | B186: EQ | C186: 54.7 | D186: 55.6 | E186: 54.1 | F186: 54.55 | G186: 54.2 | H186: 53.55 | I186: 39640 | J186: 2172435.3 | K186: 2020-02-04 | L186: 596 | M186: INE800A01015
A187: BIRLACORPN | B187: EQ | C187: 775 | D187: 788 | E187: 763 | F187: 782.45 | G187: 779.25 | H187: 768.5 | I187: 93676 | J187: 72917125.5 | K187: 2020-02-04 | L187: 4308 | M187: INE340A01012
A188: BIRLAMONEY | B188: EQ | C188: 33.95 | D188: 33.95 | E188: 33.25 | F188: 33.4 | G188: 33.35 | H188: 33.1 | I188: 57208 | J188: 1913920.8 | K188: 2020-02-04 | L188: 979 | M188: INE865C01022
A189: BKMINDST | B189: EQ | C189: 0.45 | D189: 0.5 | E189: 0.45 | F189: 0.5 | G189: 0.5 | H189: 0.5 | I189: 8801 | J189: 4136.2 | K189: 2020-02-04 | L189: 21 | M189: INE831Q01016
A190: BLBLIMITED | B190: EQ | C190: 4.9 | D190: 5.2 | E190: 4.25 | F190: 4.6 | G190: 4.6 | H190: 4.65 | I190: 16595 | J190: 78851.85 | K190: 2020-02-04 | L190: 54 | M190: INE791A01024
A191: BLISSGVS | B191: EQ | C191: 142.1 | D191: 143 | E191: 139.6 | F191: 140.55 | G191: 140.25 | H191: 140.25 | I191: 303477 | J191: 42744294.65 | K191: 2020-02-04 | L191: 2636 | M191: INE416D01022
A192: BLKASHYAP | B192: EQ | C192: 8.75 | D192: 9.25 | E192: 8.1 | F192: 8.15 | G192: 8.25 | H192: 9 | I192: 374800 | J192: 3146053.6 | K192: 2020-02-04 | L192: 617 | M192: INE350H01032
A193: BLS | B193: EQ | C193: 65.5 | D193: 69.9 | E193: 65.5 | F193: 68.7 | G193: 69.4 | H193: 67.2 | I193: 35343 | J193: 2389304.55 | K193: 2020-02-04 | L193: 1673 | M193: INE153T01027
A194: BLUEDART | B194: EQ | C194: 2730 | D194: 2730.75 | E194: 2650 | F194: 2704.95 | G194: 2690.25 | H194: 2675.1 | I194: 3705 | J194: 9987663.05 | K194: 2020-02-04 | L194: 874 | M194: INE233B01017
A195: BLUESTARCO | B195: EQ | C195: 806.8 | D195: 814.95 | E195: 799.1 | F195: 802.8 | G195: 802.05 | H195: 803.75 | I195: 267632 | J195: 216538565.8 | K195: 2020-02-04 | L195: 4247 | M195: INE472A01039
A196: BODALCHEM | B196: EQ | C196: 69.45 | D196: 72.95 | E196: 69.1 | F196: 72.1 | G196: 72.6 | H196: 68.3 | I196: 172799 | J196: 12361665.95 | K196: 2020-02-04 | L196: 1989 | M196: INE338D01028
A197: BOMDYEING | B197: EQ | C197: 84.55 | D197: 87.7 | E197: 84.55 | F197: 86.5 | G197: 87.5 | H197: 83.5 | I197: 1764375 | J197: 151950946.8 | K197: 2020-02-04 | L197: 11446 | M197: INE032A01023
A198: BOROSIL | B198: EQ | C198: 176.5 | D198: 213.4 | E198: 173.4 | F198: 208.6 | G198: 208.8 | H198: 177.85 | I198: 2021843 | J198: 413069656.2 | K198: 2020-02-04 | L198: 28639 | M198: INE666D01022
A199: BOSCHLTD | B199: EQ | C199: 13720 | D199: 14100 | E199: 13651 | F199: 14013.25 | G199: 14000 | H199: 13619.5 | I199: 16428 | J199: 228125272.2 | K199: 2020-02-04 | L199: 5789 | M199: INE323A01026
A200: BPCL | B200: EQ | C200: 465 | D200: 481.1 | E200: 462 | F200: 478.5 | G200: 480.3 | H200: 460.3 | I200: 7841910 | J200: 3698105818 | K200: 2020-02-04 | L200: 108529 | M200: INE029A01011
... 1483 more rows

Sheet Sheet1 (hidden)

Sheet Sheet3 (hidden)

Sheet Sheet4 (hidden)

Sheet Sheet5 (hidden)
